{"text_format":"1","workbook":"xlsx","n_sheets":5,"sheets":["CALENDRIER FCBR","REPARTITION DES MATCHS","ARBITRES","SENIORS","ENGAGEMENTS"],"not_rendered":{"charts":0,"images":0,"macros":1,"external_links":0,"defined_names":5,"comments":0,"pivot_tables":0},"unopened":[],"bounds":{"document_bytes":16777216,"sheet_cells":100000,"rows_first":2000,"rows_last":500,"rows_between":2000,"halvings":0,"cell_chars":16384,"cell_head_chars":4096},"cells_cut":0,"cells_raw":0,"read":"whole","date_system":"1900"}

{"sheet":"CALENDRIER FCBR","index":0,"n_rows":512,"n_cols":18,"rows_kept":512,"cut":false,"hidden":false,"merged":[[0,1,0,11]]}
[null,"CALENDRIER FCBR - TOUTES CATEGORIES"]
[]
[null,"Equipes","ROCHESERVIERE","ST PHILBERT DE BOUAINE","LEGE","FC LOGNE",null,"MATCHS","NB WEEK BAR SENIORS","ROCHESERVIERE","BOUAINE"]
["OK","FCBR 1",{"$f":"COUNTIF($J$31:$J$100182,CONCATENATE(B4,$C$3))","v":5},{"$f":"COUNTIF($J$31:$J$100182,CONCATENATE(B4,$D$3))","v":7},{"$f":"COUNTIF($J$31:$J$5344,CONCATENATE(A4,$F$3))","v":0},0,{"$f":"SUM(C4:F4)","v":12},"DIMANCHE APRES-MIDI","SEPTEMBRE",1,1]
["OK","FCBR 2",7,7,0,0,14,"DIMANCHE APRES-MIDI","OCTOBRE",1,3]
["OK","FCBR 3",5,7,0,0,12,"DIMANCHE APRES-MIDI","NOVEMBRE",1,2]
["OK","FCBR LOISIRS",3,5,0,0,8,"DIMANCHE APRES-MIDI","DECEMBRE",0,2]
["OK","GFVL SENIORS",2,6,{"$f":"COUNTIF($J$31:$J$5344,CONCATENATE(B8,$E$3))","v":1},{"$f":"COUNTIF($J$31:$J$5344,CONCATENATE(B8,$F$3))","v":1},10,"DIMANCHE APRES-MIDI","JANVIER",1,1]
["PH1","GFVL LOISIRS",0,1,{"$f":"COUNTIF($J$31:$J$5344,CONCATENATE(B9,$E$3))","v":0},0,1,"MARDI SOIR","FEVRIER",1,1]
["PH3","FCBR U18 1",6,9,{"$f":"COUNTIF($J$31:$J$5344,CONCATENATE(A10,$F$3))","v":0},0,15,"SAMEDI APRES-MIDI","MARS",2,1]
["PH3","FCBR U18 2",4,7,{"$f":"COUNTIF($J$31:$J$5344,CONCATENATE(A11,$F$3))","v":0},0,11,"SAMEDI APRES-MIDI","AVRIL",4,0]
["PH3","FCBR U17",4,6,{"$f":"COUNTIF($J$31:$J$5344,CONCATENATE(A12,$F$3))","v":0},0,10,"SAMEDI APRES-MIDI","MAI",1,0]
["PH2","GFVL U18F",1,1,{"$f":"COUNTIF($J$31:$J$5344,CONCATENATE(B13,$E$3))","v":4},2,8,"SAMEDI APRES-MIDI","TOTAL",{"$f":"SUBTOTAL(9,J4:J12)","v":12},11]
["PH3","FCBR U15 1",4,9,{"$f":"COUNTIF($J$31:$J$5344,CONCATENATE(A14,$F$3))","v":0},0,13,"DIMANCHE MATIN"]
["PH3","FCBR U15 2",7,4,{"$f":"COUNTIF($J$31:$J$5344,CONCATENATE(A15,$F$3))","v":0},0,11,"DIMANCHE MATIN",null,"CODE COULEURS"]
["PH3","GFVL U15F",0,2,{"$f":"COUNTIF($J$31:$J$5344,CONCATENATE(B16,$E$3))","v":5},2,9,"SAMEDI APRES-MIDI",null,"ROCHESERVIERE"]
["PH3","FCBR U13 1",6,7,{"$f":"COUNTIF($J$31:$J$5344,CONCATENATE(A17,$F$3))","v":0},0,13,"SAMEDI MATIN",null,"ST PHILBERT DE BOUAINE"]
["PH3","FCBR U13 2",7,6,{"$f":"COUNTIF($J$31:$J$5344,CONCATENATE(A18,$F$3))","v":0},0,13,"SAMEDI MATIN",null,"EXTERIEUR"]
["PH3","FCBR U13 3",6,5,{"$f":"COUNTIF($J$31:$J$5344,CONCATENATE(A19,$F$3))","v":0},0,11,"SAMEDI MATIN",null,"EN COURS D'HOMOLOGATION"]
["PH3","GFVL U13F",3,4,{"$f":"COUNTIF($J$31:$J$5344,CONCATENATE(B20,$E$3))","v":0},4,11,"SAMEDI MATIN"]
["PH3","FCBR U11 1",1,4,{"$f":"COUNTIF($J$31:$J$5344,CONCATENATE(A21,$F$3))","v":0},0,5,"SAMEDI APRES-MIDI"]
["PH3","FCBR U11 2",2,5,{"$f":"COUNTIF($J$31:$J$5344,CONCATENATE(A22,$F$3))","v":0},0,7,"SAMEDI APRES-MIDI"]
["PH3","FCBR U11 3",2,5,{"$f":"COUNTIF($J$31:$J$5344,CONCATENATE(A23,$F$3))","v":0},0,7,"SAMEDI APRES-MIDI"]
["PH3","FCBR U11 4",2,5,{"$f":"COUNTIF($J$31:$J$5344,CONCATENATE(A24,$F$3))","v":0},0,7,"SAMEDI APRES-MIDI"]
["PH2","GFVL U11F",1,1,{"$f":"COUNTIF($J$31:$J$5344,CONCATENATE(B25,$E$3))","v":0},1,3,"SAMEDI APRES-MIDI"]
["PH2","FCBR U9",6,3,{"$f":"COUNTIF($J$31:$J$5344,CONCATENATE(A26,$F$3))","v":0},0,9,"SAMEDI MATIN"]
["PH2","FCBR U7",1,3,{"$f":"COUNTIF($J$31:$J$5344,CONCATENATE(A27,$F$3))","v":0},0,4,"SAMEDI MATIN"]
[null,"TOTAL",{"$f":"SUM(C4:C27)","v":85},119,10,10]
[]
["FOOTCLUB","Compétition","Equipes","Club adverse","Date du match","Heure du match","Recevant-visiteur","Nom de l'installation","Localité installation","CALCUL","ARBITRE","DELEGUE","BENEVOLE 1","BENEVOLE 2","U18-1","U18-2","U18-3","U18-4"]
[null,"CHAMPIONNAT","FCBR LOISIRS","ST DENIS CHEVASSE ES 1","REPORTE","21H00","visiteur","STADE PIERRE MOREAU 1","ST DENIS LA CHEVASSE",{"$f":"CONCATENATE(C31,I31)","v":"FCBR LOISIRSST DENIS LA CHEVASSE"},"X","X","X","X"]
[null,"CHAMPIONNAT","FCBR 2","LES ECUREUILS DES PAYS DE MONTS 2","REPORTE","15H00","visiteur","STADE ST JEAN DE MONTS","ST JEAN DE MONTS",{"$f":"CONCATENATE(C32,I32)","v":"FCBR 2ST JEAN DE MONTS"},"LEDOUX Daniel","X","X","X"]
[null,"PLATEAU PH2","FCBR U9","PLATEAU - POULE C","2024-05-25","10H30","Recevant","TERRAIN HONNEUR ROCHESERVIERE","ROCHESERVIERE",{"$f":"CONCATENATE(C33,I33)","v":"FCBR U9ROCHESERVIERE"},"X",null,"LEREGAZA Yann","LAPILUS Dylan"]
[null,"PLATEAU PH2","FCBR U9","PLATEAU - POULE B","2024-05-25","10H30","visiteur","STADE ST GEORGES DE MONTAIGU","ST GEORGES DE MONTAIGU",{"$f":"CONCATENATE(C34,I34)","v":"FCBR U9ST GEORGES DE MONTAIGU"}]
[null,"CHAMPIONNAT","FCBR 1","ST NAZAIRE AF 2","2024-05-19","15H00","visiteur","PARC DES SPORTS LÉO LAGRANGE N°2","ST NAZAIRE",{"$f":"CONCATENATE(C35,I35)","v":"FCBR 1ST NAZAIRE"},"X","X","X","X"]
[null,"CHAMPIONNAT","FCBR 1","VENDEE POIRE SUR VIE FOOTBALL 3","2024-05-05","15H00","Recevant","TERRAIN HONNEUR ROCHESERVIERE","ROCHESERVIERE",{"$f":"CONCATENATE(C36,I36)","v":"FCBR 1ROCHESERVIERE"},"OFFICIEL",null,"X","X"]
[null,"CHAMPIONNAT PH2","FCBR 3","LE POIRE/VIE VF 5","2024-05-05","13H00","visiteur","STADE DE L' IDONNIÈRE N° 2","LE POIRE SUR VIE",{"$f":"CONCATENATE(C37,I37)","v":"FCBR 3LE POIRE SUR VIE"}]
[null,"CHAMPIONNAT","FCBR 2","VENDEE POIRE SUR VIE FOOTBALL 4","2024-05-05","13H00","visiteur","STADE DE L' IDONNIÈRE N° 2","LE POIRE SUR VIE",{"$f":"CONCATENATE(C38,I38)","v":"FCBR 2LE POIRE SUR VIE"},"GRATTON Christophe",null,"X","X"]
[null,"CHAMPIONNAT","GFVL SENIORS","FONTENAY VF 1","2024-05-05","12H30","visiteur","PARC DES SPORTS ANDRÉ FORENS 1","FONTENAY LE COMTE",{"$f":"CONCATENATE(C39,I39)","v":"GFVL SENIORSFONTENAY LE COMTE"},"X","X","X","X"]
[null,"CHAMPIONNAT PH3","FCBR U15 1","GJ BOUFFERE S2GFC 1","2024-05-05","10H00","visiteur","STADE LA GUYONNIERE","LA GUYONNIERE",{"$f":"CONCATENATE(C40,I40)","v":"FCBR U15 1LA GUYONNIERE"}]
[null,"CHAMPIONNAT PH3","FCBR U15 2","GJ ST DENIS-CHAU-COP 2","2024-05-05","10H00","Recevant","TERRAIN HONNEUR ROCHESERVIERE","ROCHESERVIERE",{"$f":"CONCATENATE(C41,I41)","v":"FCBR U15 2ROCHESERVIERE"}]
["EN COURS","CHAMPIONNAT PH3","FCBR U17","GJ SALLERTAINE-EPM 1","2024-05-04","15H00","Recevant","TERRAIN SYNTHETIQUE BOUAINE","ST PHILBERT DE BOUAINE",{"$f":"CONCATENATE(C42,I42)","v":"FCBR U17ST PHILBERT DE BOUAINE"},"GUERY Lyxian"]
[null,"CHAMPIONNAT PH3","FCBR U18 1","GJ CHANTONNAY 21","2024-05-04","15H00","visiteur","STADE DES CROISETTES","CHANTONNAY",{"$f":"CONCATENATE(C43,I43)","v":"FCBR U18 1CHANTONNAY"}]
[null,"CHAMPIONNAT PH3","FCBR U18 2","ST LAURENT MALVENT 21","2024-05-04","15H00","Recevant","TERRAIN HONNEUR ROCHESERVIERE","ROCHESERVIERE",{"$f":"CONCATENATE(C44,I44)","v":"FCBR U18 2ROCHESERVIERE"},"PAVAGEAU Tony"]
[null,"CHAMPIONNAT","FCBR LOISIRS","E*BROUZILS HERB FCCR 1","2024-05-03","21H15","visiteur","STADE DE GRASLA N°2","LES BROUZILS",{"$f":"CONCATENATE(C45,I45)","v":"FCBR LOISIRSLES BROUZILS"},"X","X","X","X"]
[null,"CHAMPIONNAT","FCBR 2","FC SALIGNY 2","2024-04-28","15H00","Recevant","TERRAIN HONNEUR ROCHESERVIERE","ROCHESERVIERE",{"$f":"CONCATENATE(C46,I46)","v":"FCBR 2ROCHESERVIERE"},"LEDOUX Daniel",null,"X","X"]
[null,"CHAMPIONNAT","FCBR 2","AVFC BOUIN BOIS DE CENE 1","2024-04-21","15H00","Recevant","TERRAIN HONNEUR ROCHESERVIERE","ROCHESERVIERE",{"$f":"CONCATENATE(C47,I47)","v":"FCBR 2ROCHESERVIERE"},"GUIBERT Freddy",null,"X","X"]
[null,"CHAMPIONNAT PH2","FCBR 3","E. GIVRAND AIG LAND 4","2024-04-21","13H00","Recevant","TERRAIN HONNEUR ROCHESERVIERE","ROCHESERVIERE",{"$f":"CONCATENATE(C48,I48)","v":"FCBR 3ROCHESERVIERE"},"MANDIN Gerard"]
[null,"CHAMPIONNAT","GFVL SENIORS","ILE D ELLE CHAILLÉ V 1","2024-04-21","13H00","visiteur","STADE ILE D'ELLE","ILE D'ELLE",{"$f":"CONCATENATE(C49,I49)","v":"GFVL SENIORSILE D'ELLE"},null,null,"X","X"]
[null,"CHAMPIONNAT PH3","FCBR U15 1","CHALLANS FC 2","2024-04-21","10H00","Recevant","TERRAIN HONNEUR ROCHESERVIERE","ROCHESERVIERE",{"$f":"CONCATENATE(C50,I50)","v":"FCBR U15 1ROCHESERVIERE"},"OFFICIEL"]
[null,"CHAMPIONNAT PH3","FCBR U15 2","E*FROIDFON FAL ST CH 1","2024-04-21","10H00","visiteur","STADE PHILIPPE VIOLEAU","FROIDFOND",{"$f":"CONCATENATE(C51,I51)","v":"FCBR U15 2FROIDFOND"}]
[null,"CHAMPIONNAT","FCBR 1","FC RETZ 1","2024-04-20","19H00","visiteur","STADE DES FRAÎCHES","STE PAZANNE",{"$f":"CONCATENATE(C52,I52)","v":"FCBR 1STE PAZANNE"},"X","X","X","X"]
[null,"CHAMPIONNAT PH3","FCBR U18 1","GJ BROUZIL-CHAVAGRAB 21","2024-04-20","15H00","Recevant","TERRAIN HONNEUR ROCHESERVIERE","ROCHESERVIERE",{"$f":"CONCATENATE(C53,I53)","v":"FCBR U18 1ROCHESERVIERE"},"GALLOT David"]
[null,"CHAMPIONNAT PH3","FCBR U18 2","GJ ARDELAY AND CO 21","2024-04-20","15H00","visiteur","STADE ST PAUL EN PAREDS","ST PAUL EN PAREDS",{"$f":"CONCATENATE(C54,I54)","v":"FCBR U18 2ST PAUL EN PAREDS"}]
[null,"CHAMPIONNAT PH3","FCBR U17","GJ BOUFFERE S2GFC 2","2024-04-20","15H00","visiteur","STADE LA GUYONNIERE","LA GUYONNIERE",{"$f":"CONCATENATE(C55,I55)","v":"FCBR U17LA GUYONNIERE"}]
[null,"CHAMPIONNAT PH2","GFVL U18F","E*CHAUCHE-CO-ESD-HER 1","2024-04-20","15H00","visiteur","STADE CHAUCHE","CHAUCHE",{"$f":"CONCATENATE(C56,I56)","v":"GFVL U18FCHAUCHE"}]
[null,"CHAMPIONNAT PH3","GFVL U15F","ENT.NIEUL AUBIGNY 1","2024-04-20","15H00","visiteur","STADE NIEUL LE DOLENT","NIEUL LE DOLENT",{"$f":"CONCATENATE(C57,I57)","v":"GFVL U15FNIEUL LE DOLENT"}]
[null,"PLATEAU PH2","FCBR U9","PLATEAU - POULE C","2024-04-20","10H30","visiteur","STADE ST GEORGES DE MONTAIGU","ST GEORGES DE MONTAIGU",{"$f":"CONCATENATE(C58,I58)","v":"FCBR U9ST GEORGES DE MONTAIGU"}]
[null,"PLATEAU PH2","FCBR U9","PLATEAU - POULE B","2024-04-20","10H30","Recevant","TERRAIN HONNEUR ROCHESERVIERE","ROCHESERVIERE",{"$f":"CONCATENATE(C59,I59)","v":"FCBR U9ROCHESERVIERE"},"X",null,"DOUAUD Enzo","JOAQUIM Tony"]
[null,"CHAMPIONNAT PH3","GFVL U13F","LES SABLES FCOC VEND 1","2024-04-20","10H30","Recevant","TERRAIN CORCOUE SUR LOGNE","FC LOGNE",{"$f":"CONCATENATE(C60,I60)","v":"GFVL U13FFC LOGNE"},"FC LOGNE"]
[null,"CHAMPIONNAT PH3","FCBR U13 2","LE FENOUILLER EV 1","2024-04-20","10H15","visiteur","STADE LE FENOUILLER","LE FENOUILLER",{"$f":"CONCATENATE(C61,I61)","v":"FCBR U13 2LE FENOUILLER"}]
[null,"CHAMPIONNAT PH3","FCBR U13 3","GJ TIFFAUGES BOCAGE 4","2024-04-20","10H15","Recevant","TERRAIN ENTRAINEMENT ROCHESERVIERE","ROCHESERVIERE",{"$f":"CONCATENATE(C62,I62)","v":"FCBR U13 3ROCHESERVIERE"},"HIMEDA Gabriel"]
[null,"CHAMPIONNAT PH3","FCBR U13 1","LES ESSARTS FC 1","2024-04-20","10H15","visiteur","STADE ESSARTS EN BOCAGE","ESSARTS EN BOCAGE",{"$f":"CONCATENATE(C63,I63)","v":"FCBR U13 1ESSARTS EN BOCAGE"}]
[null,"CHAMPIONNAT","FCBR LOISIRS","ES BELLEVIGNY FOOT 1","2024-04-19","21H00","Recevant","TERRAIN ENTRAINEMENT ROCHESERVIERE","ROCHESERVIERE",{"$f":"CONCATENATE(C64,I64)","v":"FCBR LOISIRSROCHESERVIERE"},"X","X","X","X"]
[null,"CHAMPIONNAT","FCBR 1","PONTCHATEAU AOS 1","2024-04-14","15H00","visiteur","COMPLEXE SPORTIF DU LANDAS 1","PONTCHATEAU",{"$f":"CONCATENATE(C65,I65)","v":"FCBR 1PONTCHATEAU"},"X","X","X","X"]
[null,"CHAMPIONNAT","FCBR 2","LES ECUREUILS DES PAYS DE MONTS 2","2024-04-14","15H00","Recevant","TERRAIN HONNEUR ROCHESERVIERE","ROCHESERVIERE",{"$f":"CONCATENATE(C66,I66)","v":"FCBR 2ROCHESERVIERE"},"GRATTON Christophe",null,"X","X"]
[null,"CHAMPIONNAT PH2","FCBR 3","ST JEAN DE MONTS EC 3","2024-04-14","13H00","Recevant","TERRAIN SYNTHETIQUE BOUAINE","ST PHILBERT DE BOUAINE",{"$f":"CONCATENATE(C67,I67)","v":"FCBR 3ST PHILBERT DE BOUAINE"},"DOUILLARD Yannick"]
[null,"CHAMPIONNAT","GFVL SENIORS","ST GEORGES GUYONNIERE FC 2","2024-04-14","13H00","Recevant","TERRAIN HONNEUR ROCHESERVIERE","ROCHESERVIERE",{"$f":"CONCATENATE(C68,I68)","v":"GFVL SENIORSROCHESERVIERE"},"OFFICIEL",null,"X","X"]
[null,"CHAMPIONNAT PH3","FCBR U15 1","GJ LES LUCS LEGE 1","2024-04-14","10H00","visiteur","STADE DU CHAMBORD N° 1","LEGE",{"$f":"CONCATENATE(C69,I69)","v":"FCBR U15 1LEGE"}]
[null,"CHAMPIONNAT PH3","FCBR U15 2","LE POIRE/VIE VF 2","2024-04-14","10H00","Recevant","TERRAIN HONNEUR ROCHESERVIERE","ROCHESERVIERE",{"$f":"CONCATENATE(C70,I70)","v":"FCBR U15 2ROCHESERVIERE"},"TENAUD Loic"]
[null,"CHAMPIONNAT PH3","FCBR U17","EXEMPT","2024-04-13","16H00","Recevant","","",{"$f":"CONCATENATE(C71,I71)","v":"FCBR U17"},"X",""]
[null,"CHAMPIONNAT PH3","FCBR U18 1","GJ ST DENIS-CHAU-COP 23","2024-04-13","15H00","visiteur","SATDE CHAUCHE","CHAUCHE",{"$f":"CONCATENATE(C72,I72)","v":"FCBR U18 1CHAUCHE"}]
[null,"CHAMPIONNAT PH3","FCBR U18 2","VERRIE ST-AUBIN VDS 21","2024-04-13","15H00","Recevant","TERRAIN HONNEUR ROCHESERVIERE","ROCHESERVIERE",{"$f":"CONCATENATE(C73,I73)","v":"FCBR U18 2ROCHESERVIERE"},"BOUDELIER Nicolas"]
[null,"CHAMPIONNAT PH2","GFVL U18F","ST GEORGES GUYONNIER 2","2024-04-13","15H00","Recevant","TERRAIN LEGE","LEGE",{"$f":"CONCATENATE(C74,I74)","v":"GFVL U18FLEGE"},"FC LEGE"]
[null,"CHAMPIONNAT PH3","GFVL U15F","COMMEQUIERS 2","2024-04-13","15H00","Recevant","TERRAIN LEGE","LEGE",{"$f":"CONCATENATE(C75,I75)","v":"GFVL U15FLEGE"},"FC LEGE"]
[null,"CHAMPIONNAT PH3","GFVL U13F","GF FCFF LA GARNACHE 1","2024-04-13","10H30","visiteur","STADE FROIDFOND","FROIDFOND",{"$f":"CONCATENATE(C76,I76)","v":"GFVL U13FFROIDFOND"}]
[null,"CHAMPIONNAT PH3","FCBR U13 2","SOULLANS HIR 1","2024-04-13","10H15","Recevant","TERRAIN ENTRAINEMENT ROCHESERVIERE","ROCHESERVIERE",{"$f":"CONCATENATE(C77,I77)","v":"FCBR U13 2ROCHESERVIERE"},"CORBINEAU Julien"]
[null,"CHAMPIONNAT PH3","FCBR U13 3","TREIZE SEPTIERS SM 2","2024-04-13","10H15","visiteur","STADE TREIZE SEPTIERS","TREIZE SEPTIERS",{"$f":"CONCATENATE(C78,I78)","v":"FCBR U13 3TREIZE SEPTIERS"}]
[null,"CHAMPIONNAT PH3","FCBR U13 1","MAREUIL SC 1","2024-04-13","10H15","Recevant","TERRAIN ENTRAINEMENT ROCHESERVIERE","ROCHESERVIERE",{"$f":"CONCATENATE(C79,I79)","v":"FCBR U13 1ROCHESERVIERE"},"HUCHET Germain"]
[null,"CHAMPIONNAT","FCBR LOISIRS","EXEMPT","2024-04-12","21H00","visiteur","","",{"$f":"CONCATENATE(C80,I80)","v":"FCBR LOISIRS"},"X","X","X","X"]
[null,"CHAMPIONNAT","FCBR 1","GUERANDE ST AUBIN 1","2024-04-07","15H00","Recevant","TERRAIN HONNEUR ROCHESERVIERE","ROCHESERVIERE",{"$f":"CONCATENATE(C81,I81)","v":"FCBR 1ROCHESERVIERE"},"OFFICIEL",null,"X","X"]
[null,"CHAMPIONNAT","FCBR 2","US MARAIS BEAUVOIR S/MER 1","2024-04-07","15H00","visiteur","STADE DES ÉTANGS 1","BEAUVOIR SUR MER",{"$f":"CONCATENATE(C82,I82)","v":"FCBR 2BEAUVOIR SUR MER"},"LEDOUX Daniel",null,"X","X"]
[null,"CHAMPIONNAT","GFVL SENIORS","LANDERONDE ST GEORGES 1","2024-04-07","13H00","visiteur","STADE LANDERONDE","LANDERONDE",{"$f":"CONCATENATE(C83,I83)","v":"GFVL SENIORSLANDERONDE"},"X","X","X","X"]
[null,"CHAMPIONNAT PH2","FCBR 3","BEIGNON BASSET POIRE 2","2024-04-07","12H30","visiteur","STADE DU BEIGNON BASSET","LE POIRE SUR VIE",{"$f":"CONCATENATE(C84,I84)","v":"FCBR 3LE POIRE SUR VIE"}]
[null,"CHAMPIONNAT PH3","FCBR U15 1","GJ BELLEVIGNY BBS 1","2024-04-07","10H00","visiteur","STADE BELLEVIGNY","BELLEVIGNY",{"$f":"CONCATENATE(C85,I85)","v":"FCBR U15 1BELLEVIGNY"}]
[null,"CHAMPIONNAT PH3","FCBR U15 2","ST GEORG. GUYON.FEM 1","2024-04-07","10H00","Recevant","TERRAIN HONNEUR ROCHESERVIERE","ROCHESERVIERE",{"$f":"CONCATENATE(C86,I86)","v":"FCBR U15 2ROCHESERVIERE"}]
[null,"CHAMPIONNAT PH3","FCBR U17","GJ TIFFAUGES BOCAGE 1","2024-04-06","15H00","Recevant","TERRAIN HONNEUR ROCHESERVIERE","ROCHESERVIERE",{"$f":"CONCATENATE(C87,I87)","v":"FCBR U17ROCHESERVIERE"},"PAVAGEAU Tony"]
[null,"CHAMPIONNAT PH3","FCBR U18 1","FALLERON FROIDFOND 23","2024-04-06","15H00","visiteur","STADE FALLERON","FALLERON",{"$f":"CONCATENATE(C88,I88)","v":"FCBR U18 1FALLERON"}]
[null,"CHAMPIONNAT PH3","FCBR U18 2","GJ HERBERGEMENT USSA 23","2024-04-06","15H00","Recevant","TERRAIN SYNTHETIQUE BOUAINE","ST PHILBERT DE BOUAINE",{"$f":"CONCATENATE(C89,I89)","v":"FCBR U18 2ST PHILBERT DE BOUAINE"},"GUERY Lyxian"]
[null,"CHAMPIONNAT PH2","GFVL U18F","FOOT ESPOIR 85 1","2024-04-06","15H00","Recevant","TERRAIN LEGE","LEGE",{"$f":"CONCATENATE(C90,I90)","v":"GFVL U18FLEGE"},"FC LEGE"]
[null,"CHAMPIONNAT PH3","GFVL U15F","TALMONT ST HILAIRE 1","2024-04-06","15H00","Recevant","TERRAIN LEGE","LEGE",{"$f":"CONCATENATE(C91,I91)","v":"GFVL U15FLEGE"},"FC LEGE"]
[null,"PLATEAU PH2","FCBR U9","PLATEAU - POULE C","2024-04-06","10H30","visiteur","STADE BOUFFERE","BOUFFERE",{"$f":"CONCATENATE(C92,I92)","v":"FCBR U9BOUFFERE"}]
[null,"PLATEAU PH2","FCBR U9","PLATEAU - POULE B","2024-04-06","10H30","visiteur","STADE TREIZE SEPTIERS","TREIZE SEPTIERS",{"$f":"CONCATENATE(C93,I93)","v":"FCBR U9TREIZE SEPTIERS"}]
[null,"CHAMPIONNAT PH3","GFVL U13F","BOUFFERE AS 1","2024-04-06","10H30","visiteur","STADE BOUFFERE","BOUFFERE",{"$f":"CONCATENATE(C94,I94)","v":"GFVL U13FBOUFFERE"}]
[null,"CHAMPIONNAT PH3","FCBR U13 2","GJ COEX VIE JAUNAY 1","2024-04-06","10H15","visiteur","STADE COEX","COEX",{"$f":"CONCATENATE(C95,I95)","v":"FCBR U13 2COEX"}]
[null,"CHAMPIONNAT PH3","FCBR U13 3","ST FULGENT VIGILANTE 3","2024-04-06","10H15","Recevant","TERRAIN ENTRAINEMENT ROCHESERVIERE","ROCHESERVIERE",{"$f":"CONCATENATE(C96,I96)","v":"FCBR U13 3ROCHESERVIERE"},"BEZIAU Clement"]
[null,"CHAMPIONNAT PH3","FCBR U13 1","BOUPEREMONPROUANT FC 1","2024-04-06","10H15","Recevant","TERRAIN ENTRAINEMENT ROCHESERVIERE","ROCHESERVIERE",{"$f":"CONCATENATE(C97,I97)","v":"FCBR U13 1ROCHESERVIERE"},"TERRIEN David"]
[null,"CHAMPIONNAT","FCBR LOISIRS","MONTREVERD USSAM 1","2024-04-05","21H00","visiteur","STADE LUCIEN MORILLEAU2","MONTREVERD",{"$f":"CONCATENATE(C98,I98)","v":"FCBR LOISIRSMONTREVERD"},"X","X","X","X"]
[null,"CHAMPIONNAT","FCBR LOISIRS","MONTREVERD USSAM 1","2024-03-29","21H00","Recevant","TERRAIN SYNTHETIQUE BOUAINE","ST PHILBERT DE BOUAINE",{"$f":"CONCATENATE(C99,I99)","v":"FCBR LOISIRSST PHILBERT DE BOUAINE"},"X","X","X","X"]
[null,"CHAMPIONNAT","FCBR 1","LES LUCS SUR BOULOGNE","2024-03-24","15H00","visiteur","PARC DES SPORTS DES NOISELIÈRES","LES LUCS SUR BOULOGNE",{"$f":"CONCATENATE(C100,I100)","v":"FCBR 1LES LUCS SUR BOULOGNE"},"X","X","X","X"]
[null,"CHAMPIONNAT","FCBR 2","AS ST GERVAIS 1","2024-03-24","15H00","visiteur","STADE ST GERVAIS","ST GERVAIS",{"$f":"CONCATENATE(C101,I101)","v":"FCBR 2ST GERVAIS"},"GUIBERT Freddy","X","X","X"]
[null,"CHAMPIONNAT PH2","FCBR 3","ENT. APREMONT CHA MA 2","2024-03-24","13H00","Recevant","TERRAIN SYNTHETIQUE BOUAINE","ST PHILBERT DE BOUAINE",{"$f":"CONCATENATE(C102,I102)","v":"FCBR 3ST PHILBERT DE BOUAINE"},"MANDIN Gerard"]
[null,"CHAMPIONNAT","GFVL SENIORS","GF FCFF LA GARNACHE 1","2024-03-24","13H00","Recevant","TERRAIN LIMOUZINIERE","FC LOGNE",{"$f":"CONCATENATE(C103,I103)","v":"GFVL SENIORSFC LOGNE"},"FC LOGNE",null,"X","X"]
[null,"CHAMPIONNAT PH3","FCBR U15 1","GJ SALLERTAINE-EPM 1","2024-03-24","10H00","Recevant","TERRAIN HONNEUR ROCHESERVIERE","ROCHESERVIERE",{"$f":"CONCATENATE(C104,I104)","v":"FCBR U15 1ROCHESERVIERE"},"TENAUD Loic"]
[null,"CHAMPIONNAT PH3","FCBR U15 2","GJ HERBERGEMENT USSA 2","2024-03-24","10H00","visiteur","STADE LUCIEN MORILLEAU 2","MONTREVERD",{"$f":"CONCATENATE(C105,I105)","v":"FCBR U15 2MONTREVERD"}]
[null,"CHAMPIONNAT PH3","FCBR U18 1","GJ HERBERGEMENT USSA 22","2024-03-23","15H00","Recevant","TERRAIN HONNEUR ROCHESERVIERE","ROCHESERVIERE",{"$f":"CONCATENATE(C106,I106)","v":"FCBR U18 1ROCHESERVIERE"},"OFFICIEL"]
[null,"CHAMPIONNAT PH3","FCBR U18 2","BOUPEREMONPROUANT FC 23","2024-03-23","15H00","visiteur","STADE LOUIS PINEAU","LE BOUPERE",{"$f":"CONCATENATE(C107,I107)","v":"FCBR U18 2LE BOUPERE"}]
[null,"CHAMPIONNAT PH3","FCBR U17","GJ 13SEPTIERS BRUF 1","2024-03-23","15H00","visiteur","STADE TREIZE SEPTIERS","TREIZE SEPTIERS",{"$f":"CONCATENATE(C108,I108)","v":"FCBR U17TREIZE SEPTIERS"}]
[null,"CHAMPIONNAT PH3","GFVL U15F","E*CHAUCHECOP-ESD-HER 2","2024-03-23","15H00","visiteur","STADE ST DENIS LA CHEVASSE","ST DENIS LA CHEVASSE",{"$f":"CONCATENATE(C109,I109)","v":"GFVL U15FST DENIS LA CHEVASSE"}]
[null,"CHALLENGE VENDEE","GFVL U18F","FOOT ESPOIR 85 NALLIERS 1","2024-03-23","15H00","visiteur","STADE MOUZEUIL ST MARTIN","MOUZEUIL ST MARTIN",{"$f":"CONCATENATE(C110,I110)","v":"GFVL U18FMOUZEUIL ST MARTIN"}]
[null,"PLATEAU PH2","FCBR U9","PLATEAU - POULE C","2024-03-23","10H30","visiteur","STADE MONTAIGU","MONTAIGU",{"$f":"CONCATENATE(C111,I111)","v":"FCBR U9MONTAIGU"}]
[null,"PLATEAU PH2","FCBR U9","PLATEAU - POULE B","2024-03-23","10H30","visiteur","STADE ST GEORGES DE MONTAIGU","ST GEORGES DE MONTAIGU",{"$f":"CONCATENATE(C112,I112)","v":"FCBR U9ST GEORGES DE MONTAIGU"}]
[null,"CHAMPIONNAT PH3","GFVL U13F","ENT.LE POIRE-SALIGNY 1","2024-03-23","10H30","Recevant","TERRAIN CORCOUE SUR LOGNE","FC LOGNE",{"$f":"CONCATENATE(C113,I113)","v":"GFVL U13FFC LOGNE"},"FC LOGNE"]
[null,"CHAMPIONNAT PH3","FCBR U13 2","ILE NOIRMOUTIER FC 1","2024-03-23","10H15","Recevant","TERRAIN ENTRAINEMENT ROCHESERVIERE","ROCHESERVIERE",{"$f":"CONCATENATE(C114,I114)","v":"FCBR U13 2ROCHESERVIERE"},"HIMEDA Gabriel"]
[null,"CHAMPIONNAT PH3","FCBR U13 3","VERRIE ST-AUBIN VDS 3","2024-03-23","10H15","Recevant","TERRAIN ENTRAINEMENT ROCHESERVIERE","ROCHESERVIERE",{"$f":"CONCATENATE(C115,I115)","v":"FCBR U13 3ROCHESERVIERE"},"CORMERAIS Justin"]
[null,"CHAMPIONNAT PH3","FCBR U13 1","LA MOTHE ACHARD FC 1","2024-03-23","10H15","visiteur","STADE LA MOTHE ACHARD","LA MOTHE ACHARD",{"$f":"CONCATENATE(C116,I116)","v":"FCBR U13 1LA MOTHE ACHARD"}]
[null,"CHAMPIONNAT","FCBR LOISIRS","CHAUCHE COP CCFO 1","2024-03-22","21H00","Recevant","TERRAIN SYNTHETIQUE BOUAINE","ST PHILBERT DE BOUAINE",{"$f":"CONCATENATE(C117,I117)","v":"FCBR LOISIRSST PHILBERT DE BOUAINE"},"X","X","X","X"]
[null,"CHAMPIONNAT","FCBR 2","LES LUCS SUR BOULOGNE 2","2024-03-17","15H00","visiteur","PARC DES SPORTS DES NOISELIÈRES","LES LUCS SUR BOULOGNE",{"$f":"CONCATENATE(C118,I118)","v":"FCBR 2LES LUCS SUR BOULOGNE"},"GRATTON Christophe",null,"X","X"]
[null,"CHAMPIONNAT PH2","FCBR 3","E. GIVRAND AIG LAND 4","2024-03-17","12H30","visiteur","STADE LANDEVIEILLE","LANDEVIEILLE",{"$f":"CONCATENATE(C119,I119)","v":"FCBR 3LANDEVIEILLE"}]
[null,"CHAMPIONNAT","GFVL SENIORS","POUZAUGES CHATAIGNERAIE 1","2024-03-17","12H30","visiteur","STADE JAMES LOUIS - MUNICIPAL","REAUMUR",{"$f":"CONCATENATE(C120,I120)","v":"GFVL SENIORSREAUMUR"},"X","X","X","X"]
[null,"CHAMPIONNAT PH3","FCBR U15 1","CHALLANS FC 2","2024-03-17","10H00","visiteur","PARC DES SPORTS 2","CHALLANS",{"$f":"CONCATENATE(C121,I121)","v":"FCBR U15 1CHALLANS"}]
[null,"CHAMPIONNAT PH3","FCBR U15 2","E*FROIDFON FAL ST CH 1","2024-03-17","10H00","Recevant","TERRAIN HONNEUR ROCHESERVIERE","ROCHESERVIERE",{"$f":"CONCATENATE(C122,I122)","v":"FCBR U15 2ROCHESERVIERE"},"PIVETEAU Bernard"]
[null,"CHAMPIONNAT","FCBR 1","LA ROCHE VF 3","2024-03-16","18H30","visiteur","STADE LA ROCHE SUR YON","LA ROCHE SUR YON",{"$f":"CONCATENATE(C123,I123)","v":"FCBR 1LA ROCHE SUR YON"},"OFFICIEL"]
["EN COURS","CHAMPIONNAT PH3","FCBR U17","GJ BOUFFERE S2GFC 2","2024-03-16","15H00","Recevant","TERRAIN HONNEUR ROCHESERVIERE","ROCHESERVIERE",{"$f":"CONCATENATE(C124,I124)","v":"FCBR U17ROCHESERVIERE"},"BOUDELIER Nicolas"]
[null,"CHAMPIONNAT PH3","FCBR U18 1","GJ BROUZIL-CHAVAGRAB 21","2024-03-16","15H00","visiteur","STADE DE GRASLA N°2","LES BROUZILS",{"$f":"CONCATENATE(C125,I125)","v":"FCBR U18 1LES BROUZILS"}]
[null,"CHAMPIONNAT PH3","FCBR U18 2","GJ ARDELAY AND CO 21","2024-03-16","15H00","Recevant","TERRAIN SYNTHETIQUE BOUAINE","ST PHILBERT DE BOUAINE",{"$f":"CONCATENATE(C126,I126)","v":"FCBR U18 2ST PHILBERT DE BOUAINE"},"GALLOT David"]
[null,"CHAMPIONNAT PH2","GFVL U18F","ENT.CHAILLE FCPB 1","2024-03-16","15H00","visiteur","STADE CHAILLE LES MARAIS","CHAILLE LES MARAIS",{"$f":"CONCATENATE(C127,I127)","v":"GFVL U18FCHAILLE LES MARAIS"}]
[null,"CHAMPIONNAT PH3","GFVL U15F","E*JARD A M LONG VALL 2","2024-03-16","15H00","Recevant","TERRAIN LEGE","LEGE",{"$f":"CONCATENATE(C128,I128)","v":"GFVL U15FLEGE"},"FC LEGE"]
[null,"CHAMPIONNAT PH3","GFVL U13F","MORTAGNE S/SEVRE 1","2024-03-16","10H30","visiteur","STADE MORTAGNE SUR SEVRE","MORTAGNE SUR SEVRE",{"$f":"CONCATENATE(C129,I129)","v":"GFVL U13FMORTAGNE SUR SEVRE"}]
[null,"CHAMPIONNAT PH3","FCBR U13 2","ST MAIXENT SUR VIE 1","2024-03-16","10H15","visiteur","STADE ST MAIXENT SUR VIE","ST MAIXENT SUR VIE",{"$f":"CONCATENATE(C130,I130)","v":"FCBR U13 2ST MAIXENT SUR VIE"}]
[null,"CHAMPIONNAT PH3","FCBR U13 3","MONTAIGU VENDEE FOOT 4","2024-03-16","10H15","visiteur","STADE LA BOISSIERE DE MONTAIGU","LA BOISSIERE DE MONTAIGU",{"$f":"CONCATENATE(C131,I131)","v":"FCBR U13 3LA BOISSIERE DE MONTAIGU"}]
[null,"CHAMPIONNAT PH3","FCBR U13 1","SEVREMONT FC 1","2024-03-16","10H15","Recevant","TERRAIN ENTRAINEMENT ROCHESERVIERE","ROCHESERVIERE",{"$f":"CONCATENATE(C132,I132)","v":"FCBR U13 1ROCHESERVIERE"},"PETIT Edouard"]
[null,"CHAMPIONNAT","FCBR LOISIRS","SALIGNY BELLEVIGNY 1","2024-03-15","21H00","visiteur","STADE PIERRE GUITTET1","BELLEVIGNY",{"$f":"CONCATENATE(C133,I133)","v":"FCBR LOISIRSBELLEVIGNY"},"X","X","X","X"]
[null,"CHAMPIONNAT","FCBR 2","HIRONDELLES DE SOULLANS 1","2024-03-10","15H00","Recevant","TERRAIN HONNEUR ROCHESERVIERE","ROCHESERVIERE",{"$f":"CONCATENATE(C134,I134)","v":"FCBR 2ROCHESERVIERE"},"LEDOUX Daniel",null,"X","X"]
[null,"CHAMPIONNAT","FCBR 1","ST ANDRE DES EAUX SA 1","2024-03-09","18H00","visiteur","STADE DE L' ÎLE DE LA PIERRE","ST ANDRE DES EAUX",{"$f":"CONCATENATE(C135,I135)","v":"FCBR 1ST ANDRE DES EAUX"},"X","X","X","X"]
[null,"PLATEAU PH2","FCBR U9","PLATEAU - POULE C","2024-03-09","10H30","visiteur","STADE ST GEORGES DE MONTAIGU","ST GEORGES DE MONTAIGU",{"$f":"CONCATENATE(C136,I136)","v":"FCBR U9ST GEORGES DE MONTAIGU"}]
[null,"PLATEAU PH2","FCBR U9","PLATEAU - POULE B","2024-03-09","10H30","Recevant","TERRAIN HONNEUR ROCHESERVIERE","ROCHESERVIERE",{"$f":"CONCATENATE(C137,I137)","v":"FCBR U9ROCHESERVIERE"},"X",null,"TENAUD Romain","FORESTIER William"]
["EN COURS","CHAMPIONNAT PH3","FCBR U18 2","GJ HERBERGEMENT USSA 23","2024-03-02","17H00","visiteur","STADE LUCIEN MORILLEAU 2","MONTREVERD",{"$f":"CONCATENATE(C138,I138)","v":"FCBR U18 2MONTREVERD"}]
["EN COURS","CHAMPIONNAT","GFVL SENIORS","FOOT ESP.85 NALLIERS 1","2024-02-25","13H00","visiteur","STADE MOUZEUIL ST MARTIN","MOUZEUIL ST MARTIN",{"$f":"CONCATENATE(C139,I139)","v":"GFVL SENIORSMOUZEUIL ST MARTIN"},"X","X","X","X"]
[null,"CHAMPIONNAT PH3","FCBR U17","GJ SALLERTAINE-EPM 1","2024-02-24","17H00","visiteur","STADE SALLERTAINE","SALLERTAINE",{"$f":"CONCATENATE(C140,I140)","v":"FCBR U17SALLERTAINE"}]
[null,"CHAMPIONNAT PH3","FCBR U13 3","GJ TIFFAUGES BOCAGE 4","2024-02-24","10H15","visiteur","STADE LA GAUBRETIERE","LA GAUBRETIERE",{"$f":"CONCATENATE(C141,I141)","v":"FCBR U13 3LA GAUBRETIERE"}]
[null,"PLATEAU PH2","FCBR U7","PLATEAU","2024-02-24","10H00","Recevant","TERRAIN SYNTHETIQUE BOUAINE","ST PHILBERT DE BOUAINE",{"$f":"CONCATENATE(C142,I142)","v":"FCBR U7ST PHILBERT DE BOUAINE"},"X","X"]
[null,"CHAMPIONNAT PH2","FCBR 3","ST JEAN DE MONTS EC 3","2024-02-18","13H00","visiteur","STADE ERNEST PAJOT 1","ST JEAN DE MONTS",{"$f":"CONCATENATE(C143,I143)","v":"FCBR 3ST JEAN DE MONTS"}]
[null,"CHAMPIONNAT","FCBR 2","FC LA GENETOUZE 2","2024-02-18","13H00","visiteur","STADE GABRIEL GENDREAU 1","LA GENETOUZE",{"$f":"CONCATENATE(C144,I144)","v":"FCBR 2LA GENETOUZE"},"GUIBERT Freddy",null,"X","X"]
[null,"CHAMPIONNAT","GFVL SENIORS","HERBERGEMENT SM 1","2024-02-18","13H00","Recevant","TERRAIN HONNEUR ROCHESERVIERE","ROCHESERVIERE",{"$f":"CONCATENATE(C145,I145)","v":"GFVL SENIORSROCHESERVIERE"},"OFFICIEL",null,"X","X"]
[null,"CHAMPIONNAT PH3","FCBR U15 1","GJ LES LUCS LEGE 1","2024-02-18","10H00","Recevant","TERRAIN HONNEUR ROCHESERVIERE","ROCHESERVIERE",{"$f":"CONCATENATE(C146,I146)","v":"FCBR U15 1ROCHESERVIERE"},"BOUDELIER Nicolas"]
[null,"CHAMPIONNAT PH3","FCBR U15 2","LE POIRE/VIE VF 2","2024-02-18","10H00","visiteur","STADE DE L' IDONNIÈRE N° 2","LE POIRE SUR VIE",{"$f":"CONCATENATE(C147,I147)","v":"FCBR U15 2LE POIRE SUR VIE"}]
[null,"CHAMPIONNAT","FCBR 1","PORNICHET ES 1","2024-02-17","18H30","Recevant","TERRAIN SYNTHETIQUE BOUAINE","ST PHILBERT DE BOUAINE",{"$f":"CONCATENATE(C148,I148)","v":"FCBR 1ST PHILBERT DE BOUAINE"},"OFFICIEL"]
[null,"CHAMPIONNAT PH3","FCBR U17","EXEMPT","2024-02-17","16H00","visiteur","","",{"$f":"CONCATENATE(C149,I149)","v":"FCBR U17"}]
[null,"CHAMPIONNAT PH3","FCBR U18 1","GJ ST DENIS-CHAU-COP 23","2024-02-17","16H00","Recevant","TERRAIN SYNTHETIQUE BOUAINE","ST PHILBERT DE BOUAINE",{"$f":"CONCATENATE(C150,I150)","v":"FCBR U18 1ST PHILBERT DE BOUAINE"},"OFFICIEL"]
[null,"CHAMPIONNAT PH3","FCBR U18 2","VERRIE ST-AUBIN VDS 21","2024-02-17","15H00","visiteur","STADE LA VERRIE","LA VERRIE",{"$f":"CONCATENATE(C151,I151)","v":"FCBR U18 2LA VERRIE"}]
[null,"CHAMPIONNAT PH2","GFVL U18F","FONTENAY VENDEE 1","2024-02-17","15H00","Recevant","TERRAIN LEGE","LEGE",{"$f":"CONCATENATE(C152,I152)","v":"GFVL U18FLEGE"},"FC LEGE"]
[null,"CHAMPIONNAT PH3","GFVL U15F","COMMEQUIERS 2","2024-02-17","15H00","visiteur","STADE COMMEQUIERS","COMMEQUIERS",{"$f":"CONCATENATE(C153,I153)","v":"GFVL U15FCOMMEQUIERS"}]
[null,"PLATEAU PH3","FCBR U11 1","PLATEAU","2024-02-17","13H45","visiteur","STADE LE POIRE SUR VIE","LE POIRE SUR VIE",{"$f":"CONCATENATE(C154,I154)","v":"FCBR U11 1LE POIRE SUR VIE"}]
[null,"PLATEAU PH3","FCBR U11 3","PLATEAU","2024-02-17","13H45","visiteur","STADE ST DENIS LA CHEVASSE","ST DENIS LA CHEVASSE",{"$f":"CONCATENATE(C155,I155)","v":"FCBR U11 3ST DENIS LA CHEVASSE"}]
[null,"PLATEAU PH3","FCBR U11 4","PLATEAU","2024-02-17","13H45","visiteur","STADE ST DENIS LA CHEVASSE","ST DENIS LA CHEVASSE",{"$f":"CONCATENATE(C156,I156)","v":"FCBR U11 4ST DENIS LA CHEVASSE"}]
[null,"PLATEAU PH3","FCBR U11 2","PLATEAU","2024-02-17","13H15","Recevant","TERRAIN SYNTHETIQUE BOUAINE","ST PHILBERT DE BOUAINE",{"$f":"CONCATENATE(C157,I157)","v":"FCBR U11 2ST PHILBERT DE BOUAINE"},"X"]
[null,"PLATEAU PH2","FCBR U9","PLATEAU - POULE C","2024-02-17","10H30","Recevant","TERRAIN HONNEUR ROCHESERVIERE","ROCHESERVIERE",{"$f":"CONCATENATE(C158,I158)","v":"FCBR U9ROCHESERVIERE"},"X",null,"MERLET Luc","GALLOT Kevin"]
[null,"PLATEAU PH2","FCBR U9","PLATEAU - POULE B","2024-02-17","10H30","visiteur","STADE TREIZE SEPTIERS","TREIZE SEPTIERS",{"$f":"CONCATENATE(C159,I159)","v":"FCBR U9TREIZE SEPTIERS"}]
[null,"CHAMPIONNAT PH3","GFVL U13F","GF FCFF LA GARNACHE 1","2024-02-17","10H30","Recevant","TERRAIN CORCOUE SUR LOGNE","FC LOGNE",{"$f":"CONCATENATE(C160,I160)","v":"GFVL U13FFC LOGNE"},"FC LOGNE"]
[null,"CHAMPIONNAT PH3","FCBR U13 2","SOULLANS HIR 1","2024-02-17","10H15","visiteur","STADE SOULLANS","SOULLANS",{"$f":"CONCATENATE(C161,I161)","v":"FCBR U13 2SOULLANS"}]
[null,"CHAMPIONNAT PH3","FCBR U13 3","TREIZE SEPTIERS SM 2","2024-02-17","10H15","Recevant","TERRAIN SYNTHETIQUE BOUAINE","ST PHILBERT DE BOUAINE",{"$f":"CONCATENATE(C162,I162)","v":"FCBR U13 3ST PHILBERT DE BOUAINE"},"GRIS Thomas"]
[null,"CHAMPIONNAT PH3","FCBR U13 1","MAREUIL SC 1","2024-02-17","10H15","visiteur","STADE MAREUIL SUR LAY DISSAIS","MAREUIL SUR LAY DISSAIS",{"$f":"CONCATENATE(C163,I163)","v":"FCBR U13 1MAREUIL SUR LAY DISSAIS"}]
[null,"CHAMPIONNAT","FCBR LOISIRS","ST DENIS CHEVASSE ES 1","2024-02-16","21H00","Recevant","TERRAIN SYNTHETIQUE BOUAINE","ST PHILBERT DE BOUAINE",{"$f":"CONCATENATE(C164,I164)","v":"FCBR LOISIRSST PHILBERT DE BOUAINE"},"X","X","X","X"]
[null,"CHAMPIONNAT","FCBR 1","US AUBIGNY 1","2024-02-11","15H00","visiteur","STADE MARCEL DUCROT","AUBIGNY LES CLOUZEAUX",{"$f":"CONCATENATE(C165,I165)","v":"FCBR 1AUBIGNY LES CLOUZEAUX"},"X","X","X","X"]
[null,"CHAMPIONNAT","FCBR 2","ILE YEU 1","2024-02-11","15H00","Recevant","TERRAIN SYNTHETIQUE BOUAINE","ST PHILBERT DE BOUAINE",{"$f":"CONCATENATE(C166,I166)","v":"FCBR 2ST PHILBERT DE BOUAINE"},"LEDOUX Daniel",null,"X","X"]
[null,"CHAMPIONNAT PH2","FCBR 3","BEIGNON BASSET POIRE 2","2024-02-11","12H30","Recevant","TERRAIN SYNTHETIQUE BOUAINE","ST PHILBERT DE BOUAINE",{"$f":"CONCATENATE(C167,I167)","v":"FCBR 3ST PHILBERT DE BOUAINE"},"MANDIN Gerard","DIRIGEANT"]
[null,"CHAMPIONNAT PH3","FCBR U15 1","GJ BELLEVIGNY BBS 1","2024-02-11","10H00","Recevant","TERRAIN SYNTHETIQUE BOUAINE","ST PHILBERT DE BOUAINE",{"$f":"CONCATENATE(C168,I168)","v":"FCBR U15 1ST PHILBERT DE BOUAINE"},"TENAUD Loic","DIRIGEANT"]
[null,"CHAMPIONNAT PH3","FCBR U15 2","ST GEORG. GUYON.FEM 1","2024-02-11","10H00","visiteur","STADE MUNICIPAL 1","LA GUYONNIERE",{"$f":"CONCATENATE(C169,I169)","v":"FCBR U15 2LA GUYONNIERE"}]
[null,"CHAMPIONNAT PH3","FCBR U18 1","FALLERON FROIDFOND 23","2024-02-10","16H00","Recevant","TERRAIN SYNTHETIQUE BOUAINE","ST PHILBERT DE BOUAINE",{"$f":"CONCATENATE(C170,I170)","v":"FCBR U18 1ST PHILBERT DE BOUAINE"},"OFFICIEL","BUET Mathis"]
[null,"CHAMPIONNAT PH3","FCBR U17","GJ TIFFAUGES BOCAGE 1","2024-02-10","15H00","visiteur","STADE TIFFAUGES","TIFFAUGES",{"$f":"CONCATENATE(C171,I171)","v":"FCBR U17TIFFAUGES"}]
[null,"CHAMPIONNAT PH3","GFVL U15F","TALMONT ST HILAIRE 1","2024-02-10","15H00","visiteur","STADE TALMONT ST HILAIRE","TALMONT ST HILAIRE",{"$f":"CONCATENATE(C172,I172)","v":"GFVL U15FTALMONT ST HILAIRE"}]
[null,"CHAMPIONNAT PH2","GFVL U18F","ENT.FOV PAYS DE MTS 1","2024-02-10","14H00","visiteur","STADE NOTRE DAME DE MONTS","NOTRE DAME DE MONTS",{"$f":"CONCATENATE(C173,I173)","v":"GFVL U18FNOTRE DAME DE MONTS"}]
[null,"PLATEAU PH3","FCBR U11 1","PLATEAU","2024-02-10","13H45","visiteur","STADE ST DENIS LA CHEVASSE","ST DENIS LA CHEVASSE",{"$f":"CONCATENATE(C174,I174)","v":"FCBR U11 1ST DENIS LA CHEVASSE"}]
[null,"PLATEAU PH3","FCBR U11 2","PLATEAU","2024-02-10","13H45","visiteur","STADE ST GEORGES DE MONTAIGU","ST GEORGES DE MONTAIGU",{"$f":"CONCATENATE(C175,I175)","v":"FCBR U11 2ST GEORGES DE MONTAIGU"}]
[null,"PLATEAU PH3","GFVL U11F","PLATEAU","2024-02-10","13H45","visiteur","STADE CHÂTEAU OLONNE","CHÂTEAU D'OLONNE",{"$f":"CONCATENATE(C176,I176)","v":"GFVL U11FCHÂTEAU D'OLONNE"}]
[null,"PLATEAU PH3","FCBR U11 3","PLATEAU","2024-02-10","13H15","Recevant","TERRAIN SYNTHETIQUE BOUAINE","ST PHILBERT DE BOUAINE",{"$f":"CONCATENATE(C177,I177)","v":"FCBR U11 3ST PHILBERT DE BOUAINE"},"X"]
[null,"PLATEAU PH3","FCBR U11 4","PLATEAU","2024-02-10","13H15","Recevant","TERRAIN SYNTHETIQUE BOUAINE","ST PHILBERT DE BOUAINE",{"$f":"CONCATENATE(C178,I178)","v":"FCBR U11 4ST PHILBERT DE BOUAINE"},"X"]
[null,"CHAMPIONNAT PH3","GFVL U13F","BOUFFERE AS 1","2024-02-10","10H30","Recevant","TERRAIN SYNTHETIQUE BOUAINE","ST PHILBERT DE BOUAINE",{"$f":"CONCATENATE(C179,I179)","v":"GFVL U13FST PHILBERT DE BOUAINE"}]
[null,"CHAMPIONNAT PH3","FCBR U13 2","GJ COEX VIE JAUNAY 1","2024-02-10","10H15","Recevant","TERRAIN SYNTHETIQUE BOUAINE","ST PHILBERT DE BOUAINE",{"$f":"CONCATENATE(C180,I180)","v":"FCBR U13 2ST PHILBERT DE BOUAINE"},"BEZIAU Clement"]
[null,"CHAMPIONNAT PH3","FCBR U13 3","ST FULGENT VIGILANTE 3","2024-02-10","10H15","visiteur","STADE ST FULGENT","ST FULGENT",{"$f":"CONCATENATE(C181,I181)","v":"FCBR U13 3ST FULGENT"}]
[null,"CHAMPIONNAT PH3","FCBR U13 1","BOUPEREMONPROUANT FC 1","2024-02-10","10H15","visiteur","STADE SAINT PROUANT","ST PROUANT",{"$f":"CONCATENATE(C182,I182)","v":"FCBR U13 1ST PROUANT"}]
[null,"PLATEAU PH2","FCBR U7","PLATEAU","2024-02-10","10H00","visiteur","STADE BOUFFERE","BOUFFERE",{"$f":"CONCATENATE(C183,I183)","v":"FCBR U7BOUFFERE"},"X","X","X","X"]
[null,"CHAMPIONNAT","FCBR LOISIRS","BOUFFERE AS 1","2024-02-09","21H00","visiteur","STADE MUNICIPAL 2","BOUFFERE",{"$f":"CONCATENATE(C184,I184)","v":"FCBR LOISIRSBOUFFERE"},"X","X","X","X"]
[null,"COUPE","FCBR 2","POUZAUGES PBFC 3","2024-02-04","14H30","Recevant","TERRAIN HONNEUR ROCHESERVIERE","ROCHESERVIERE",{"$f":"CONCATENATE(C185,I185)","v":"FCBR 2ROCHESERVIERE"},"GRATTON Christophe","CHARLY"]
[null,"COUPE","GFVL SENIORS","FONTENAY VF 1","2024-02-04","12H30","Recevant","TERRAIN LEGE","LEGE",{"$f":"CONCATENATE(C186,I186)","v":"GFVL SENIORSLEGE"},"OFFICIEL"]
[null,"CHAMPIONNAT PH3","FCBR U15 1","GJ SALLERTAINE-EPM 1","2024-02-04","10H00","visiteur","SATDE SALLERTAINE","SALLERTAINE",{"$f":"CONCATENATE(C187,I187)","v":"FCBR U15 1SALLERTAINE"},"X"]
[null,"CHAMPIONNAT PH3","FCBR U15 2","GJ HERBERGEMENT USSA 2","2024-02-04","10H00","Recevant","TERRAIN HONNEUR ROCHESERVIERE","ROCHESERVIERE",{"$f":"CONCATENATE(C188,I188)","v":"FCBR U15 2ROCHESERVIERE"},"PIVETEAU Bernard"]
[null,"CHAMPIONNAT PH3","FCBR U17","GJ 13SEPTIERS BRUF 1","2024-02-03","15H00","Recevant","TERRAIN HONNEUR ROCHESERVIERE","ROCHESERVIERE",{"$f":"CONCATENATE(C189,I189)","v":"FCBR U17ROCHESERVIERE"},"DOUILLARD Yannick"]
[null,"CHAMPIONNAT PH3","FCBR U18 1","GJ HERBERGEMENT USSA 22","2024-02-03","15H00","visiteur","STADE L'HERBERGEMENT","L'HERBERGEMENT",{"$f":"CONCATENATE(C190,I190)","v":"FCBR U18 1L'HERBERGEMENT"},"X"]
[null,"CHAMPIONNAT PH3","GFVL U15F","E*CHAUCHECOP-ESD-HER 2","2024-02-03","15H00","Recevant","TERRAIN LEGE","LEGE",{"$f":"CONCATENATE(C191,I191)","v":"GFVL U15FLEGE"},"FC LEGE"]
[null,"COUPE","GFVL U18F","LES SABLES FCOC VEND 1","2024-02-03","15H00","Recevant","TERRAIN LEGE","LEGE",{"$f":"CONCATENATE(C192,I192)","v":"GFVL U18FLEGE"},"FC LEGE","X","X","X"]
[null,"CHAMPIONNAT PH3","FCBR U18 2","BOUPEREMONPROUANT FC 23","2024-02-03","15H00","Recevant","TERRAIN SYNTHETIQUE BOUAINE","ST PHILBERT DE BOUAINE",{"$f":"CONCATENATE(C193,I193)","v":"FCBR U18 2ST PHILBERT DE BOUAINE"},"TELIUS Curtis"]
[null,"PLATEAU PH3","FCBR U11 2","PLATEAU","2024-02-03","13H45","visiteur","STADE BOUFFERE","BOUFFERE",{"$f":"CONCATENATE(C194,I194)","v":"FCBR U11 2BOUFFERE"},"X"]
[null,"PLATEAU PH3","FCBR U11 3","PLATEAU","2024-02-03","13H45","visiteur","STADE SALIGNY","BELLEVIGNY",{"$f":"CONCATENATE(C195,I195)","v":"FCBR U11 3BELLEVIGNY"},"X"]
[null,"PLATEAU PH3","FCBR U11 4","PLATEAU","2024-02-03","13H45","visiteur","STADE SALIGNY","BELLEVIGNY",{"$f":"CONCATENATE(C196,I196)","v":"FCBR U11 4BELLEVIGNY"},"X"]
[null,"PLATEAU PH3","GFVL U11F","PLATEAU","2024-02-03","13H45","visiteur","STADE FC LOGNE","FC LOGNE",{"$f":"CONCATENATE(C197,I197)","v":"GFVL U11FFC LOGNE"},"X"]
[null,"PLATEAU PH3","FCBR U11 1","PLATEAU","2024-02-03","13H15","Recevant","TERRAIN SYNTHETIQUE BOUAINE","ST PHILBERT DE BOUAINE",{"$f":"CONCATENATE(C198,I198)","v":"FCBR U11 1ST PHILBERT DE BOUAINE"},"X"]
[null,"PLATEAU PH2","FCBR U9","PLATEAU - POULE C","2024-02-03","10H30","visiteur","STADE BOUFFERE","BOUFFERE",{"$f":"CONCATENATE(C199,I199)","v":"FCBR U9BOUFFERE"},"X"]
[null,"PLATEAU PH2","FCBR U9","PLATEAU - POULE B","2024-02-03","10H30","visiteur","STADE ST GEORGES DE MONTAIGU","ST GEORGES DE MONTAIGU",{"$f":"CONCATENATE(C200,I200)","v":"FCBR U9ST GEORGES DE MONTAIGU"},"X"]
[null,"CHAMPIONNAT PH3","GFVL U13F","ENT.LE POIRE-SALIGNY 1","2024-02-03","10H30","visiteur","STADE DE L' IDONNIÈRE N° 2","LE POIRE SUR VIE",{"$f":"CONCATENATE(C201,I201)","v":"GFVL U13FLE POIRE SUR VIE"},"X"]
[null,"CHAMPIONNAT PH3","FCBR U13 2","ILE NOIRMOUTIER FC 1","2024-02-03","10H15","visiteur","STADE NOIRMOUTIER","NOIRMOUTIER EN L ILE",{"$f":"CONCATENATE(C202,I202)","v":"FCBR U13 2NOIRMOUTIER EN L ILE"},"X"]
[null,"CHAMPIONNAT PH3","FCBR U13 3","VERRIE ST-AUBIN VDS 3","2024-02-03","10H15","visiteur","STADE LA VERRIE","LA VERRIE",{"$f":"CONCATENATE(C203,I203)","v":"FCBR U13 3LA VERRIE"},"X"]
[null,"CHAMPIONNAT PH3","FCBR U13 1","LA MOTHE ACHARD FC 1","2024-02-03","10H15","Recevant","TERRAIN ENTRAINEMENT ROCHESERVIERE","ROCHESERVIERE",{"$f":"CONCATENATE(C204,I204)","v":"FCBR U13 1ROCHESERVIERE"},"GUILLOT Mickael"]
[null,"CHAMPIONNAT","FCBR 2","USSEP 1","2024-01-28","15H00","visiteur","STADE ANDRÉ DORION","LA CHAPELLE PALLUAU",{"$f":"CONCATENATE(C205,I205)","v":"FCBR 2LA CHAPELLE PALLUAU"},"GRATTON Christophe",null,"X","X"]
[null,"CHAMPIONNAT","GFVL SENIORS","GF NIEUL JARDAVRILLE 1","2024-01-28","13H00","Recevant","TERRAIN SYNTHETIQUE BOUAINE","ST PHILBERT DE BOUAINE",{"$f":"CONCATENATE(C206,I206)","v":"GFVL SENIORSST PHILBERT DE BOUAINE"},"OFFICIEL","DIRIGEANT",null,"X"]
[null,"CHAMPIONNAT PH2","FCBR 3","ENT. APREMONT CHA MA 2","2024-01-28","12H30","visiteur","STADE PIERRE CHABOT","LA CHAPELLE HERMIER",{"$f":"CONCATENATE(C207,I207)","v":"FCBR 3LA CHAPELLE HERMIER"}]
[null,"CHAMPIONNAT PH3","FCBR U15 1","GJ BOUFFERE S2GFC 1","2024-01-28","10H00","Recevant","TERRAIN HONNEUR ROCHESERVIERE","ROCHESERVIERE",{"$f":"CONCATENATE(C208,I208)","v":"FCBR U15 1ROCHESERVIERE"},"DIRIGEANT","DIRIGEANT"]
[null,"CHAMPIONNAT","FCBR 1","FC CHALLANS 2","2024-01-27","18H30","Recevant","TERRAIN SYNTHETIQUE BOUAINE","ST PHILBERT DE BOUAINE",{"$f":"CONCATENATE(C209,I209)","v":"FCBR 1ST PHILBERT DE BOUAINE"},"OFFICIEL","DIRIGEANT"]
[null,"CHAMPIONNAT PH3","FCBR U18 1","GJ CHANTONNAY 21","2024-01-27","16H00","Recevant","TERRAIN SYNTHETIQUE BOUAINE","ST PHILBERT DE BOUAINE",{"$f":"CONCATENATE(C210,I210)","v":"FCBR U18 1ST PHILBERT DE BOUAINE"},"OFFICIEL","DIRIGEANT"]
[null,"CHAMPIONNAT PH3","GFVL U15F","E*JARD A M LONG VALL 2","2024-01-27","16H00","visiteur","STADE AVRILLE","AVRILLE",{"$f":"CONCATENATE(C211,I211)","v":"GFVL U15FAVRILLE"}]
[null,"AMICAL","GFVL U18F",null,"2024-01-27","15H30","Recevant","TERRAIN ENTRAINEMENT ROCHESERVIERE","ROCHESERVIERE",{"$f":"CONCATENATE(C212,I212)","v":"GFVL U18FROCHESERVIERE"},"X"]
[null,"CHAMPIONNAT PH3","FCBR U15 2","GJ ST DENIS-CHAU-COP 2","2024-01-27","15H00","visiteur","STADE BERNARD DE BUOR 1","LA COPECHAGNIERE",{"$f":"CONCATENATE(C213,I213)","v":"FCBR U15 2LA COPECHAGNIERE"}]
[null,"CHAMPIONNAT PH3","FCBR U18 2","ST LAURENT MALVENT 21","2024-01-27","15H00","visiteur","STADE ST LAURENT SUR SEVRE","ST LAURENT SUR SEVRE",{"$f":"CONCATENATE(C214,I214)","v":"FCBR U18 2ST LAURENT SUR SEVRE"}]
[null,"PLATEAU PH3","FCBR U11 1","PLATEAU","2024-01-27","13H45","visiteur","STADE BELLEVIGNY","BELLEVIGNY",{"$f":"CONCATENATE(C215,I215)","v":"FCBR U11 1BELLEVIGNY"}]
[null,"PLATEAU PH3","FCBR U11 3","PLATEAU","2024-01-27","13H45","visiteur","STADE ST DENIS LA CHEVASSE","ST DENIS LA CHEVASSE",{"$f":"CONCATENATE(C216,I216)","v":"FCBR U11 3ST DENIS LA CHEVASSE"}]
[null,"PLATEAU PH3","FCBR U11 4","PLATEAU","2024-01-27","13H45","visiteur","STADE ST DENIS LA CHEVASSE","ST DENIS LA CHEVASSE",{"$f":"CONCATENATE(C217,I217)","v":"FCBR U11 4ST DENIS LA CHEVASSE"}]
[null,"PLATEAU PH3","FCBR U11 2","PLATEAU","2024-01-27","13H15","Recevant","TERRAIN SYNTHETIQUE BOUAINE","ST PHILBERT DE BOUAINE",{"$f":"CONCATENATE(C218,I218)","v":"FCBR U11 2ST PHILBERT DE BOUAINE"},"X"]
[null,"CHAMPIONNAT PH3","GFVL U13F","MORTAGNE S/SEVRE 1","2024-01-27","10H30","Recevant","TERRAIN CORCOUE SUR LOGNE","FC LOGNE",{"$f":"CONCATENATE(C219,I219)","v":"GFVL U13FFC LOGNE"},"FC LOGNE"]
[null,"CHAMPIONNAT PH3","FCBR U13 2","ST MAIXENT SUR VIE 1","2024-01-27","10H15","Recevant","TERRAIN SYNTHETIQUE BOUAINE","ST PHILBERT DE BOUAINE",{"$f":"CONCATENATE(C220,I220)","v":"FCBR U13 2ST PHILBERT DE BOUAINE"},"DIRIGEANT"]
[null,"CHAMPIONNAT PH3","FCBR U13 3","MONTAIGU VENDEE FOOT 4","2024-01-27","10H15","Recevant","TERRAIN SYNTHETIQUE BOUAINE","ST PHILBERT DE BOUAINE",{"$f":"CONCATENATE(C221,I221)","v":"FCBR U13 3ST PHILBERT DE BOUAINE"},"BOSSIS Pierre"]
[null,"PLATEAU PH2","FCBR U7","PLATEAU","2024-01-27","10H00","visiteur","STADE MONTREVERD","MONTREVERD",{"$f":"CONCATENATE(C222,I222)","v":"FCBR U7MONTREVERD"},"X","X","X","X"]
[null,"CHAMPIONNAT PH3","FCBR U13 1","SEVREMONT FC 1","2024-01-27","09H30","visiteur","TERRAIN SYNTHETIQUE BOUAINE","ST PHILBERT DE BOUAINE",{"$f":"CONCATENATE(C223,I223)","v":"FCBR U13 1ST PHILBERT DE BOUAINE"},"DIRIGEANT"]
[null,"CHAMPIONNAT","FCBR LOISIRS","LES LUCS S/BOULOGNE 1","2024-01-26","21H00","Recevant","TERRAIN SYNTHETIQUE BOUAINE","ST PHILBERT DE BOUAINE",{"$f":"CONCATENATE(C224,I224)","v":"FCBR LOISIRSST PHILBERT DE BOUAINE"},"X","X","X","X"]
[null,"CHAMPIONNAT","FCBR 1","VENDEE POIRE SUR VIE FOOTBALL 3","2024-01-21","15H00","visiteur","STADE DE L' IDONNIÈRE N° 2","LE POIRE SUR VIE",{"$f":"CONCATENATE(C225,I225)","v":"FCBR 1LE POIRE SUR VIE"},"X","X","X","X"]
[null,"CHAMPIONNAT","FCBR 2","VENDEE POIRE SUR VIE FOOTBALL 4","2024-01-21","15H00","Recevant","TERRAIN HONNEUR ROCHESERVIERE","ROCHESERVIERE",{"$f":"CONCATENATE(C226,I226)","v":"FCBR 2ROCHESERVIERE"},"GUIBERT Freddy","CHARLY","X","X"]
[null,"CHAMPIONNAT PH2","FCBR 3","LE POIRE/VIE VF 5","2024-01-21","13H00","Recevant","TERRAIN HONNEUR ROCHESERVIERE","ROCHESERVIERE",{"$f":"CONCATENATE(C227,I227)","v":"FCBR 3ROCHESERVIERE"},"MANDIN Gerard","DIRIGEANT"]
[null,"CHAMPIONNAT","GFVL SENIORS","FONTENAY VF 1","2024-01-21","13H00","Recevant","TERRAIN SYNTHETIQUE BOUAINE","ST PHILBERT DE BOUAINE",{"$f":"CONCATENATE(C228,I228)","v":"GFVL SENIORSST PHILBERT DE BOUAINE"},"OFFICIEL","DIRIGEANT","X","X"]
[null,"AMICAL","FCBR U18 2","USSAM 2","2024-01-20","17H00","Recevant","TERRAIN SYNTHETIQUE BOUAINE","ST PHILBERT DE BOUAINE",{"$f":"CONCATENATE(C229,I229)","v":"FCBR U18 2ST PHILBERT DE BOUAINE"},"PAVAGEAU Tony",null,"X","X"]
[null,"CHALLENGE VENDEE","GFVL U18F","FC CHALLANS 1","2024-01-20","15H00","visiteur","STADE CHALLANS","CHALLANS",{"$f":"CONCATENATE(C230,I230)","v":"GFVL U18FCHALLANS"}]
[null,"CHAMPIONNAT PH3","GFVL U15F","ENT.NIEUL AUBIGNY 1","2024-01-20","15H00","Recevant","TERRAIN LEGE","LEGE",{"$f":"CONCATENATE(C231,I231)","v":"GFVL U15FLEGE"},"FC LEGE"]
[null,"COUPE PDL U19","FCBR U18 1","MOUILLERON LE CAPTIF 1","2024-01-20","14H30","Recevant","TERRAIN SYNTHETIQUE BOUAINE","ST PHILBERT DE BOUAINE",{"$f":"CONCATENATE(C232,I232)","v":"FCBR U18 1ST PHILBERT DE BOUAINE"},"OFFICIEL","DIRIGEANT","X","X"]
[null,"PLATEAU PH3","GFVL U11F","PLATEAU","2024-01-20","13H45","visiteur","STADE CHALLANS","CHALLANS",{"$f":"CONCATENATE(C233,I233)","v":"GFVL U11FCHALLANS"}]
[null,"PLATEAU PH3","FCBR U11 1","PLATEAU","2024-01-20","13H45","visiteur","STADE BOUFFERE","BOUFFERE",{"$f":"CONCATENATE(C234,I234)","v":"FCBR U11 1BOUFFERE"}]
[null,"PLATEAU PH3","FCBR U11 2","PLATEAU","2024-01-20","13H45","visiteur","STADE ST HILAIRE DE LOULAY","ST HILAIRE DE LOULAY",{"$f":"CONCATENATE(C235,I235)","v":"FCBR U11 2ST HILAIRE DE LOULAY"}]
[null,"PLATEAU PH3","FCBR U11 3","PLATEAU","2024-01-20","13H45","Recevant","TERRAIN ENTRAINEMENT ROCHESERVIERE","ROCHESERVIERE",{"$f":"CONCATENATE(C236,I236)","v":"FCBR U11 3ROCHESERVIERE"},"X"]
[null,"PLATEAU PH3","FCBR U11 4","PLATEAU","2024-01-20","13H45","Recevant","TERRAIN ENTRAINEMENT ROCHESERVIERE","ROCHESERVIERE",{"$f":"CONCATENATE(C237,I237)","v":"FCBR U11 4ROCHESERVIERE"},"X"]
[null,"PLATEAU PH3","GFVL U11F","PLATEAU","2024-01-20","13H45","visiteur","STADE LES HERBIERS","LES HERBIERS",{"$f":"CONCATENATE(C238,I238)","v":"GFVL U11FLES HERBIERS"}]
[null,"CHAMPIONNAT PH3","GFVL U13F","LES SABLES FCOC VEND 1","2024-01-20","11H45","visiteur","STADE CHÂTEAU D'OLONNE","CHATEAU D OLONNE",{"$f":"CONCATENATE(C239,I239)","v":"GFVL U13FCHATEAU D OLONNE"}]
[null,"PLATEAU PH2","FCBR U9","PLATEAU - POULE C","2024-01-20","10H30","visiteur","STADE MONTAIGU","MONTAIGU",{"$f":"CONCATENATE(C240,I240)","v":"FCBR U9MONTAIGU"}]
[null,"PLATEAU PH2","FCBR U9","PLATEAU - POULE B","2024-01-20","10H30","Recevant","TERRAIN HONNEUR ROCHESERVIERE","ROCHESERVIERE",{"$f":"CONCATENATE(C241,I241)","v":"FCBR U9ROCHESERVIERE"},"X",null,"POGU Baptiste","MASSE Sacha","RIAHI Firas","CAILLAUD Dany","GALLOT Enzo","DABO Elie"]
[null,"CHAMPIONNAT PH3","FCBR U13 2","LE FENOUILLER EV 1","2024-01-20","10H15","Recevant","TERRAIN SYNTHETIQUE BOUAINE","ST PHILBERT DE BOUAINE",{"$f":"CONCATENATE(C242,I242)","v":"FCBR U13 2ST PHILBERT DE BOUAINE"},"POGU Yohann"]
[null,"CHAMPIONNAT PH3","FCBR U13 1","LES ESSARTS FC 1","2024-01-20","10H15","Recevant","TERRAIN SYNTHETIQUE BOUAINE","ST PHILBERT DE BOUAINE",{"$f":"CONCATENATE(C243,I243)","v":"FCBR U13 1ST PHILBERT DE BOUAINE"},"LOUSTALOT Jason"]
[null,"CHAMPIONNAT","GFVL SENIORS","GF FCFF LA GARNACHE 1","2024-01-14","13H00","visiteur","STADE DES GENÊTS 1","LA GARNACHE",{"$f":"CONCATENATE(C244,I244)","v":"GFVL SENIORSLA GARNACHE"},"X","X","X","X"]
[null,"AMICAL","FCBR 3","13SEPTIERS","2024-01-14","13H00","visiteur","TERRAIN HONNEUR ROCHESERVIERE","ROCHESERVIERE",{"$f":"CONCATENATE(C245,I245)","v":"FCBR 3ROCHESERVIERE"},"FRANCOIS Theo"]
[null,"COUPE","FCBR 2","AS BOUFFERE 2","2024-01-14","12H00","visiteur","STADE BOUFFERE","BOUFFERE",{"$f":"CONCATENATE(C246,I246)","v":"FCBR 2BOUFFERE"},"LEDOUX Daniel"]
[null,"COUPE","FCBR U15 1","FC NOIRMOUTIER 1","2024-01-14","12H00","Recevant","TERRAIN SYNTHETIQUE BOUAINE","ST PHILBERT DE BOUAINE",{"$f":"CONCATENATE(C247,I247)","v":"FCBR U15 1ST PHILBERT DE BOUAINE"},"OFFICIEL","DIRIGEANT"]
[null,"COUPE","FCBR U15 2","ST GERVAIS 1","2024-01-14","10H00","visiteur","STADE ST GERVAIS","ST GERVAIS",{"$f":"CONCATENATE(C248,I248)","v":"FCBR U15 2ST GERVAIS"},"GUILLOT Mickael"]
[null,"AMICAL","FCBR U13 3","FC GRAND LIEU 2","2024-01-13","9H30","Recevant","TERRAIN SYNTHETIQUE BOUAINE","ST PHILBERT DE BOUAINE",{"$f":"CONCATENATE(C249,I249)","v":"FCBR U13 3ST PHILBERT DE BOUAINE"},"TERRIEN David"]
[null,"COUPE","GFVL U18F","ENT. CHALLANS-COMMEQ 1","2024-01-13","15H00","visiteur","STADE CHALLANS","CHALLANS",{"$f":"CONCATENATE(C250,I250)","v":"GFVL U18FCHALLANS"}]
[null,"AMICAL","FCBR U18 1","France AIZENAY 1","2024-01-13","14H00","Recevant","TERRAIN SYNTHETIQUE BOUAINE","ST PHILBERT DE BOUAINE",{"$f":"CONCATENATE(C251,I251)","v":"FCBR U18 1ST PHILBERT DE BOUAINE"},"BOUCARD Nino"]
[null,"AMICAL","FCBR U13 1","USJA CARQUEFOU","2024-01-13","11H00","Recevant","TERRAIN SYNTHETIQUE BOUAINE","ST PHILBERT DE BOUAINE",{"$f":"CONCATENATE(C252,I252)","v":"FCBR U13 1ST PHILBERT DE BOUAINE"},"DUGAST Sebastien"]
[null,"AMICAL","FCBR U13 2","FC GRAND LIEU 1","2024-01-13","11H00","Recevant","TERRAIN SYNTHETIQUE BOUAINE","ST PHILBERT DE BOUAINE",{"$f":"CONCATENATE(C253,I253)","v":"FCBR U13 2ST PHILBERT DE BOUAINE"},"BERTAUD Lubin"]
[null,"AMICAL","FCBR 1","ASVP 1","2024-01-12","19H45","visiteur","STADE DE VIEILLEVIGNE","VIEILLEVIGNE",{"$f":"CONCATENATE(C254,I254)","v":"FCBR 1VIEILLEVIGNE"}]
[null,"COUPE","FCBR U15 1","FC CHALLANS 2","2024-01-07","10H00","Recevant","TERRAIN SYNTHETIQUE BOUAINE","ST PHILBERT DE BOUAINE",{"$f":"CONCATENATE(C255,I255)","v":"FCBR U15 1ST PHILBERT DE BOUAINE"},"OFFICIEL","HERVOUET Olivier"]
[null,"COUPE","FCBR U15 2","FC NOIRMOUTIER 2","2024-01-07","10H00","visiteur","STADE NOIRMOUTIER","NOIRMOUTIER",{"$f":"CONCATENATE(C256,I256)","v":"FCBR U15 2NOIRMOUTIER"}]
[null,"CHALLENGE VENDEE","GFVL U18F","LA ROCHE VENDEE 1","2024-01-06","16H00","visiteur","STADE HENRI DESGRANGE 1","LA ROCHE SUR YON",{"$f":"CONCATENATE(C257,I257)","v":"GFVL U18FLA ROCHE SUR YON"}]
[null,"COUPE PDL U17","FCBR U17","CHAUMES ARCHE FC 1","2024-01-06","14H30","Recevant","TERRAIN SYNTHETIQUE BOUAINE","ST PHILBERT DE BOUAINE",{"$f":"CONCATENATE(C258,I258)","v":"FCBR U17ST PHILBERT DE BOUAINE"},"OFFICIEL","DUGAST Pascal","X","X"]
[null,"CHAMPIONNAT PH2","FCBR U17","GJ POUZAUGES BOCAGES 2","2023-12-31","15H00","visiteur","STADE CHAVAGNES LES REDOUX","CHAVAGNES LES REDOUX",{"$f":"CONCATENATE(C259,I259)","v":"FCBR U17CHAVAGNES LES REDOUX"},null,null,"X","X"]
[null,"CHAMPIONNAT","FCBR 2","AVFC BOUIN BOIS DE CENE 1","2023-12-17","15H00","visiteur","STADE MUNICIPAL","BOIS DE CENE",{"$f":"CONCATENATE(C260,I260)","v":"FCBR 2BOIS DE CENE"},"GRATTON Christophe","X","X","X"]
[null,"CHAMPIONNAT PH1","FCBR 3","CHAVAGNES RABATEL 4","2023-12-17","12H30","visiteur","STADE JEAN DE SUZANNET 1","CHAVAGNES EN PAILLERS",{"$f":"CONCATENATE(C261,I261)","v":"FCBR 3CHAVAGNES EN PAILLERS"},"X","X","X","X"]
[null,"CHAMPIONNAT","FCBR 1","FC RETZ 1","2023-12-16","18H30","Recevant","TERRAIN SYNTHETIQUE BOUAINE","ST PHILBERT DE BOUAINE",{"$f":"CONCATENATE(C262,I262)","v":"FCBR 1ST PHILBERT DE BOUAINE"},"OFFICIEL","DIRIGEANT"]
[null,"COUPE PDL U19","FCBR U18 1","AS MAINE 1","2023-12-16","16H00","Recevant","TERRAIN SYNTHETIQUE BOUAINE","ST PHILBERT DE BOUAINE",{"$f":"CONCATENATE(C263,I263)","v":"FCBR U18 1ST PHILBERT DE BOUAINE"},"OFFICIEL",null,"X","X"]
[null,"CHAMPIONNAT PH2","GFVL U15F","LES ESSARTS FC 1","2023-12-16","16H00","visiteur","STADE BOULOGNE LA MERLATIERE","BOULOGNE",{"$f":"CONCATENATE(C264,I264)","v":"GFVL U15FBOULOGNE"}]
[null,"PLATEAU PH1","FCBR U9","PLATEAU - POULE D","2023-12-16","10H30","Recevant","TERRAIN SYNTHETIQUE BOUAINE","ST PHILBERT DE BOUAINE",{"$f":"CONCATENATE(C265,I265)","v":"FCBR U9ST PHILBERT DE BOUAINE"},"X",null,"X","X","VIAVANT Nolan","LEGER Emilien","MABIT Pablo","PATRON Tristan"]
[null,"PLATEAU PH1","FCBR U9","PLATEAU - POULE B","2023-12-16","10H30","visiteur","STADE MONTREVERD","MONTREVERD",{"$f":"CONCATENATE(C266,I266)","v":"FCBR U9MONTREVERD"}]
[null,"CHAMPIONNAT PH2","FCBR U13 1","ST LAURENT MALVENT 1","2023-12-16","10H15","Recevant","TERRAIN HERBE BOUAINE","ST PHILBERT DE BOUAINE",{"$f":"CONCATENATE(C267,I267)","v":"FCBR U13 1ST PHILBERT DE BOUAINE"},"PARENTS","X","X","X"]
[null,"CHAMPIONNAT PH2","GFVL U13F","GF FCFF LA GARNACHE 1","2023-12-16","10H15","Recevant","TERRAIN ENTRAINEMENT ROCHESERVIERE","ROCHESERVIERE",{"$f":"CONCATENATE(C268,I268)","v":"GFVL U13FROCHESERVIERE"},"BACHELIER Fabien","X"]
[null,"CHAMPIONNAT PH2","FCBR U13 2","LA BRUFFIERE AS 1","2023-12-16","10H15","Recevant","TERRAIN HERBE BOUAINE","ST PHILBERT DE BOUAINE",{"$f":"CONCATENATE(C269,I269)","v":"FCBR U13 2ST PHILBERT DE BOUAINE"},"TENAUD Loic","X","X","X"]
[null,"CHAMPIONNAT PH2","FCBR U13 3","GJ TIFFAUGES BOCAGE 4","2023-12-16","10H15","visiteur","STADE LANDES GENUSSON","LES LANDES GENUSSON",{"$f":"CONCATENATE(C270,I270)","v":"FCBR U13 3LES LANDES GENUSSON"},null,"X","X","X"]
[null,"CHAMPIONNAT","FCBR LOISIRS","ES BELLEVIGNY FOOT 1","2023-12-15","21H30","visiteur","COMPLEXE SPORTIF 2","BELLEVIGNY",{"$f":"CONCATENATE(C271,I271)","v":"FCBR LOISIRSBELLEVIGNY"},"X","X","X","X"]
[null,"CHAMPIONNAT","GFVL SENIORS","FOOT ESP.85 NALLIERS 1","2023-12-15","21H00","Recevant","TERRAIN SYNTHETIQUE BOUAINE","ST PHILBERT DE BOUAINE",{"$f":"CONCATENATE(C272,I272)","v":"GFVL SENIORSST PHILBERT DE BOUAINE"},"OFFICIEL","DIRIGEANT"]
[null,"CHAMPIONNAT","GFVL SENIORS","ILE D ELLE CHAILLÉ V 1","2023-12-10","15H00","Recevant","TERRAIN SYNTHETIQUE BOUAINE","ST PHILBERT DE BOUAINE",{"$f":"CONCATENATE(C273,I273)","v":"GFVL SENIORSST PHILBERT DE BOUAINE"},"OFFICIEL","DIRIGEANT","X","X"]
[null,"CHAMPIONNAT PH1","FCBR 3","LES BROUZILS LSG 4","2023-12-10","12H30","Recevant","TERRAIN SYNTHETIQUE BOUAINE","ST PHILBERT DE BOUAINE",{"$f":"CONCATENATE(C274,I274)","v":"FCBR 3ST PHILBERT DE BOUAINE"},"MANDIN Gerard","DIRIGEANT"]
[null,"CHAMPIONNAT PH2","FCBR U15 2","EXEMPT","2023-12-10","10H00","visiteur","","",{"$f":"CONCATENATE(C275,I275)","v":"FCBR U15 2"},null,null,"X","X"]
[null,"CHAMPIONNAT PH2","FCBR U15 1","GJ COEX VIE JAUNAY 1","2023-12-10","10H00","Recevant","TERRAIN SYNTHETIQUE BOUAINE","ST PHILBERT DE BOUAINE",{"$f":"CONCATENATE(C276,I276)","v":"FCBR U15 1ST PHILBERT DE BOUAINE"},"TENAUD Loic","DIRIGEANT","X","X"]
[null,"CHAMPIONNAT","FCBR 1","PONTCHATEAU AOS 1","2023-12-09","18H30","Recevant","TERRAIN SYNTHETIQUE BOUAINE","ST PHILBERT DE BOUAINE",{"$f":"CONCATENATE(C277,I277)","v":"FCBR 1ST PHILBERT DE BOUAINE"},"OFFICIEL","DIRIGEANT"]
[null,"CHAMPIONNAT PH2","GFVL U15F","GF FCFF LA GARNACHE 1","2023-12-09","16H00","Recevant","TERRAIN SYNTHETIQUE BOUAINE","ST PHILBERT DE BOUAINE",{"$f":"CONCATENATE(C278,I278)","v":"GFVL U15FST PHILBERT DE BOUAINE"},"SENIORS FC LOGNE"]
[null,"CHAMPIONNAT PH1","GFVL U18F","E*CHAUCHE-CO-ESD-HER 1","2023-12-09","16H00","Recevant","TERRAIN SYNTHETIQUE BOUAINE","ST PHILBERT DE BOUAINE",{"$f":"CONCATENATE(C279,I279)","v":"GFVL U18FST PHILBERT DE BOUAINE"},"SENIORS FC LOGNE","X","X","X"]
[null,"CHAMPIONNAT PH2","FCBR U18 2","GJ TIFFAUGES BOCAGE 2","2023-12-09","15H00","Recevant","TERRAIN HONNEUR ROCHESERVIERE","ROCHESERVIERE",{"$f":"CONCATENATE(C280,I280)","v":"FCBR U18 2ROCHESERVIERE"},"BOUDELIER Nicolas","HERVOUET Olivier","X","X"]
[null,"CHAMPIONNAT PH2","FCBR U18 1","LA ROCHE ROBRETIERES 1","2023-12-09","14H00","visiteur","STADE RIVOLI","LA ROCHE SUR YON",{"$f":"CONCATENATE(C281,I281)","v":"FCBR U18 1LA ROCHE SUR YON"},"X","X","X","X"]
[null,"PLATEAU PH2","FCBR U11 1","PLATEAU","2023-12-09","13H45","Recevant","TERRAIN SYNTHETIQUE BOUAINE","ST PHILBERT DE BOUAINE",{"$f":"CONCATENATE(C282,I282)","v":"FCBR U11 1ST PHILBERT DE BOUAINE"},"X","X","X","X"]
[null,"PLATEAU PH2","FCBR U11 2","PLATEAU","2023-12-09","13H45","Recevant","TERRAIN SYNTHETIQUE BOUAINE","ST PHILBERT DE BOUAINE",{"$f":"CONCATENATE(C283,I283)","v":"FCBR U11 2ST PHILBERT DE BOUAINE"},"X","X","X","X"]
[null,"PLATEAU PH2","FCBR U11 3","PLATEAU","2023-12-09","13H45","visiteur","STADE ST HILAIRE DE LOULAY","ST HILAIRE DE LOULAY",{"$f":"CONCATENATE(C284,I284)","v":"FCBR U11 3ST HILAIRE DE LOULAY"},"X","X","X","X"]
[null,"PLATEAU PH2","FCBR U11 4","PLATEAU","2023-12-09","13H45","visiteur","STADE ST HILAIRE DE LOULAY","ST HILAIRE DE LOULAY",{"$f":"CONCATENATE(C285,I285)","v":"FCBR U11 4ST HILAIRE DE LOULAY"},"X","X","X","X"]
[null,"PLATEAU PH1","GFVL U11F","PLATEAU","2023-12-09","13H45","visiteur","TERRAIN BOUFFERE","BOUFFERE",{"$f":"CONCATENATE(C286,I286)","v":"GFVL U11FBOUFFERE"},"X","X","X","X"]
[null,"CHAMPIONNAT PH2","GFVL U13F","ENT. BRUFFIERE GETIG 1","2023-12-09","10H30","visiteur","STADE LA BRUFFIERE","LA BRUFFIERE",{"$f":"CONCATENATE(C287,I287)","v":"GFVL U13FLA BRUFFIERE"},"X","X"]
[null,"PLATEAU PH1","FCBR U7","PLATEAU","2023-12-09","10H30","visiteur","STADE MONTREVERD","MONTREVERD",{"$f":"CONCATENATE(C288,I288)","v":"FCBR U7MONTREVERD"},"X","X","X","X"]
[null,"CHAMPIONNAT PH2","FCBR U13 1","L HERBERGEMENT SM 1","2023-12-09","10H15","Recevant","TERRAIN SYNTHETIQUE BOUAINE","ST PHILBERT DE BOUAINE",{"$f":"CONCATENATE(C289,I289)","v":"FCBR U13 1ST PHILBERT DE BOUAINE"},"PETIT Edouard","X","X","X"]
[null,"CHAMPIONNAT PH2","FCBR U13 2","TREIZE SEPTIERS SM 1","2023-12-09","10H15","visiteur","STADE TREIZE SEPTIERS","TREIZE SEPTIERS",{"$f":"CONCATENATE(C290,I290)","v":"FCBR U13 2TREIZE SEPTIERS"},null,"X","X","X"]
[null,"CHAMPIONNAT PH2","FCBR U13 3","MONTAIGU VENDEE FOOT 5","2023-12-09","10H15","Recevant","TERRAIN SYNTHETIQUE BOUAINE","ST PHILBERT DE BOUAINE",{"$f":"CONCATENATE(C291,I291)","v":"FCBR U13 3ST PHILBERT DE BOUAINE"},"DOREAU Damien","X","X","X"]
[null,"CHAMPIONNAT","FCBR LOISIRS","EXEMPT","2023-12-08","21H00","visiteur","","",{"$f":"CONCATENATE(C292,I292)","v":"FCBR LOISIRS"},"X","X","X","X"]
[null,"CHAMPIONNAT","FCBR 1","GUERANDE ST AUBIN 1","2023-12-03","15H00","visiteur","STADE JEAN MÉNAGER 1","GUERANDE",{"$f":"CONCATENATE(C293,I293)","v":"FCBR 1GUERANDE"},"X","X","X","X"]
[null,"CHAMPIONNAT","FCBR 2","US MARAIS BEAUVOIR S/MER 1","2023-12-03","15H00","Recevant","TERRAIN SYNTHETIQUE BOUAINE","ST PHILBERT DE BOUAINE",{"$f":"CONCATENATE(C294,I294)","v":"FCBR 2ST PHILBERT DE BOUAINE"},"GUILLOT Michael","LEDOUX Daniel"]
[null,"CHAMPIONNAT PH1","FCBR 3","MONTAIGU VF 5","2023-12-03","12H30","Recevant","TERRAIN SYNTHETIQUE BOUAINE","ST PHILBERT DE BOUAINE",{"$f":"CONCATENATE(C295,I295)","v":"FCBR 3ST PHILBERT DE BOUAINE"},"MANDIN Gerard","DIRIGEANT"]
[null,"CHAMPIONNAT","GFVL SENIORS","ST GEORGES GUYONNIERE FC 2","2023-12-03","12H00","visiteur","STADE ST GEORGES DE MONTAIGU","ST GEORGES DE MONTAIGU",{"$f":"CONCATENATE(C296,I296)","v":"GFVL SENIORSST GEORGES DE MONTAIGU"},"X","X","X","X"]
[null,"CHAMPIONNAT PH2","FCBR U15 2","LE POIRE/VIE VF 3","2023-12-03","10H00","Recevant","TERRAIN HONNEUR ROCHESERVIERE","ROCHESERVIERE",{"$f":"CONCATENATE(C297,I297)","v":"FCBR U15 2ROCHESERVIERE"},"PIVETEAU Bernard","DIRIGEANT","X","X"]
[null,"CHAMPIONNAT PH2","FCBR U15 1","BRETIGNOLLES BREM ES 1","2023-12-03","10H00","visiteur","STADE BRETIGNOLLES SUR MER","BRETIGNOLLES SUR MER",{"$f":"CONCATENATE(C298,I298)","v":"FCBR U15 1BRETIGNOLLES SUR MER"},null,null,"X","X"]
[null,"CHAMPIONNAT PH2","FCBR U18 1","GJ ST FULGENT USBB U 1","2023-12-02","16H30","Recevant","TERRAIN SYNTHETIQUE BOUAINE","ST PHILBERT DE BOUAINE",{"$f":"CONCATENATE(C299,I299)","v":"FCBR U18 1ST PHILBERT DE BOUAINE"},"OFFICIEL","BUET Mathis","X","X"]
[null,"CHAMPIONNAT PH2","GFVL U15F","COMMEQUIERS 1","2023-12-02","15H00","visiteur","STADE COMMEQUIERS","COMMEQUIERS",{"$f":"CONCATENATE(C300,I300)","v":"GFVL U15FCOMMEQUIERS"}]
[null,"CHAMPIONNAT PH2","FCBR U18 2","GJ 13SEPTIERS BRUF 2","2023-12-02","15H00","visiteur","STADE LA BRUFFIERE","LA BRUFFIERE",{"$f":"CONCATENATE(C301,I301)","v":"FCBR U18 2LA BRUFFIERE"},"X","X","X","X"]
[null,"CHAMPIONNAT PH2","FCBR U17","GJ 13SEPTIERS BRUF 1","2023-12-02","14H00","Recevant","TERRAIN SYNTHETIQUE BOUAINE","ST PHILBERT DE BOUAINE",{"$f":"CONCATENATE(C302,I302)","v":"FCBR U17ST PHILBERT DE BOUAINE"},"GALLOT David","GUERY Lyxian","X","X"]
[null,"PLATEAU PH2","FCBR U11 1","PLATEAU","2023-12-02","13H45","visiteur","STADE LES BROUZILS","LES BROUZILS",{"$f":"CONCATENATE(C303,I303)","v":"FCBR U11 1LES BROUZILS"},"X","X","X","X"]
[null,"PLATEAU PH2","FCBR U11 2","PLATEAU","2023-12-02","13H45","visiteur","STADE LES BROUZILS","LES BROUZILS",{"$f":"CONCATENATE(C304,I304)","v":"FCBR U11 2LES BROUZILS"},"X","X","X","X"]
[null,"PLATEAU PH2","FCBR U11 3","PLATEAU","2023-12-02","13H45","Recevant","TERRAIN ENTRAINEMENT ROCHESERVIERE","ROCHESERVIERE",{"$f":"CONCATENATE(C305,I305)","v":"FCBR U11 3ROCHESERVIERE"},"X","X","X","X"]
[null,"PLATEAU PH2","FCBR U11 4","PLATEAU","2023-12-02","13H45","Recevant","TERRAIN ENTRAINEMENT ROCHESERVIERE","ROCHESERVIERE",{"$f":"CONCATENATE(C306,I306)","v":"FCBR U11 4ROCHESERVIERE"},"X","X","X","X"]
[null,"PLATEAU PH1","GFVL U11F","PLATEAU","2023-12-02","13H45","visiteur","STADE ST JEAN DE MONTS","ST JEAN DE MONTS",{"$f":"CONCATENATE(C307,I307)","v":"GFVL U11FST JEAN DE MONTS"},"X","X","X","X"]
[null,"CHAMPIONNAT PH1","GFVL U18F","FONTENAY VF 1","2023-12-02","13H00","visiteur","PARC DES SPORTS ANDRÉ FORENS 1","FONTENAY LE COMTE",{"$f":"CONCATENATE(C308,I308)","v":"GFVL U18FFONTENAY LE COMTE"},"X","X","X","X"]
[null,"CHAMPIONNAT PH2","GFVL U13F","COMMEQUIERS 1","2023-12-02","10H30","visiteur","STADE COMMEQUIERS","COMMEQUIERS",{"$f":"CONCATENATE(C309,I309)","v":"GFVL U13FCOMMEQUIERS"},"X","X"]
[null,"PLATEAU PH1","FCBR U9","PLATEAU - POULE D","2023-12-02","10H30","visiteur","STADE DE L'HERBERGEMENT","HERBERGEMENT",{"$f":"CONCATENATE(C310,I310)","v":"FCBR U9HERBERGEMENT"}]
[null,"PLATEAU PH1","FCBR U9","PLATEAU - POULE B","2023-12-02","10H30","visiteur","STADE ST GEORGES DE MONTAIGU","ST GEORGES DE MONTAIGU",{"$f":"CONCATENATE(C311,I311)","v":"FCBR U9ST GEORGES DE MONTAIGU"},null,null,null,null,"JAUNET Matteo","GALLOT Enzo","OUVRARD Twany","RIAHI Firas"]
[null,"CHAMPIONNAT PH2","FCBR U13 1","BOUFFERE AS 1","2023-12-02","10H15","visiteur","STADE BOUFFERE","BOUFFERE",{"$f":"CONCATENATE(C312,I312)","v":"FCBR U13 1BOUFFERE"}]
[null,"CHAMPIONNAT PH2","FCBR U13 2","LE POIRE/VIE VF 4","2023-12-02","10H15","Recevant","TERRAIN SYNTHETIQUE BOUAINE","ST PHILBERT DE BOUAINE",{"$f":"CONCATENATE(C313,I313)","v":"FCBR U13 2ST PHILBERT DE BOUAINE"},"BUET Mathis"]
[null,"CHAMPIONNAT PH2","FCBR U13 3","L HERBERGEMENT SM 3","2023-12-02","10H15","visiteur","STADE L'HERBERGEMENT","L HERBERGEMENT",{"$f":"CONCATENATE(C314,I314)","v":"FCBR U13 3L HERBERGEMENT"}]
[null,"PLATEAU PH1","GFVL LOISIRS","PLATEAU","2023-11-28","19H30","Recevant","TERRAIN SYNTHETIQUE BOUAINE","ST PHILBERT DE BOUAINE",{"$f":"CONCATENATE(C315,I315)","v":"GFVL LOISIRSST PHILBERT DE BOUAINE"},"X"]
[null,"CHAMPIONNAT","FCBR 2","HIRONDELLES DE SOULLANS 1","2023-11-26","15H00","visiteur","STADE MUNICIPAL 1","SOULLANS",{"$f":"CONCATENATE(C316,I316)","v":"FCBR 2SOULLANS"},"GUIBERT Freddy",null,"X","X"]
[null,"CHAMPIONNAT","FCBR 1","ST ANDRE DES EAUX SA 1","2023-11-26","15H00","Recevant","TERRAIN SYNTHETIQUE BOUAINE","ST PHILBERT DE BOUAINE",{"$f":"CONCATENATE(C317,I317)","v":"FCBR 1ST PHILBERT DE BOUAINE"},"OFFICIEL","HUCHET Pierrick","X","X"]
[null,"CHAMPIONNAT PH1","FCBR 3","BOUFFERE AS 3","2023-11-26","13H00","visiteur","STADE MUNICIPAL 2","BOUFFERE",{"$f":"CONCATENATE(C318,I318)","v":"FCBR 3BOUFFERE"},"X","X","X","X"]
[null,"CHAMPIONNAT","GFVL SENIORS","LANDERONDE ST GEORGES 1","2023-11-26","12H30","Recevant","TERRAIN SYNTHETIQUE BOUAINE","ST PHILBERT DE BOUAINE",{"$f":"CONCATENATE(C319,I319)","v":"GFVL SENIORSST PHILBERT DE BOUAINE"},"OFFICIEL","DIRIGEANT","X","X"]
[null,"CHAMPIONNAT PH2","FCBR U15 2","GJ HERBERGEMENT USSAM 3","2023-11-26","10H00","visiteur","STADE HERBERGEMENT","HERBERGEMENT",{"$f":"CONCATENATE(C320,I320)","v":"FCBR U15 2HERBERGEMENT"},null,null,"X","X"]
[null,"CHAMPIONNAT PH2","FCBR U15 1","GJ BROUZIL-CHAVAGRAB 1","2023-11-26","10H00","visiteur","STADE LES BROUZILS","LES BROUZILS",{"$f":"CONCATENATE(C321,I321)","v":"FCBR U15 1LES BROUZILS"},null,null,"X","X"]
[null,"CHAMPIONNAT PH2","FCBR U18 1","MOUILLERON LE CAPTIF 1","2023-11-25","16H30","Recevant","TERRAIN SYNTHETIQUE BOUAINE","ST PHILBERT DE BOUAINE",{"$f":"CONCATENATE(C322,I322)","v":"FCBR U18 1ST PHILBERT DE BOUAINE"},"OFFICIEL","BUET Mathis","X","X"]
[null,"CHAMPIONNAT PH2","FCBR U18 2","EXEMPT","2023-11-25","15H00","visiteur","","",{"$f":"CONCATENATE(C323,I323)","v":"FCBR U18 2"},"X","X","X","X"]
[null,"CHAMPIONNAT PH1","GFVL U18F","ST GEORGES GUYONNIERE FC 2","2023-11-25","15H00","visiteur","STADE LA GUYONNIERE","LA GUYONNIERE",{"$f":"CONCATENATE(C324,I324)","v":"GFVL U18FLA GUYONNIERE"},"X","X","X","X"]
[null,"CHAMPIONNAT PH2","FCBR U17","GJ BOUFFERE S2GFC 2","2023-11-25","14H00","Recevant","TERRAIN SYNTHETIQUE BOUAINE","ST PHILBERT DE BOUAINE",{"$f":"CONCATENATE(C325,I325)","v":"FCBR U17ST PHILBERT DE BOUAINE"},"GALLOT David","BUET Mathis","X","X"]
[null,"PLATEAU PH2","FCBR U11 1","PLATEAU","2023-11-25","13H45","Recevant","TERRAIN ENTRAINEMENT ROCHESERVIERE","ROCHESERVIERE",{"$f":"CONCATENATE(C326,I326)","v":"FCBR U11 1ROCHESERVIERE"},"X","X","X","X"]
[null,"PLATEAU PH2","FCBR U11 2","PLATEAU","2023-11-25","13H45","Recevant","TERRAIN ENTRAINEMENT ROCHESERVIERE","ROCHESERVIERE",{"$f":"CONCATENATE(C327,I327)","v":"FCBR U11 2ROCHESERVIERE"},"X","X","X","X"]
[null,"PLATEAU PH2","FCBR U11 3","PLATEAU","2023-11-25","13H45","visiteur","STADE MONTREVERD","MONTREVERD",{"$f":"CONCATENATE(C328,I328)","v":"FCBR U11 3MONTREVERD"},"X","X","X","X"]
[null,"PLATEAU PH2","FCBR U11 4","PLATEAU","2023-11-25","13H45","visiteur","STADE MONTREVERD","MONTREVERD",{"$f":"CONCATENATE(C329,I329)","v":"FCBR U11 4MONTREVERD"},"X","X","X","X"]
[null,"PLATEAU PH1","GFVL U11F","PLATEAU","2023-11-25","13H45","visiteur","TERRAIN CHALLANS","CHALLANS",{"$f":"CONCATENATE(C330,I330)","v":"GFVL U11FCHALLANS"},"X","X","X","X"]
[null,"CHAMPIONNAT PH2","GFVL U15F","AIZENAY FRANCE 1","2023-11-25","11H00","visiteur","STADE AIZENAY","AIZENAY",{"$f":"CONCATENATE(C331,I331)","v":"GFVL U15FAIZENAY"}]
[null,"CHAMPIONNAT PH2","GFVL U13F","ST GEORGES GUYONNIER 1","2023-11-25","10H30","Recevant","TERRAIN ENTRAINEMENT ROCHESERVIERE","ROCHESERVIERE",{"$f":"CONCATENATE(C332,I332)","v":"GFVL U13FROCHESERVIERE"},"GOUPILLEAU Pauline","X"]
[null,"PLATEAU PH1","FCBR U7","PLATEAU","2023-11-25","10H30","Recevant","TERRAIN HONNEUR ROCHESERVIERE","ROCHESERVIERE",{"$f":"CONCATENATE(C333,I333)","v":"FCBR U7ROCHESERVIERE"},"X","X"]
[null,"CHAMPIONNAT PH2","FCBR U13 1","VERRIE ST-AUBIN VDS 1","2023-11-25","10H15","Recevant","TERRAIN HERBE BOUAINE","ST PHILBERT DE BOUAINE",{"$f":"CONCATENATE(C334,I334)","v":"FCBR U13 1ST PHILBERT DE BOUAINE"},"HUCHET Germain"]
[null,"CHAMPIONNAT PH2","FCBR U13 2","MESNARD VENDRENNES 1","2023-11-25","10H15","visiteur","STADE VENDRENNES","VENDRENNES",{"$f":"CONCATENATE(C335,I335)","v":"FCBR U13 2VENDRENNES"}]
[null,"CHAMPIONNAT PH2","FCBR U13 3","LA BRUFFIERE AS 2","2023-11-25","10H15","Recevant","TERRAIN HERBE BOUAINE","ST PHILBERT DE BOUAINE",{"$f":"CONCATENATE(C336,I336)","v":"FCBR U13 3ST PHILBERT DE BOUAINE"},"SORIN Dorian"]
[null,"CHAMPIONNAT PH2","FCBR U15 2","GJ NDRIEZ VIE MARAIS 3","2023-11-19","9H00","Recevant","TERRAIN SYNTHETIQUE BOUAINE","ST PHILBERT DE BOUAINE",{"$f":"CONCATENATE(C337,I337)","v":"FCBR U15 2ST PHILBERT DE BOUAINE"},"SORIN Dimitri","DIRIGEANT","X","X"]
[null,"CHAMPIONNAT","FCBR 2","AS ST GERVAIS 1","2023-11-19","15H30","Recevant","TERRAIN SYNTHETIQUE BOUAINE","ST PHILBERT DE BOUAINE",{"$f":"CONCATENATE(C338,I338)","v":"FCBR 2ST PHILBERT DE BOUAINE"},"GRATTON Christophe","HUCHET Pierrick","X","X"]
[null,"CHAMPIONNAT PH1","FCBR 3","L HERBERGEMENT SM 3","2023-11-19","13H00","visiteur","STADE LEONARD DE VINCI","MONTAIGU",{"$f":"CONCATENATE(C339,I339)","v":"FCBR 3MONTAIGU"},"X","X","X","X"]
[null,"CHAMPIONNAT","GFVL SENIORS","POUZAUGES CHATAIGNERAIE 1","2023-11-19","13H00","Recevant","TERRAIN SYNTHETIQUE BOUAINE","ST PHILBERT DE BOUAINE",{"$f":"CONCATENATE(C340,I340)","v":"GFVL SENIORSST PHILBERT DE BOUAINE"},"OFFICIEL","DIRIGEANT"]
[null,"CHAMPIONNAT PH2","FCBR U15 1","GJ TALMONT STE FOY 1","2023-11-19","11H00","Recevant","TERRAIN SYNTHETIQUE BOUAINE","ST PHILBERT DE BOUAINE",{"$f":"CONCATENATE(C341,I341)","v":"FCBR U15 1ST PHILBERT DE BOUAINE"},"OFFICIEL","DIRIGEANT","X","X"]
[null,"CHAMPIONNAT","FCBR 1","LES LUCS SUR BOULOGNE 1","2023-11-18","18H30","Recevant","TERRAIN SYNTHETIQUE BOUAINE","ST PHILBERT DE BOUAINE",{"$f":"CONCATENATE(C342,I342)","v":"FCBR 1ST PHILBERT DE BOUAINE"},"OFFICIEL","DIRIGEANT"]
[null,"CHAMPIONNAT PH2","GFVL U15F","ENT.LE POIRE-SALIGNY 1","2023-11-18","16H00","Recevant","TERRAIN SYNTHETIQUE BOUAINE","ST PHILBERT DE BOUAINE",{"$f":"CONCATENATE(C343,I343)","v":"GFVL U15FST PHILBERT DE BOUAINE"},"SENIORS FC LOGNE"]
[null,"CHAMPIONNAT PH1","GFVL U18F","FOOT ESPOIR 85 1","2023-11-18","15H30","visiteur","STADE MOUZEUIL ST MARTIN","MOUZEUIL ST MARTIN",{"$f":"CONCATENATE(C344,I344)","v":"GFVL U18FMOUZEUIL ST MARTIN"}]
[null,"CHAMPIONNAT PH1","GFVL U18F","FOOT ESPOIR 85 1","2023-11-18","15H00","visiteur","STADE VALÈRE GANDEMER","MOUZEUIL ST MARTIN",{"$f":"CONCATENATE(C345,I345)","v":"GFVL U18FMOUZEUIL ST MARTIN"},"X","X","X","X"]
[null,"CHAMPIONNAT PH2","FCBR U18 2","MONTAIGU VENDEE FOOT 2","2023-11-18","15H00","Recevant","TERRAIN HONNEUR ROCHESERVIERE","ROCHESERVIERE",{"$f":"CONCATENATE(C346,I346)","v":"FCBR U18 2ROCHESERVIERE"},"DOUILLARD Yannick","DIRIGEANT","X","X"]
[null,"CHAMPIONNAT PH2","FCBR U18 1","FALLERON FROIDFOND 1","2023-11-18","15H00","visiteur","STADE FALLERON","FALLERON",{"$f":"CONCATENATE(C347,I347)","v":"FCBR U18 1FALLERON"},"X","X","X","X"]
[null,"CHAMPIONNAT PH2","FCBR U17","MORTAGNE S/SEVRE 1","2023-11-18","15H00","visiteur","STADE MORTAGNE SUR SEVRE","MORTAGNE SUR SEVRE",{"$f":"CONCATENATE(C348,I348)","v":"FCBR U17MORTAGNE SUR SEVRE"},null,null,"X","X"]
[null,"PLATEAU PH2","FCBR U11 1","PLATEAU","2023-11-18","13H45","visiteur","STADE LES LUCS SUR BOULOGNE","LES LUCS SUR BOULOGNE",{"$f":"CONCATENATE(C349,I349)","v":"FCBR U11 1LES LUCS SUR BOULOGNE"},"X","X","X","X"]
[null,"PLATEAU PH2","FCBR U11 2","PLATEAU","2023-11-18","13H45","visiteur","STADE LES LUCS SUR BOULOGNE","LES LUCS SUR BOULOGNE",{"$f":"CONCATENATE(C350,I350)","v":"FCBR U11 2LES LUCS SUR BOULOGNE"},"X","X","X","X"]
[null,"PLATEAU PH2","FCBR U11 3","PLATEAU","2023-11-18","13H45","Recevant","TERRAIN SYNTHETIQUE BOUAINE","ST PHILBERT DE BOUAINE",{"$f":"CONCATENATE(C351,I351)","v":"FCBR U11 3ST PHILBERT DE BOUAINE"},"X","X","X","X"]
[null,"PLATEAU PH2","FCBR U11 4","PLATEAU","2023-11-18","13H45","Recevant","TERRAIN SYNTHETIQUE BOUAINE","ST PHILBERT DE BOUAINE",{"$f":"CONCATENATE(C352,I352)","v":"FCBR U11 4ST PHILBERT DE BOUAINE"},"X","X","X","X"]
[null,"PLATEAU PH1","GFVL U11F","PLATEAU","2023-11-18","13H45","visiteur","TERRAIN LA ROCHE ESO","LA ROCHE SUR YON",{"$f":"CONCATENATE(C353,I353)","v":"GFVL U11FLA ROCHE SUR YON"},"X","X","X","X"]
[null,"CHAMPIONNAT PH2","GFVL U13F","ENT.FOV PAYS DE MTS 1","2023-11-18","10H30","visiteur","STADE NOTRE DAME DE MONTS","NOTRE DAME DE MONTS",{"$f":"CONCATENATE(C354,I354)","v":"GFVL U13FNOTRE DAME DE MONTS"},"X","X"]
[null,"PLATEAU PH1","FCBR U9","PLATEAU - POULE D","2023-11-18","10H30","Recevant","TERRAIN HONNEUR ROCHESERVIERE","ROCHESERVIERE",{"$f":"CONCATENATE(C355,I355)","v":"FCBR U9ROCHESERVIERE"},"X",null,"PITREY Benjamin","LAPILUS Dylan","BLIENT Cyprien","CHASSELOUP Noah","DUGAST Sacha","FAVENNEC Elohann"]
[null,"PLATEAU PH1","FCBR U9","PLATEAU - POULE B","2023-11-18","10H30","visiteur","STADE DE BOUFFERE","BOUFFERE",{"$f":"CONCATENATE(C356,I356)","v":"FCBR U9BOUFFERE"}]
[null,"CHAMPIONNAT PH2","FCBR U13 1","MONTAIGU VENDEE FOOT 2","2023-11-18","10H15","visiteur","STADE ST HILAIRE DE LOULAY","ST HILAIRE DE LOULAY",{"$f":"CONCATENATE(C357,I357)","v":"FCBR U13 1ST HILAIRE DE LOULAY"}]
[null,"CHAMPIONNAT PH2","FCBR U13 2","GJ BROUZIL-CHAVAGRAB 2","2023-11-18","10H15","Recevant","TERRAIN HONNEUR ROCHESERVIERE","ROCHESERVIERE",{"$f":"CONCATENATE(C358,I358)","v":"FCBR U13 2ROCHESERVIERE"},"LIMOUSIN Lucien"]
[null,"CHAMPIONNAT PH2","FCBR U13 3","TREIZE SEPTIERS SM 3","2023-11-18","10H15","visiteur","STADE TREIZE SEPTIERS","TREIZE SEPTIERS",{"$f":"CONCATENATE(C359,I359)","v":"FCBR U13 3TREIZE SEPTIERS"}]
[null,"CHAMPIONNAT","FCBR LOISIRS","CHAUCHE COP CCFO 1","2023-11-17","21H00","visiteur","STADE CHAUCHE","CHAUCHE",{"$f":"CONCATENATE(C360,I360)","v":"FCBR LOISIRSCHAUCHE"},"X","X","X","X"]
[null,"CHAMPIONNAT","FCBR 1","LA ROCHE VF 3","2023-11-12","16H00","Recevant","STADE LA ROCHE SUR YON","LA ROCHE SUR YON",{"$f":"CONCATENATE(C361,I361)","v":"FCBR 1LA ROCHE SUR YON"},"OFFICIEL",null,"X","X"]
[null,"CHAMPIONNAT","FCBR 2","LES LUCS SUR BOULOGNE 2","2023-11-12","13H30","Recevant","TERRAIN SYNTHETIQUE BOUAINE","ST PHILBERT DE BOUAINE",{"$f":"CONCATENATE(C362,I362)","v":"FCBR 2ST PHILBERT DE BOUAINE"},"LEDOUX Daniel","HUCHET Pierrick"]
[null,"CHAMPIONNAT PH1","FCBR 3","BAZOGES BEAUREPAIRE 3","2023-11-12","11H00","Recevant","TERRAIN SYNTHETIQUE BOUAINE","ST PHILBERT DE BOUAINE",{"$f":"CONCATENATE(C363,I363)","v":"FCBR 3ST PHILBERT DE BOUAINE"},"DOUILLARD Yannick","DIRIGEANT"]
[null,"CHAMPIONNAT PH2","FCBR U15 2","GJ BEAULIEU LAND-SG 2","2023-11-12","10H00","visiteur","STADE BEAULIEU SOUS LA ROCHE","BEAULIEU SOUS LA ROCHE",{"$f":"CONCATENATE(C364,I364)","v":"FCBR U15 2BEAULIEU SOUS LA ROCHE"},null,null,"X","X"]
[null,"CHAMPIONNAT PH2","FCBR U15 1","GJ LUCON USMTCL ASMC 1","2023-11-12","10H00","visiteur","STADE ST MICHEL EN L'HERM","ST MICHEL EN L HERM",{"$f":"CONCATENATE(C365,I365)","v":"FCBR U15 1ST MICHEL EN L HERM"},null,null,"X","X"]
[null,"CHAMPIONNAT PH2","FCBR U18 1","SEVREMONT FC 11","2023-11-11","18H15","Recevant","TERRAIN SYNTHETIQUE BOUAINE","ST PHILBERT DE BOUAINE",{"$f":"CONCATENATE(C366,I366)","v":"FCBR U18 1ST PHILBERT DE BOUAINE"},"OFFICIEL","GABORIAU Alban","X","X"]
[null,"CHAMPIONNAT PH2","FCBR U17","GJ TIFFAUGES BOCAGE 1","2023-11-11","16H00","Recevant","TERRAIN SYNTHETIQUE BOUAINE","ST PHILBERT DE BOUAINE",{"$f":"CONCATENATE(C367,I367)","v":"FCBR U17ST PHILBERT DE BOUAINE"},"GUERY Lyxian","DUGAST Pascal","X","X"]
[null,"CHAMPIONNAT PH2","FCBR U18 2","GJ BELLEVIGNY BBS 2","2023-11-11","15H00","visiteur","STADE BELLEVIGNY","BELLEVIGNY",{"$f":"CONCATENATE(C368,I368)","v":"FCBR U18 2BELLEVIGNY"},"X","X","X","X"]
[null,"PLATEAU PH2","FCBR U11 3","PLATEAU","2023-11-11","14H00","Recevant","TERRAIN SYNTHETIQUE BOUAINE","ST PHILBERT DE BOUAINE",{"$f":"CONCATENATE(C369,I369)","v":"FCBR U11 3ST PHILBERT DE BOUAINE"},"X","X","X","X"]
[null,"PLATEAU PH2","FCBR U11 4","PLATEAU","2023-11-11","14H00","Recevant","TERRAIN SYNTHETIQUE BOUAINE","ST PHILBERT DE BOUAINE",{"$f":"CONCATENATE(C370,I370)","v":"FCBR U11 4ST PHILBERT DE BOUAINE"},"X","X","X","X"]
[null,"PLATEAU PH1","GFVL U11F","PLATEAU","2023-11-11","13H45","visiteur","TERRAIN BOUFFERE","BOUFFERE",{"$f":"CONCATENATE(C371,I371)","v":"GFVL U11FBOUFFERE"},"X","X","X","X"]
[null,"PLATEAU PH2","FCBR U11 1","PLATEAU","2023-11-11","12H30","Recevant","TERRAIN SYNTHETIQUE BOUAINE","ST PHILBERT DE BOUAINE",{"$f":"CONCATENATE(C372,I372)","v":"FCBR U11 1ST PHILBERT DE BOUAINE"},"X","X","X","X"]
[null,"PLATEAU PH2","FCBR U11 2","PLATEAU","2023-11-11","12H30","Recevant","TERRAIN SYNTHETIQUE BOUAINE","ST PHILBERT DE BOUAINE",{"$f":"CONCATENATE(C373,I373)","v":"FCBR U11 2ST PHILBERT DE BOUAINE"},"X","X","X","X"]
[null,"PLATEAU PH1","FCBR U7","PLATEAU","2023-11-11","10H30","visiteur","STADE MONTREVERD","MONTREVERD",{"$f":"CONCATENATE(C374,I374)","v":"FCBR U7MONTREVERD"},"X","X","X","X"]
[null,"CHAMPIONNAT","FCBR LOISIRS","SALIGNY BELLEVIGNY 1","2023-11-10","21H00","Recevant","TERRAIN SYNTHETIQUE BOUAINE","ST PHILBERT DE BOUAINE",{"$f":"CONCATENATE(C375,I375)","v":"FCBR LOISIRSST PHILBERT DE BOUAINE"},"X","X","X","X"]
[null,"PLATEAU PH1","GFVL LOISIRS","PLATEAU","2023-11-07","19H30","visiteur","TERRAIN MONTREVERD","MONTREVERD",{"$f":"CONCATENATE(C376,I376)","v":"GFVL LOISIRSMONTREVERD"}]
[null,"COUPE","FCBR U18 1","FC RETZ 1","2023-10-28","15H00","visiteur","STADE STE PAZANNE","STE PAZANNE",{"$f":"CONCATENATE(C377,I377)","v":"FCBR U18 1STE PAZANNE"},"X","X","X","X"]
[null,"CHAMPIONNAT","FCBR 2","FC LA GENETOUZE 2","2023-10-22","15H00","Recevant","TERRAIN SYNTHETIQUE BOUAINE","ST PHILBERT DE BOUAINE",{"$f":"CONCATENATE(C378,I378)","v":"FCBR 2ST PHILBERT DE BOUAINE"},"GRATTON Christophe","POGU Yves"]
[null,"CHAMPIONNAT","GFVL SENIORS","HERBERGEMENT SM 1","2023-10-22","13H00","visiteur","STADE HERBERGEMENT","HERBERGEMENT",{"$f":"CONCATENATE(C379,I379)","v":"GFVL SENIORSHERBERGEMENT"},"X","X","X","X"]
[null,"CHAMPIONNAT PH1","FCBR 3","EXEMPT","2023-10-22","12H30","Recevant",null,null,{"$f":"CONCATENATE(C380,I380)","v":"FCBR 3"},"X"]
[null,"COUPE","FCBR U15 1","BOUIN BOIS DE CENE 1","2023-10-22","10H00","visiteur","STADE BEAUVOIR SUR MER","BEAUVOIR SUR MER",{"$f":"CONCATENATE(C381,I381)","v":"FCBR U15 1BEAUVOIR SUR MER"},"BOUDELIER Nicolas","DIRIGEANT","X","X"]
[null,"COUPE","FCBR U15 2","FC LA GARNACHE 1","2023-10-22","10H00","Recevant","TERRAIN SYNTHETIQUE BOUAINE","ST PHILBERT DE BOUAINE",{"$f":"CONCATENATE(C382,I382)","v":"FCBR U15 2ST PHILBERT DE BOUAINE"},"MANDIN Cyril","DIRIGEANT","X","X"]
[null,"CHAMPIONNAT","FCBR 1","PORNICHET ES 1","2023-10-21","18H00","visiteur","STADE CELESTIN LALANDE 1","PORNICHET",{"$f":"CONCATENATE(C383,I383)","v":"FCBR 1PORNICHET"},"X","X","X","X"]
[null,"COUPE","FCBR U18 1","FC ST SEBASTIEN 1","2023-10-21","15H00","Recevant","TERRAIN HONNEUR ROCHESERVIERE","ROCHESERVIERE",{"$f":"CONCATENATE(C384,I384)","v":"FCBR U18 1ROCHESERVIERE"},"OFFICIEL","GAUTRON Xavier","X","X"]
[null,"CHAMPIONNAT PH1","GFVL U18F","ENT.CHAILLE FCPB 1","2023-10-21","15H00","Recevant","TERRAIN CORCOUE SUR LOGNE","FC LOGNE",{"$f":"CONCATENATE(C385,I385)","v":"GFVL U18FFC LOGNE"},"SENIORS FC LOGNE","X","X","X"]
[null,"PLATEAU PH1","FCBR U11 1","PLATEAU","2023-10-21","14H30","visiteur","STADE ST FULGENT","ST FULGENT",{"$f":"CONCATENATE(C386,I386)","v":"FCBR U11 1ST FULGENT"},"X","X","X","X"]
[null,"PLATEAU PH1","FCBR U11 2","PLATEAU","2023-10-21","14H30","visiteur","STADE SALIGNY","SALIGNY",{"$f":"CONCATENATE(C387,I387)","v":"FCBR U11 2SALIGNY"},"X","X","X","X"]
[null,"PLATEAU PH1","FCBR U11 3","PLATEAU","2023-10-21","14H30","Recevant","TERRAIN SYNTHETIQUE BOUAINE","ST PHILBERT DE BOUAINE",{"$f":"CONCATENATE(C388,I388)","v":"FCBR U11 3ST PHILBERT DE BOUAINE"},"X","X","X","X"]
[null,"PLATEAU PH1","FCBR U11 4","PLATEAU","2023-10-21","14H30","Recevant","TERRAIN SYNTHETIQUE BOUAINE","ST PHILBERT DE BOUAINE",{"$f":"CONCATENATE(C389,I389)","v":"FCBR U11 4ST PHILBERT DE BOUAINE"},"X","X","X","X"]
[null,"CHAMPIONNAT PH1","GFVL U13F","BOUFFERE AS 1","2023-10-21","10H30","Recevant","TERRAIN SYNTHETIQUE BOUAINE","ST PHILBERT DE BOUAINE",{"$f":"CONCATENATE(C390,I390)","v":"GFVL U13FST PHILBERT DE BOUAINE"},"X","X"]
[null,"CHAMPIONNAT PH1","GFVL U15F","ASVP 1","2023-10-21","10H30","visiteur","TERRAIN VIEILLEVIGNE","VIEILLEVIGNE",{"$f":"CONCATENATE(C391,I391)","v":"GFVL U15FVIEILLEVIGNE"},"X","X"]
[null,"PLATEAU PH1","FCBR U7","PLATEAU","2023-10-21","10H30","Recevant","TERRAIN SYNTHETIQUE BOUAINE","ST PHILBERT DE BOUAINE",{"$f":"CONCATENATE(C392,I392)","v":"FCBR U7ST PHILBERT DE BOUAINE"},"X","X","BERGER Sylvain","BROSSARD Alexis","COUTHOUIS Leo","LECLAIR Jules","LEDOUX Corentin"]
[null,"CHAMPIONNAT","FCBR LOISIRS","BOUFFERE AS 1","2023-10-20","21H00","Recevant","TERRAIN ENTRAINEMENT ROCHESERVIERE","ROCHESERVIERE",{"$f":"CONCATENATE(C393,I393)","v":"FCBR LOISIRSROCHESERVIERE"},"X","X","X","X"]
[null,"PLATEAU PH1","GFVL LOISIRS","PLATEAU","2023-10-17","19H30","visiteur","TERRAIN LES BROUZILS","LES BROUZILS",{"$f":"CONCATENATE(C394,I394)","v":"GFVL LOISIRSLES BROUZILS"}]
[null,"COUPE","FCBR 1","HIR.SOULLANS","2023-10-15","15H00","Recevant","TERRAIN SYNTHETIQUE BOUAINE","ST PHILBERT DE BOUAINE",{"$f":"CONCATENATE(C395,I395)","v":"FCBR 1ST PHILBERT DE BOUAINE"},"OFFICIEL","DIRIGEANT"]
[null,"CHAMPIONNAT PH1","FCBR 3","MOUCHAMPS ROCHETREJOUX FC 3 - FORFAIT","2023-10-15","12H30","Recevant",null,null,{"$f":"CONCATENATE(C396,I396)","v":"FCBR 3"},"DOUILLARD Yannick","POGU Baptiste"]
[null,"CHAMPIONNAT","FCBR 2","VERRIE ST AUBIN VDS 2","2023-10-15","12H30","Recevant","TERRAIN SYNTHETIQUE BOUAINE","ST PHILBERT DE BOUAINE",{"$f":"CONCATENATE(C397,I397)","v":"FCBR 2ST PHILBERT DE BOUAINE"},"GUIBERT Freddy","POGU Yves"]
[null,"CHAMPIONNAT PH1","FCBR U15 1","GJ ARDELAY ST PAUL 1","2023-10-15","10H00","visiteur","STADE ST PAUL EN PAREDS","ST PAUL EN PAREDS",{"$f":"CONCATENATE(C398,I398)","v":"FCBR U15 1ST PAUL EN PAREDS"},"X","X","X","X"]
[null,"CHAMPIONNAT PH1","FCBR U15 2","MONTAIGU VENDEE FOOTBALL","2023-10-15","10H00","Recevant","TERRAIN HERBE BOUAINE","ST PHILBERT DE BOUAINE",{"$f":"CONCATENATE(C399,I399)","v":"FCBR U15 2ST PHILBERT DE BOUAINE"},"BOUDELIER Nicolas","DIRIGEANT","X","X"]
[null,"CHAMPIONNAT PH1","FCBR U18 2","ST GILLES ST HILAIRE FC 1","2023-10-14","17H00","visiteur","STADE DE LA FORÊT","ST HILAIRE DE RIEZ",{"$f":"CONCATENATE(C400,I400)","v":"FCBR U18 2ST HILAIRE DE RIEZ"},"X","X","X","X"]
[null,"CHAMPIONNAT PH1","FCBR U18 1","GJ ASSON 13-SEPTIERS 1","2023-10-14","15H00","Recevant","TERRAIN HONNEUR ROCHESERVIERE","ROCHESERVIERE",{"$f":"CONCATENATE(C401,I401)","v":"FCBR U18 1ROCHESERVIERE"},"OFFICIEL","HUCHET Germain","X","X"]
[null,"CHAMPIONNAT PH1","GFVL U15F","EXEMPT","2023-10-14","15H00","visiteur","","",{"$f":"CONCATENATE(C402,I402)","v":"GFVL U15F"},"X","X","X","X"]
[null,"CHAMPIONNAT PH1","FCBR U17","GJ ARDELAY AND CO 1","2023-10-14","15H00","Recevant","TERRAIN SYNTHETIQUE BOUAINE","ST PHILBERT DE BOUAINE",{"$f":"CONCATENATE(C403,I403)","v":"FCBR U17ST PHILBERT DE BOUAINE"},"GALLOT David","JEANNEAU François","X","X"]
[null,"PLATEAU PH1","FCBR U11 1","PLATEAU","2023-10-14","14H30","visiteur","STADE MONTREVERD","MONTREVERD",{"$f":"CONCATENATE(C404,I404)","v":"FCBR U11 1MONTREVERD"},"X","X","X","X"]
[null,"PLATEAU PH1","FCBR U11 2","PLATEAU","2023-10-14","14H30","visiteur","STADE LES LUCS SUR BOULOGNE","LES LUCS SUR BOULOGNE",{"$f":"CONCATENATE(C405,I405)","v":"FCBR U11 2LES LUCS SUR BOULOGNE"},"X","X","X","X"]
[null,"PLATEAU PH1","FCBR U11 3","PLATEAU","2023-10-14","14H30","visiteur","STADE MONTREVERD","MONTREVERD",{"$f":"CONCATENATE(C406,I406)","v":"FCBR U11 3MONTREVERD"},"X","X","X","X"]
[null,"PLATEAU PH1","FCBR U11 4","PLATEAU","2023-10-14","14H30","visiteur","STADE MONTREVERD","MONTREVERD",{"$f":"CONCATENATE(C407,I407)","v":"FCBR U11 4MONTREVERD"},"X","X","X","X"]
[null,"PLATEAU PH1","GFVL U11F","PLATEAU","2023-10-14","13H45","visiteur","TERRAIN LA GARNACHE","LA GARNACHE",{"$f":"CONCATENATE(C408,I408)","v":"GFVL U11FLA GARNACHE"},"X","X","X","X"]
[null,"PLATEAU PH1","FCBR U9","PLATEAU - POULE D","2023-10-14","10H30","Recevant","TERRAIN SYNTHETIQUE BOUAINE","ST PHILBERT DE BOUAINE",{"$f":"CONCATENATE(C409,I409)","v":"FCBR U9ST PHILBERT DE BOUAINE"},"X",null,"PITREY Benjamin","GUYONNET Timon","DABO Elie","HONORE Louison","ANDREICHINE Soann","JARDIN Lino"]
[null,"PLATEAU PH1","FCBR U9","PLATEAU - POULE B","2023-10-14","10H30","visiteur","STADE DE L'HERBERGEMENT","HERBERGEMENT",{"$f":"CONCATENATE(C410,I410)","v":"FCBR U9HERBERGEMENT"}]
[null,"CHAMPIONNAT PH1","GFVL U13F","ENT.FOV PAYS DE MTS 1","2023-10-14","10H30","visiteur","STADE NOTRE DAME DE MONTS","NOTRE DAME DE MONTS",{"$f":"CONCATENATE(C411,I411)","v":"GFVL U13FNOTRE DAME DE MONTS"},"X","X","X","X"]
[null,"CHAMPIONNAT PH1","FCBR U13 2","GJ ST DENIS-CHAU-COP 1","2023-10-14","10H15","Recevant","TERRAIN ENTRAINEMENT ROCHESERVIERE","ROCHESERVIERE",{"$f":"CONCATENATE(C412,I412)","v":"FCBR U13 2ROCHESERVIERE"},"BERTAUD Lubin"]
[null,"CHAMPIONNAT PH1","FCBR U13 1","SALLERTAINE EMS 1","2023-10-14","10H15","visiteur","STADE MUNICIPAL","SALLERTAINE",{"$f":"CONCATENATE(C413,I413)","v":"FCBR U13 1SALLERTAINE"},"X","X","X","X"]
[null,"CHAMPIONNAT PH1","FCBR U13 3","EXEMPT","2023-10-14","10H15","visiteur","","",{"$f":"CONCATENATE(C414,I414)","v":"FCBR U13 3"},"X","X","X","X"]
[null,"CHAMPIONNAT","FCBR LOISIRS","FC CHALLANS","2023-10-13","21H00","visiteur","STADE CHALLANS","CHALLANS",{"$f":"CONCATENATE(C415,I415)","v":"FCBR LOISIRSCHALLANS"},"X","X","X","X"]
[null,"CHAMPIONNAT","FCBR 1","US AUBIGNY 1","2023-10-08","15H00","Recevant","TERRAIN HONNEUR ROCHESERVIERE","ROCHESERVIERE",{"$f":"CONCATENATE(C416,I416)","v":"FCBR 1ROCHESERVIERE"},"OFFICIEL","CHARLY","X","X"]
[null,"CHAMPIONNAT","FCBR 2","ILE YEU 1","2023-10-08","13H45","visiteur","STADE JEAN TARAUD","L ILE D YEU",{"$f":"CONCATENATE(C417,I417)","v":"FCBR 2L ILE D YEU"},"LEDOUX Daniel","X","X","X"]
[null,"CHAMPIONNAT PH1","FCBR 3","CHAUCHE COP CCFO 3","2023-10-08","13H00","visiteur","STADE LA COPECHAGNIERE","LA COPECHAGNIERE",{"$f":"CONCATENATE(C418,I418)","v":"FCBR 3LA COPECHAGNIERE"},"X","X","X","X"]
[null,"CHAMPIONNAT PH1","FCBR U15 1","GJ L OIE FCCM 1","2023-10-08","10H00","Recevant","TERRAIN SYNTHETIQUE BOUAINE","ST PHILBERT DE BOUAINE",{"$f":"CONCATENATE(C419,I419)","v":"FCBR U15 1ST PHILBERT DE BOUAINE"},"PIVETEAU Bernard","DIRIGEANT","X","X"]
[null,"CHAMPIONNAT PH1","FCBR U15 2","GJ BOUFFERE S2GFC","2023-10-08","10H00","Recevant","TERRAIN HERBE BOUAINE","ST PHILBERT DE BOUAINE",{"$f":"CONCATENATE(C420,I420)","v":"FCBR U15 2ST PHILBERT DE BOUAINE"},"TENAUD Loic","DIRIGEANT","X","X"]
[null,"CHAMPIONNAT PH1","FCBR U18 2","GJ GIVRAND EGAL SJV 1","2023-10-07","15H00","Recevant","TERRAIN SYNTHETIQUE BOUAINE","ST PHILBERT DE BOUAINE",{"$f":"CONCATENATE(C421,I421)","v":"FCBR U18 2ST PHILBERT DE BOUAINE"},"BOUDELIER Nicolas","GRIMAUD Leo","X","X"]
[null,"CHAMPIONNAT PH1","FCBR U17","GJ BOUFFERE S2GFC 1","2023-10-07","15H00","visiteur","STADE ST GEORGES DE MONTAIGU","ST GEORGES DE MONTAIGU",{"$f":"CONCATENATE(C422,I422)","v":"FCBR U17ST GEORGES DE MONTAIGU"},"X","X","X","X"]
[null,"CHAMPIONNAT PH1","FCBR U18 1","GJ TIFFAUGES BOCAGE 1","2023-10-07","15H00","visiteur","STADE LES LANDES GENUSSON","LES LANDES GENUSSON",{"$f":"CONCATENATE(C423,I423)","v":"FCBR U18 1LES LANDES GENUSSON"},"X","X","X","X"]
[null,"CHAMPIONNAT PH1","GFVL U15F","GF FCFF LA GARNACHE","2023-10-07","15H00","Recevant","TERRAIN CORCOUE SUR LOGNE","FC LOGNE",{"$f":"CONCATENATE(C424,I424)","v":"GFVL U15FFC LOGNE"},"SENIORS FC LOGNE"]
[null,"PLATEAU PH1","FCBR U11 1","PLATEAU","2023-10-07","14H30","visiteur","STADE LE POIRE SUR VIE","LE POIRE SUR VIE",{"$f":"CONCATENATE(C425,I425)","v":"FCBR U11 1LE POIRE SUR VIE"},"X","X","X","X"]
[null,"PLATEAU PH1","FCBR U11 2","PLATEAU","2023-10-07","14H30","Recevant","TERRAIN HERBE BOUAINE","ST PHILBERT DE BOUAINE",{"$f":"CONCATENATE(C426,I426)","v":"FCBR U11 2ST PHILBERT DE BOUAINE"},"X","X","X","X"]
[null,"PLATEAU PH1","FCBR U11 3","PLATEAU","2023-10-07","14H30","visiteur","STADE L'HERBERGEMENT","L'HERBERGEMENT",{"$f":"CONCATENATE(C427,I427)","v":"FCBR U11 3L'HERBERGEMENT"},"X","X","X","X"]
[null,"PLATEAU PH1","FCBR U11 4","PLATEAU","2023-10-07","14H30","visiteur","STADE L'HERBERGEMENT","L'HERBERGEMENT",{"$f":"CONCATENATE(C428,I428)","v":"FCBR U11 4L'HERBERGEMENT"},"X","X","X","X"]
[null,"PLATEAU PH1","GFVL U11F","PLATEAU","2023-10-07","13H45","Recevant","TERRAIN ENTRAINEMENT ROCHESERVIERE","ROCHESERVIERE",{"$f":"CONCATENATE(C429,I429)","v":"GFVL U11FROCHESERVIERE"},"X","X","X","X"]
[null,"PLATEAU PH1","FCBR U7","PLATEAU","2023-10-07","10H30","visiteur","STADE ST DENIS LA CHEVASSE","ST DENIS LA CHEVASSE",{"$f":"CONCATENATE(C430,I430)","v":"FCBR U7ST DENIS LA CHEVASSE"},"X","X","X","X"]
[null,"CHAMPIONNAT PH1","GFVL U13F","CHALLANS FC 1","2023-10-07","10H30","Recevant","TERRAIN SYNTHETIQUE BOUAINE","ST PHILBERT DE BOUAINE",{"$f":"CONCATENATE(C431,I431)","v":"GFVL U13FST PHILBERT DE BOUAINE"},"GOUPILLEAU Pauline"]
[null,"CHAMPIONNAT PH1","FCBR U13 2","GJ LES LUCS LEGE 2","2023-10-07","10H15","Recevant","TERRAIN ENTRAINEMENT ROCHESERVIERE","ROCHESERVIERE",{"$f":"CONCATENATE(C432,I432)","v":"FCBR U13 2ROCHESERVIERE"},"LOUSTALOT Jason"]
[null,"CHAMPIONNAT PH1","FCBR U13 1","ST GILLES ST HILAIRE FC 1","2023-10-07","10H15","visiteur","STADE DE LA FORÊT","ST HILAIRE DE RIEZ",{"$f":"CONCATENATE(C433,I433)","v":"FCBR U13 1ST HILAIRE DE RIEZ"},"X","X","X","X"]
[null,"CHAMPIONNAT PH1","FCBR U13 3","USSAM 2","2023-10-07","10H15","Recevant","TERRAIN ENTRAINEMENT ROCHESERVIERE","ROCHESERVIERE",{"$f":"CONCATENATE(C434,I434)","v":"FCBR U13 3ROCHESERVIERE"},"VISONNEAU Ronan","X","X","X"]
[null,"CHAMPIONNAT","FCBR LOISIRS","LES LUCS S/BOULOGNE 1","2023-10-06","21H00","visiteur","PARC DES SPORTS DES NOISELIÈRES","LES LUCS SUR BOULOGNE",{"$f":"CONCATENATE(C435,I435)","v":"FCBR LOISIRSLES LUCS SUR BOULOGNE"},"X","X","X","X"]
[null,"CHAMPIONNAT","GFVL SENIORS","GF SUD LOIRE MONTAGNE","2023-10-01","15H00","visiteur","STADE LA MONTAGNE","LA MONTAGNE",{"$f":"CONCATENATE(C436,I436)","v":"GFVL SENIORSLA MONTAGNE"}]
[null,"COUPE","FCBR 1","LA CHAPELLE HEULIN FCEV 1","2023-10-01","15H00","visiteur","STADE LE PALLET","LE PALLET",{"$f":"CONCATENATE(C437,I437)","v":"FCBR 1LE PALLET"}]
[null,"CHAMPIONNAT","FCBR 2","MONTAIGU VF 2","2023-10-01","15H00","Recevant","TERRAIN HONNEUR ROCHESERVIERE","ROCHESERVIERE",{"$f":"CONCATENATE(C438,I438)","v":"FCBR 2ROCHESERVIERE"},"GRATTON Christophe","CHARLY"]
[null,"CHAMPIONNAT PH1","FCBR 3","LES EPESSES 3","2023-10-01","12H30","Recevant","TERRAIN HONNEUR ROCHESERVIERE","ROCHESERVIERE",{"$f":"CONCATENATE(C439,I439)","v":"FCBR 3ROCHESERVIERE"},"MANDIN Gerard","DIRIGEANT"]
[null,"CHAMPIONNAT PH1","FCBR U15 1","GJ MOUCHAMPS-VENDRENNES 1","2023-10-01","10H00","visiteur","STADE ROCHETREJOUX","ROCHETREJOUX",{"$f":"CONCATENATE(C440,I440)","v":"FCBR U15 1ROCHETREJOUX"},"X","X","X","X"]
[null,"CHAMPIONNAT PH1","FCBR U15 2","GJ HERBERGEMENT USSAM","2023-10-01","10H00","visiteur","STADE MONTREVERD","MONTREVERD",{"$f":"CONCATENATE(C441,I441)","v":"FCBR U15 2MONTREVERD"},"X","X","X","X"]
[null,"CHAMPIONNAT PH1","FCBR U18 1","GJ BROUZIL-CHAVAGRAB 1","2023-09-30","16H00","Recevant","TERRAIN HONNEUR ROCHESERVIERE","ROCHESERVIERE",{"$f":"CONCATENATE(C442,I442)","v":"FCBR U18 1ROCHESERVIERE"},"OFFICIEL","BUET Mathis","X","X"]
[null,"CHAMPIONNAT PH1","FCBR U18 2","GJ PALLUAU 1","2023-09-30","15H00","visiteur","STADE MUNICIPAL","ST PAUL MONT PENIT",{"$f":"CONCATENATE(C443,I443)","v":"FCBR U18 2ST PAUL MONT PENIT"},"X","X","X","X"]
[null,"CHAMPIONNAT PH1","GFVL U18F","ENT.FOV PAYS DE MTS 1","2023-09-30","15H00","Recevant","TERRAIN CORCOUE SUR LOGNE","FC LOGNE",{"$f":"CONCATENATE(C444,I444)","v":"GFVL U18FFC LOGNE"},"SENIORS FC LOGNE","X","X","X"]
[null,"CHAMPIONNAT PH1","GFVL U15F","CHAUCHE COPECHAGNIÈRE FOOTBALL OLYMPIQUE","2023-09-30","15H00","visiteur","STADE PIERRE MOREAU 1","ST DENIS LA CHEVASSE",{"$f":"CONCATENATE(C445,I445)","v":"GFVL U15FST DENIS LA CHEVASSE"},"X","X","X","X"]
[null,"PLATEAU PH1","FCBR U11 1","PLATEAU","2023-09-30","14H30","Recevant","TERRAIN SYNTHETIQUE BOUAINE","ST PHILBERT DE BOUAINE",{"$f":"CONCATENATE(C446,I446)","v":"FCBR U11 1ST PHILBERT DE BOUAINE"},"X","X","X","X"]
[null,"PLATEAU PH1","FCBR U11 2","PLATEAU","2023-09-30","14H30","visiteur","STADE LES LUCS SUR BOULOGNE","LES LUCS SUR BOULOGNE",{"$f":"CONCATENATE(C447,I447)","v":"FCBR U11 2LES LUCS SUR BOULOGNE"},"X","X","X","X"]
[null,"PLATEAU PH1","FCBR U11 3","PLATEAU","2023-09-30","14H30","Recevant","TERRAIN SYNTHETIQUE BOUAINE","ST PHILBERT DE BOUAINE",{"$f":"CONCATENATE(C448,I448)","v":"FCBR U11 3ST PHILBERT DE BOUAINE"},"X","X","X","X"]
[null,"PLATEAU PH1","FCBR U11 4","PLATEAU","2023-09-30","14H30","Recevant","TERRAIN SYNTHETIQUE BOUAINE","ST PHILBERT DE BOUAINE",{"$f":"CONCATENATE(C449,I449)","v":"FCBR U11 4ST PHILBERT DE BOUAINE"},"X","X","X","X"]
[null,"CHAMPIONNAT PH1","FCBR U17","GJ 13SEPTIERS BRUF 1","2023-09-30","14H00","Recevant","TERRAIN HONNEUR ROCHESERVIERE","ROCHESERVIERE",{"$f":"CONCATENATE(C450,I450)","v":"FCBR U17ROCHESERVIERE"},"BOCQUEL Guillaume","BROSSARD Alexis","X","X"]
[null,"PLATEAU PH1","FCBR U9","PLATEAU - POULE D","2023-09-30","10H30","visiteur","STADE ST GEORGES DE MONTAIGU","ST GEORGES DE MONTAIGU",{"$f":"CONCATENATE(C451,I451)","v":"FCBR U9ST GEORGES DE MONTAIGU"}]
[null,"PLATEAU PH1","FCBR U9","PLATEAU - POULE B","2023-09-30","10H30","visiteur","STADE DE BOUFFERE","BOUFFERE",{"$f":"CONCATENATE(C452,I452)","v":"FCBR U9BOUFFERE"}]
[null,"CHAMPIONNAT PH1","GFVL U13F","GF FCFF LA GARNACHE 1","2023-09-30","10H30","visiteur","STADE DES GENÊTS","LA GARNACHE",{"$f":"CONCATENATE(C453,I453)","v":"GFVL U13FLA GARNACHE"},"X","X","X","X"]
[null,"CHAMPIONNAT PH1","FCBR U13 2","GJ BROUZIL-CHAVAGRAB 2","2023-09-30","10H15","visiteur","STADE DE LA RABATELIERE","LA RABATELIERE",{"$f":"CONCATENATE(C454,I454)","v":"FCBR U13 2LA RABATELIERE"},"X","X","X","X"]
[null,"CHAMPIONNAT PH1","FCBR U13 1","GJ LES LUCS LEGE 1","2023-09-30","10H15","Recevant","TERRAIN SYNTHETIQUE BOUAINE","ST PHILBERT DE BOUAINE",{"$f":"CONCATENATE(C455,I455)","v":"FCBR U13 1ST PHILBERT DE BOUAINE"},"DAHERON Aurelien"]
[null,"CHAMPIONNAT PH1","FCBR U13 3","HERBERGEMENT SM 2","2023-09-30","10H15","visiteur","STADE HERBERGEMENT","L HERBERGEMENT",{"$f":"CONCATENATE(C456,I456)","v":"FCBR U13 3L HERBERGEMENT"},"X","X","X","X"]
[null,"PLATEAU PH1","GFVL LOISIRS","PLATEAU","2023-09-26","19H30","visiteur","TERRAIN BOUFFERE","BOUFFERE",{"$f":"CONCATENATE(C457,I457)","v":"GFVL LOISIRSBOUFFERE"}]
[null,"CHAMPIONNAT","FCBR 1","FC CHALLANS 2","2023-09-24","15H00","visiteur","PARC DES SPORTS 2","CHALLANS",{"$f":"CONCATENATE(C458,I458)","v":"FCBR 1CHALLANS"},"X","X","X","X"]
[null,"CHAMPIONNAT","FCBR 2","USSEP 1","2023-09-24","15H00","Recevant","TERRAIN SYNTHETIQUE BOUAINE","ST PHILBERT DE BOUAINE",{"$f":"CONCATENATE(C459,I459)","v":"FCBR 2ST PHILBERT DE BOUAINE"},"GRATTON Christophe","POGU Yves"]
[null,"CHAMPIONNAT","GFVL SENIORS","GF NIEUL JARDAVRILLE 1","2023-09-24","13H00","visiteur","STADE NIEUL LE DOLENT","NIEUL LE DOLENT",{"$f":"CONCATENATE(C460,I460)","v":"GFVL SENIORSNIEUL LE DOLENT"},"X","X","X","X"]
[null,"CHAMPIONNAT PH1","FCBR 3","ST GEORGES GUYONNIERE FC 3","2023-09-24","12H30","Recevant","TERRAIN SYNTHETIQUE BOUAINE","ST PHILBERT DE BOUAINE",{"$f":"CONCATENATE(C461,I461)","v":"FCBR 3ST PHILBERT DE BOUAINE"},"DOUILLARD Yannick","DIRIGEANT"]
[null,"CHAMPIONNAT PH1","FCBR U15 1","GJ ST FULGENT USBB 1","2023-09-24","10H00","Recevant","TERRAIN SYNTHETIQUE BOUAINE","ST PHILBERT DE BOUAINE",{"$f":"CONCATENATE(C462,I462)","v":"FCBR U15 1ST PHILBERT DE BOUAINE"},"PIVETEAU Bernard","DIRIGEANT","X","X"]
[null,"CHAMPIONNAT PH1","FCBR U15 2","GJ ASSON 13-SEPTIERS 2","2023-09-24","10H00","Recevant","TERRAIN HONNEUR ROCHESERVIERE","ROCHESERVIERE",{"$f":"CONCATENATE(C463,I463)","v":"FCBR U15 2ROCHESERVIERE"},"MANDIN Cyril","DIRIGEANT","X","X"]
[null,"CHAMPIONNAT PH1","FCBR U18 1","GJ HERBERGEMENT USSAM 1","2023-09-23","17H00","visiteur","STADE LUCIEN MORILLEAU2","MONTREVERD",{"$f":"CONCATENATE(C464,I464)","v":"FCBR U18 1MONTREVERD"},"X","X","X","X"]
[null,"CHAMPIONNAT PH1","FCBR U17","GJ ST FULGENT USBB 1","2023-09-23","15H00","visiteur","STADE MUNICIPAL N°2","ST FULGENT",{"$f":"CONCATENATE(C465,I465)","v":"FCBR U17ST FULGENT"},"X","X","X","X"]
[null,"CHAMPIONNAT PH1","GFVL U18F","POUZAUGES CHATAIGNERAIE 2","2023-09-23","15H00","visiteur","STADE CLEMENCEAU","LA CHATAIGNERAIE",{"$f":"CONCATENATE(C466,I466)","v":"GFVL U18FLA CHATAIGNERAIE"},"X","X","X","X"]
[null,"CHAMPIONNAT PH1","GFVL U15F","POIRE SUR VIE VF","2023-09-23","15H00","Recevant","TERRAIN CORCOUE SUR LOGNE","FC LOGNE",{"$f":"CONCATENATE(C467,I467)","v":"GFVL U15FFC LOGNE"},"SENIORS FC LOGNE"]
[null,"CHAMPIONNAT PH1","FCBR U18 2","AVFC BOUIN BOIS DE CENE 1","2023-09-23","15H00","Recevant","TERRAIN SYNTHETIQUE BOUAINE","ST PHILBERT DE BOUAINE",{"$f":"CONCATENATE(C468,I468)","v":"FCBR U18 2ST PHILBERT DE BOUAINE"},"GALLOT David","GALLOT Kevin","X","X"]
[null,"PLATEAU PH1","FCBR U11 1","PLATEAU","2023-09-23","14H30","visiteur","STADE MONTREVERD","MONTREVERD",{"$f":"CONCATENATE(C469,I469)","v":"FCBR U11 1MONTREVERD"},"X","X","X","X"]
[null,"PLATEAU PH1","FCBR U11 2","PLATEAU","2023-09-23","14H30","Recevant","TERRAIN ENTRAINEMENT ROCHESERVIERE","ROCHESERVIERE",{"$f":"CONCATENATE(C470,I470)","v":"FCBR U11 2ROCHESERVIERE"},"X","X","X","X"]
[null,"PLATEAU PH1","FCBR U11 3","PLATEAU","2023-09-23","14H30","visiteur","STADE LE POIRE SUR VIE","LE POIRE SUR VIE",{"$f":"CONCATENATE(C471,I471)","v":"FCBR U11 3LE POIRE SUR VIE"},"X","X","X","X"]
[null,"PLATEAU PH1","FCBR U11 4","PLATEAU","2023-09-23","14H30","visiteur","STADE LE POIRE SUR VIE","LE POIRE SUR VIE",{"$f":"CONCATENATE(C472,I472)","v":"FCBR U11 4LE POIRE SUR VIE"},"X","X","X","X"]
[null,"AMICAL","GFVL U11F","BOUFFERE","2023-09-23","14H30","Recevant","TERRAIN HERBE BOUAINE","ST PHILBERT DE BOUAINE",{"$f":"CONCATENATE(C473,I473)","v":"GFVL U11FST PHILBERT DE BOUAINE"},"X","X","X","X"]
[null,"CHAMPIONNAT PH1","GFVL U13F","EXEMPT","2023-09-23","10H30","visiteur","","",{"$f":"CONCATENATE(C474,I474)","v":"GFVL U13F"},"X","X","X","X"]
[null,"CHAMPIONNAT PH1","FCBR U13 2","MONTREVERD USSAM 1","2023-09-23","10H15","Recevant","TERRAIN ENTRAINEMENT ROCHESERVIERE","ROCHESERVIERE",{"$f":"CONCATENATE(C475,I475)","v":"FCBR U13 2ROCHESERVIERE"},"PETIT Edouard"]
[null,"CHAMPIONNAT PH1","FCBR U13 1","CHALLANS FC 2","2023-09-23","10H15","visiteur","PARC DES SPORTS 2","CHALLANS",{"$f":"CONCATENATE(C476,I476)","v":"FCBR U13 1CHALLANS"},"X","X","X","X"]
[null,"CHAMPIONNAT PH1","FCBR U13 3","ST GEORGES GUYONNIERE FEM 3","2023-09-23","10H15","Recevant","TERRAIN ENTRAINEMENT ROCHESERVIERE","ROCHESERVIERE",{"$f":"CONCATENATE(C477,I477)","v":"FCBR U13 3ROCHESERVIERE"},"VISONNEAU Ronan","X","X","X"]
[null,"PLATEAU PH1","FCBR U7","PLATEAU","2023-09-23","10H00","visiteur","STADE HERBERGEMENT","HERBERGEMENT",{"$f":"CONCATENATE(C478,I478)","v":"FCBR U7HERBERGEMENT"},"X","X","VAIDIE Steven",null,"MASSE Jehan","GAUTRON Elouan","RAVELEAU Axel"]
[null,"PLATEAU PH1","FCBR U9","PLATEAU","2023-09-23","10H00","visiteur","STADE HERBERGEMENT","HERBERGEMENT",{"$f":"CONCATENATE(C479,I479)","v":"FCBR U9HERBERGEMENT"},"X","X","X","X"]
[null,"CHAMPIONNAT","FCBR LOISIRS","E*BROUZILS HERB FCCR 1","2023-09-22","21H00","Recevant","TERRAIN ENTRAINEMENT ROCHESERVIERE","ROCHESERVIERE",{"$f":"CONCATENATE(C480,I480)","v":"FCBR LOISIRSROCHESERVIERE"},"X","X","X","X"]
[null,"COUPE","FCBR 1","ES VERTOU 1","2023-09-17","15H00","Recevant","TERRAIN HONNEUR ROCHESERVIERE","ROCHESERVIERE",{"$f":"CONCATENATE(C481,I481)","v":"FCBR 1ROCHESERVIERE"},"OFFICIEL","CHARLY","X","X"]
[null,"COUPE","FCBR 2","CHAUCHE COP CCFO 2","2023-09-17","15H00","visiteur","STADE BERNARD DE BUOR","LA COPECHAGNIERE",{"$f":"CONCATENATE(C482,I482)","v":"FCBR 2LA COPECHAGNIERE"},"LEDOUX Daniel","X","X","X"]
[null,"COUPE","FCBR 3","HERBERGEMENT SM 2","2023-09-17","15H00","visiteur","STADE HERBERGEMENT","HERBERGEMENT",{"$f":"CONCATENATE(C483,I483)","v":"FCBR 3HERBERGEMENT"},"X","X","X","X"]
[null,"CHAMPIONNAT PH1","FCBR U15 2","GJ TIFFAUGES BOCAGE 2","2023-09-17","10H00","visiteur","STADE ST MARTIN DES TILLEULS","ST MARTIN DES TILLEULS",{"$f":"CONCATENATE(C484,I484)","v":"FCBR U15 2ST MARTIN DES TILLEULS"},"X","X","X","X"]
[null,"CHAMPIONNAT PH1","FCBR U18 2","POIRE SUR VIE VF 2","2023-09-16","16H30","Recevant","TERRAIN SYNTHETIQUE BOUAINE","ST PHILBERT DE BOUAINE",{"$f":"CONCATENATE(C485,I485)","v":"FCBR U18 2ST PHILBERT DE BOUAINE"},"GAZEAU Sebastien","BUET Mathis","X","X"]
[null,"CHAMPIONNAT PH1","FCBR U17","MONTAIGU VF 1","2023-09-16","15H00","visiteur","STADE MAXIME BOSSIS 3 - MONTAIGU","ST HILAIRE DE LOULAY",{"$f":"CONCATENATE(C486,I486)","v":"FCBR U17ST HILAIRE DE LOULAY"},"X","X","X","X"]
[null,"CHAMPIONNAT PH1","FCBR U18 1","MONTAIGU VF 1","2023-09-16","15H00","visiteur","STADE ST HILAIRE DE LOULAY","ST HILAIRE DE LOULAY",{"$f":"CONCATENATE(C487,I487)","v":"FCBR U18 1ST HILAIRE DE LOULAY"},"X","X","X","X"]
[null,"CHAMPIONNAT PH1","GFVL U15F","COMMEQUIERS SP.","2023-09-16","15H00","visiteur","STADE COMMEQUIERS","COMMEQUIERS",{"$f":"CONCATENATE(C488,I488)","v":"GFVL U15FCOMMEQUIERS"},"X","X","X","X"]
[null,"CHAMPIONNAT PH1","FCBR U15 1","MONTAIGU VF 1","2023-09-16","14H00","Recevant","TERRAIN SYNTHETIQUE BOUAINE","ST PHILBERT DE BOUAINE",{"$f":"CONCATENATE(C489,I489)","v":"FCBR U15 1ST PHILBERT DE BOUAINE"},"GALLOT David","DIRIGEANT","X","X"]
[null,"CHAMPIONNAT PH1","GFVL U13F","COMMEQUIERS 1","2023-09-16","10H30","Recevant","TERRAIN ENTRAINEMENT ROCHESERVIERE","ROCHESERVIERE",{"$f":"CONCATENATE(C490,I490)","v":"GFVL U13FROCHESERVIERE"},"GANSTIER Benoit"]
[null,"CHAMPIONNAT PH1","FCBR U13 2","HERBERGEMENT SM 1","2023-09-16","10H15","visiteur","STADE HERBERGEMENT","HERBERGEMENT",{"$f":"CONCATENATE(C491,I491)","v":"FCBR U13 2HERBERGEMENT"},"X","X","X","X"]
[null,"CHAMPIONNAT PH1","FCBR U13 1","BEAULIEU SPORT FOOT 1","2023-09-16","10H15","Recevant","TERRAIN ENTRAINEMENT ROCHESERVIERE","ROCHESERVIERE",{"$f":"CONCATENATE(C492,I492)","v":"FCBR U13 1ROCHESERVIERE"},"DUGAST Sebastien"]
[null,"CHAMPIONNAT PH1","FCBR U13 3","MONTAIGU VF 4","2023-09-16","10H15","visiteur","STADE MAXIME BOSSIS","ST HILAIRE DE LOULAY",{"$f":"CONCATENATE(C493,I493)","v":"FCBR U13 3ST HILAIRE DE LOULAY"},"X","X","X","X"]
[null,"PLATEAU PH1","FCBR U7","PLATEAU","2023-09-16","10H00","visiteur","STADE HERBERGEMENT","HERBERGEMENT",{"$f":"CONCATENATE(C494,I494)","v":"FCBR U7HERBERGEMENT"},"X","X","X","X"]
[null,"PLATEAU PH1","FCBR U7","PLATEAU","2023-09-16","10H00","Recevant","TERRAIN SYNTHETIQUE BOUAINE","ST PHILBERT DE BOUAINE",{"$f":"CONCATENATE(C495,I495)","v":"FCBR U7ST PHILBERT DE BOUAINE"},"X",null,"GRIMAUD Leo","CUPIF Alexandre","COUTHOUIS Leo","LECLAIR Jules","LEDOUX Corentin"]
[null,"PLATEAU PH1","FCBR U9","PLATEAU","2023-09-16","10H00","visiteur","STADE MONTREVERD","MONTREVERD",{"$f":"CONCATENATE(C496,I496)","v":"FCBR U9MONTREVERD"},"X","X","X","X"]
[null,"PLATEAU PH1","FCBR U9","PLATEAU","2023-09-16","10H00","Recevant","TERRAIN SYNTHETIQUE BOUAINE","ST PHILBERT DE BOUAINE",{"$f":"CONCATENATE(C497,I497)","v":"FCBR U9ST PHILBERT DE BOUAINE"},"X",null,null,null,"CAILLAUD Dany","HERVOUET Lilian","GOISET Dorian","SAUVAGET Audran"]
[null,"AMICAL","FCBR U15 2","ASVP 2","2023-09-10","9H30","visiteur","STADE VIEILLEVIGNE","VIEILLEVIGNE",{"$f":"CONCATENATE(C498,I498)","v":"FCBR U15 2VIEILLEVIGNE"},"X","X","X","X"]
[null,"AMICAL","FCBR U18 2","MONTAIGU VF","2023-09-10","15H00","visiteur","STADE MAXIME BOSSIS 1 - MONTAIGU","MONTAIGU",{"$f":"CONCATENATE(C499,I499)","v":"FCBR U18 2MONTAIGU"},"X","X","X","X"]
[null,"CHAMPIONNAT","FCBR 1","ST NAZAIRE AF 2","2023-09-10","15H00","Recevant","TERRAIN HONNEUR ROCHESERVIERE","ROCHESERVIERE",{"$f":"CONCATENATE(C500,I500)","v":"FCBR 1ROCHESERVIERE"},"OFFICIEL","CHARLY","X","X"]
[null,"CHAMPIONNAT","FCBR 2","FC SALIGNY 2","2023-09-10","15H00","visiteur","STADE PIERRE GUITTET1","BELLEVIGNY",{"$f":"CONCATENATE(C501,I501)","v":"FCBR 2BELLEVIGNY"},"GRATTON Christophe","X","X","X"]
[null,"COUPE","GFVL SENIORS","ST NAZAIRE AF 2","2023-09-10","13H00","visiteur","PARC DES SPORTS","ST NAZAIRE",{"$f":"CONCATENATE(C502,I502)","v":"GFVL SENIORSST NAZAIRE"},"X","X","X","X"]
[null,"AMICAL","FCBR U17","ASVP U17","2023-09-10","12H30","visiteur","STADE LA PLANCHE","LA PLANCHE",{"$f":"CONCATENATE(C503,I503)","v":"FCBR U17LA PLANCHE"},"X","X","X","X"]
[null,"AMICAL","FCBR 3","AS LA BRUFFIERE 3","2023-09-10","12H30","Recevant","TERRAIN HONNEUR ROCHESERVIERE","ROCHESERVIERE",{"$f":"CONCATENATE(C504,I504)","v":"FCBR 3ROCHESERVIERE"},"MANDIN Gerard",null,"X","X"]
[null,"COUPE","FCBR U18 1","FC CHALLANS 1","2023-09-09","15H00","Recevant","TERRAIN HONNEUR ROCHESERVIERE","ROCHESERVIERE",{"$f":"CONCATENATE(C505,I505)","v":"FCBR U18 1ROCHESERVIERE"},"OFFICIEL","TENAUD Loic","X","X"]
[null,"AMICAL","FCBR U15 1","ASVP 1","2023-09-09","14H00","Recevant","TERRAIN SYNTHETIQUE BOUAINE","ST PHILBERT DE BOUAINE",{"$f":"CONCATENATE(C506,I506)","v":"FCBR U15 1ST PHILBERT DE BOUAINE"},"X","X","X","X"]
[null,"AMICAL","FCBR U13 1","GJ BELLEVIGNY 1","2023-09-09","10H15","Recevant","TERRAIN ENTRAINEMENT ROCHESERVIERE","ROCHESERVIERE",{"$f":"CONCATENATE(C507,I507)","v":"FCBR U13 1ROCHESERVIERE"},"X","X","X","X"]
[null,"AMICAL","FCBR U13 2","GJ BELLEVIGNY 2","2023-09-09","10H15","Recevant","TERRAIN ENTRAINEMENT ROCHESERVIERE","ROCHESERVIERE",{"$f":"CONCATENATE(C508,I508)","v":"FCBR U13 2ROCHESERVIERE"},"X","X","X","X"]
[null,"AMICAL","FCBR U13 3","GJ BELLEVIGNY 3","2023-09-09","10H15","Recevant","TERRAIN ENTRAINEMENT ROCHESERVIERE","ROCHESERVIERE",{"$f":"CONCATENATE(C509,I509)","v":"FCBR U13 3ROCHESERVIERE"},"X","X","X","X"]
[null,"AMICAL","GFVL U13F","GFVL U15F","2023-09-09","10H15","Recevant","TERRAIN SYNTHETIQUE BOUAINE","ST PHILBERT DE BOUAINE",{"$f":"CONCATENATE(C510,I510)","v":"GFVL U13FST PHILBERT DE BOUAINE"},"X","X","X","X"]
[null,"COUPE","FCBR 1","ST LUMINE DE COUTAIS 1","2023-09-03","15H00","visiteur","STADE MARCEL BONNEAU","ST LUMINE DE COUTAIS",{"$f":"CONCATENATE(C511,I511)","v":"FCBR 1ST LUMINE DE COUTAIS"},"X","X","X","X"]
[null,"COUPE","FCBR 1","ANDREZE","2023-08-27","15H00","visiteur","STADE ANDREZE","ANDREZE",{"$f":"CONCATENATE(C512,I512)","v":"FCBR 1ANDREZE"},"X","X","X","X"]

{"sheet":"REPARTITION DES MATCHS","index":1,"n_rows":48,"n_cols":11,"rows_kept":48,"cut":false,"hidden":true,"merged":[]}
["Equipes","ROCHESERVIERE","ST PHILBERT DE BOUAINE"]
["FCBR 1",{"$f":"COUNTIF($K$8:$K$98,CONCATENATE(A2,B1))","v":6},{"$f":"COUNTIF($K$8:$K$98,CONCATENATE(A2,C1))","v":6}]
["FCBR 2",{"$f":"COUNTIF($K$8:$K$98,CONCATENATE(A3,B1))","v":7},{"$f":"COUNTIF($K$8:$K$98,CONCATENATE(A3,C1))","v":6}]
["FCBR 3",{"$f":"COUNTIF($K$8:$K$98,CONCATENATE(A4,B1))","v":0},{"$f":"COUNTIF($K$8:$K$98,CONCATENATE(A4,C1))","v":6}]
["TOTAL",{"$f":"SUM(B2:B4)","v":13},18]
[]
["Compétition","Equipes","Club adverse","Date du match","Heure du match","Localité club adverse","Equipe adverse","Recevant-visiteur","Nom de l'installation","Localité installation","CALCUL"]
["CHAMPIONNAT","FCBR 1","ST NAZAIRE AF 2","10/09/2023","15H","ST NAZAIRE","ST NAZAIRE AF 2","Recevant","TERRAIN HONNEUR ROCHESERVIERE","ROCHESERVIERE",{"$f":"CONCATENATE(B8,J8)","v":"FCBR 1ROCHESERVIERE"}]
["CHAMPIONNAT","FCBR 2","USSEP 1","24/09/2023","15H","ST ETIENNE DU BOIS","ST ETIENNE BOIS PALL 1","Recevant","TERRAIN SYNTHETIQUE BOUAINE","ST PHILBERT DE BOUAINE","FCBR 2ST PHILBERT DE BOUAINE"]
["CHAMPIONNAT","FCBR 3","ST GEORGES GUYONNIERE FC 3","24/09/2023","12H30","ST GEORGES DE MONTAIGU","ST GEORGES GUYONNIER 3","Recevant","TERRAIN SYNTHETIQUE BOUAINE","ST PHILBERT DE BOUAINE","FCBR 3ST PHILBERT DE BOUAINE"]
["COUPE","FCBR 1","A DETERMINER","2023-10-01","15H",null,null,"Recevant","TERRAIN HONNEUR ROCHESERVIERE","ROCHESERVIERE","FCBR 1ROCHESERVIERE"]
["COUPE","FCBR 2","MONTAIGU VF 2","2023-10-01","15H","MONTAIGU","MONTAIGU VF 2","Recevant","TERRAIN SYNTHETIQUE BOUAINE","ST PHILBERT DE BOUAINE","FCBR 2ST PHILBERT DE BOUAINE"]
["COUPE","FCBR 3","LES EPESSES 3","2023-10-01","12H30","LES EPESSES","LES EPESSES 3","Recevant","TERRAIN SYNTHETIQUE BOUAINE","ST PHILBERT DE BOUAINE","FCBR 3ST PHILBERT DE BOUAINE"]
["CHAMPIONNAT","FCBR 1","US AUBIGNY 1","08/10/2023","15H","AUBIGNY","AUBIGNY US 1","Recevant","TERRAIN HONNEUR ROCHESERVIERE","ROCHESERVIERE","FCBR 1ROCHESERVIERE"]
["COUPE","FCBR 1","A DETERMINER","2023-10-15","15H",null,null,"Recevant","A DETERMINER","A DETERMINER","FCBR 1A DETERMINER"]
["COUPE","FCBR 2","VERRIE ST AUBIN VDS 2","2023-10-15","15H","LA VERRIE","VERRIE ST AUBIN VDS 2","Recevant","TERRAIN SYNTHETIQUE BOUAINE","ST PHILBERT DE BOUAINE","FCBR 2ST PHILBERT DE BOUAINE"]
["COUPE","FCBR 3","MOUCHAMPS ROCHETREJOUX FC 3","2023-10-15","12H30","MOUCHAMPS","MOUCHAMPS ROCHETREJOUX FC 3","Recevant","TERRAIN SYNTHETIQUE BOUAINE","ST PHILBERT DE BOUAINE","FCBR 3ST PHILBERT DE BOUAINE"]
["CHAMPIONNAT","FCBR 2","FC LA GENETOUZE 2","22/10/2023","15H","LA GENETOUZE","LA GENETOUZE FC 2","Recevant","TERRAIN SYNTHETIQUE BOUAINE","ST PHILBERT DE BOUAINE","FCBR 2ST PHILBERT DE BOUAINE"]
["COUPE","FCBR 1","A DETERMINER","2023-10-29","15H",null,null,"Recevant","A DETERMINER","A DETERMINER","FCBR 1A DETERMINER"]
["CHAMPIONNAT","FCBR 1","ST ANDRE DES EAUX SA 1","05/11/2023","15H","ST ANDRE DES EAUX","ST-ANDRÉ DES EAUX SA 1","Recevant","TERRAIN HONNEUR ROCHESERVIERE","ROCHESERVIERE","FCBR 1ROCHESERVIERE"]
["CHAMPIONNAT","FCBR 2","LES LUCS SUR BOULOGNE 2","12/11/2023","15H","LES LUCS SUR BOULOGNE","LES LUCS S/BOULOGNE 2","Recevant","TERRAIN SYNTHETIQUE BOUAINE","ST PHILBERT DE BOUAINE","FCBR 2ST PHILBERT DE BOUAINE"]
["CHAMPIONNAT","FCBR 3","BAZOGES BEAUREPAIRE 3","12/11/2023","12H30","BEAUREPAIRE","BAZOGES BEAUREPAIRE 3","Recevant","TERRAIN SYNTHETIQUE BOUAINE","ST PHILBERT DE BOUAINE","FCBR 3ST PHILBERT DE BOUAINE"]
["CHAMPIONNAT","FCBR 1","LES LUCS SUR BOULOGNE 1","18/11/2023","18H30","LES LUCS SUR BOULOGNE","LES LUCS S/BOULOGNE 1","Recevant","TERRAIN SYNTHETIQUE BOUAINE","ST PHILBERT DE BOUAINE","FCBR 1ST PHILBERT DE BOUAINE"]
["COUPE","FCBR 1","A DETERMINER","2023-11-26","15H",null,null,"Recevant","A DETERMINER","A DETERMINER","FCBR 1A DETERMINER"]
["CHAMPIONNAT","FCBR 2","US MARAIS BEAUVOIR S/MER 1","03/12/2023","15H","BEAUVOIR SUR MER","BEAUVOIR USM 1","Recevant","TERRAIN SYNTHETIQUE BOUAINE","ST PHILBERT DE BOUAINE","FCBR 2ST PHILBERT DE BOUAINE"]
["CHAMPIONNAT","FCBR 3","MONTAIGU VF 5","03/12/2023","12H30","MONTAIGU","MONTAIGU VENDEE FOOT 5","Recevant","TERRAIN SYNTHETIQUE BOUAINE","ST PHILBERT DE BOUAINE","FCBR 3ST PHILBERT DE BOUAINE"]
["CHAMPIONNAT","FCBR 1","PONTCHATEAU AOS 1","09/12/2023","18H30","PONTCHATEAU","PONTCHÂTEAU AOS 1","Recevant","TERRAIN SYNTHETIQUE BOUAINE","ST PHILBERT DE BOUAINE","FCBR 1ST PHILBERT DE BOUAINE"]
["CHAMPIONNAT","FCBR 3","LES BROUZILS LSG 4","10/12/2023","12H30","LES BROUZILS","LES BROUZILS LSG 4","Recevant","TERRAIN SYNTHETIQUE BOUAINE","ST PHILBERT DE BOUAINE","FCBR 3ST PHILBERT DE BOUAINE"]
["CHAMPIONNAT","FCBR 1","FC RETZ 1","16/12/2023","18H30","STE PAZANNE","STE-PAZANNE FC RETZ 1","Recevant","TERRAIN SYNTHETIQUE BOUAINE","ST PHILBERT DE BOUAINE","FCBR 1ST PHILBERT DE BOUAINE"]
["COUPE","FCBR 1","A DETERMINER","2023-01-14","15H",null,null,"Recevant","A DETERMINER","A DETERMINER","FCBR 1A DETERMINER"]
["CHAMPIONNAT","FCBR 2","VENDEE POIRE SUR VIE FOOTBALL 4","21/01/2024","15H","LE POIRE SUR VIE","LE POIRE/VIE VF 4","Recevant","TERRAIN HONNEUR ROCHESERVIERE","ROCHESERVIERE","FCBR 2ROCHESERVIERE"]
["CHAMPIONNAT","FCBR 1","FC CHALLANS 2","27/01/2024","18H30","CHALLANS","CHALLANS FC 2","Recevant","TERRAIN SYNTHETIQUE BOUAINE","ST PHILBERT DE BOUAINE","FCBR 1ST PHILBERT DE BOUAINE"]
["COUPE","FCBR 1","A DETERMINER","2023-02-04","15H",null,null,"Recevant","A DETERMINER","A DETERMINER","FCBR 1A DETERMINER"]
["CHAMPIONNAT","FCBR 2","ILE YEU 1","11/02/2024","15H","L'ILE D YEU","L ILE D'YEU SS 1","Recevant","TERRAIN HONNEUR ROCHESERVIERE","ROCHESERVIERE","FCBR 2ROCHESERVIERE"]
["CHAMPIONNAT","FCBR 1","PORNICHET ES 1","17/02/2024","18H30","PORNICHET","PORNICHET ES 1","Recevant","TERRAIN SYNTHETIQUE BOUAINE","ST PHILBERT DE BOUAINE","FCBR 1ST PHILBERT DE BOUAINE"]
["CHAMPIONNAT","FCBR 2","HIRONDELLES DE SOULLANS 1","10/03/2024","15H","SOULLANS","SOULLANS HIRONDELLES 1","Recevant","TERRAIN HONNEUR ROCHESERVIERE","ROCHESERVIERE","FCBR 2ROCHESERVIERE"]
["CHAMPIONNAT","FCBR 1","LA ROCHE VF 3","16/03/2024","18H30","LA ROCHE SUR YON","LA ROCHE VENDEE 3","Recevant","TERRAIN SYNTHETIQUE BOUAINE","ST PHILBERT DE BOUAINE","FCBR 1ST PHILBERT DE BOUAINE"]
["CHAMPIONNAT","FCBR 2","AS ST GERVAIS 1","24/03/2024","15H","ST GERVAIS","ST GERVAIS AS 1","Recevant","TERRAIN HONNEUR ROCHESERVIERE","ROCHESERVIERE","FCBR 2ROCHESERVIERE"]
["COUPE","FCBR 1","A DETERMINER","2023-04-01","15H",null,null,"Recevant","A DETERMINER","A DETERMINER","FCBR 1A DETERMINER"]
["CHAMPIONNAT","FCBR 1","GUERANDE ST AUBIN 1","07/04/2024","15H","GUERANDE","GUERANDE ST-AUBIN 1","Recevant","TERRAIN HONNEUR ROCHESERVIERE","ROCHESERVIERE","FCBR 1ROCHESERVIERE"]
["CHAMPIONNAT","FCBR 2","LES ECUREUILS DES PAYS DE MONTS 2","14/04/2024","15H","ST JEAN DE MONTS","ST JEAN DE MONTS EC 2","Recevant","TERRAIN HONNEUR ROCHESERVIERE","ROCHESERVIERE","FCBR 2ROCHESERVIERE"]
["CHAMPIONNAT","FCBR 2","AVFC BOUIN BOIS DE CENE 1","21/04/2024","15H","BOUIN","BOUIN BOIS DE CENE 1","Recevant","TERRAIN HONNEUR ROCHESERVIERE","ROCHESERVIERE","FCBR 2ROCHESERVIERE"]
["CHAMPIONNAT","FCBR 2","FC SALIGNY 2","28/04/2024","15H","SALIGNY","SALIGNY BELLEVIGNY 2","Recevant","TERRAIN HONNEUR ROCHESERVIERE","ROCHESERVIERE","FCBR 2ROCHESERVIERE"]
["CHAMPIONNAT","FCBR 1","VENDEE POIRE SUR VIE FOOTBALL 3","05/05/2024","15H","LE POIRE SUR VIE","LE POIRE/VIE VF 3","Recevant","TERRAIN HONNEUR ROCHESERVIERE","ROCHESERVIERE","FCBR 1ROCHESERVIERE"]
[]
["NB DIMANCHE","SEPTEMBRE","OCTOBRE","NOVEMBRE","DÉCEMBRE","JANVIER","FÉVRIER","MARS","AVRIL","MAI","TOTAL"]
["ROCHESERVIERE",2,1,1,0,1,1,2,4,1,{"$f":"SUBTOTAL(9,B47:J47)","v":13}]
["BOUAINE",1,2,2,3,1,1,1,0,0,11]

{"sheet":"ARBITRES","index":2,"n_rows":15,"n_cols":2,"rows_kept":15,"cut":false,"hidden":false,"merged":[[0,0,0,1]]}
["ARBITRES"]
[]
["JOUEUR","NB ARBITRAGES"]
["BOCQUEL Guillaume",{"$f":"COUNTIF('CALENDRIER FCBR'!$K$31:$K$1170,ARBITRES!A4)","v":1}]
["BOUDELIER Nicolas",{"$f":"COUNTIF('CALENDRIER FCBR'!$K$31:$K$1170,ARBITRES!A5)","v":7}]
["DOUILLARD Yannick",{"$f":"COUNTIF('CALENDRIER FCBR'!$K$31:$K$1170,ARBITRES!A6)","v":6}]
["GALLOT David",{"$f":"COUNTIF('CALENDRIER FCBR'!$K$31:$K$1170,ARBITRES!A7)","v":7}]
["GAZEAU Sebastien",{"$f":"COUNTIF('CALENDRIER FCBR'!$K$31:$K$1170,ARBITRES!A8)","v":1}]
["GRATTON Christophe",{"$f":"COUNTIF('CALENDRIER FCBR'!$K$31:$K$1170,ARBITRES!A9)","v":11}]
["GUIBERT Freddy",{"$f":"COUNTIF('CALENDRIER FCBR'!$K$31:$K$1170,ARBITRES!A10)","v":6}]
["GUILLOT Michael",{"$f":"COUNTIF('CALENDRIER FCBR'!$K$31:$K$1170,ARBITRES!A11)","v":1}]
["LEDOUX Daniel",{"$f":"COUNTIF('CALENDRIER FCBR'!$K$31:$K$1170,ARBITRES!A12)","v":9}]
["MANDIN Gerard",{"$f":"COUNTIF('CALENDRIER FCBR'!$K$31:$K$1170,ARBITRES!A13)","v":8}]
["PIVETEAU Bernard",{"$f":"COUNTIF('CALENDRIER FCBR'!$K$31:$K$1170,ARBITRES!A14)","v":5}]
["VISONNEAU Ronan",{"$f":"COUNTIF('CALENDRIER FCBR'!$K$31:$K$1170,ARBITRES!A15)","v":2}]

{"sheet":"SENIORS","index":3,"n_rows":67,"n_cols":16,"rows_kept":67,"cut":false,"hidden":false,"merged":[[0,0,0,14]]}
["PARTICIPATION A LA VIE DU CLUB"]
[null,null,null,null,null,null,null,"Samedi Matin",null,"Samedi Matin","Dimanche Matin","Samedi Après-Midi","Samedi Après-Midi","2024-01-01","2024-05-01"]
["JOUEUR","NB ACTIONS","TRAVAIL SAMEDI","DIRIGEANT","TOURNOI FUTSAL","DISCO","NB BAR","BAR PLATEAU U7/U9","NB ARBITRAGE","ARBITRAGE U13","ARBITRAGE U15","ARBITRAGE U18","ACCOMPAGNEMENT JEUNES ARBITRES","TOURNOI Futsal U13","TOURNOI U9","TOTAL"]
["BARRY Ousmane Amadou",{"$f":"G4+I4+F4+E4","v":0},"X",null,null,null,{"$f":"COUNTIF('CALENDRIER FCBR'!$M$31:$N$1170,SENIORS!A4)","v":0},null,{"$f":"COUNTIF('CALENDRIER FCBR'!$K$31:$L$1170,SENIORS!A4)","v":0},null,null,null,null,null,null,{"$f":"COUNTIF(C4:O4,\"X\")","v":1}]
["BEILLEVAIRE Mathis",{"$f":"G5+I5+F5+E5","v":1},null,"X",null,1,{"$f":"COUNTIF('CALENDRIER FCBR'!$M$31:$N$1170,SENIORS!A5)","v":0},null,{"$f":"COUNTIF('CALENDRIER FCBR'!$K$31:$L$1170,SENIORS!A5)","v":0},null,null,null,null,null,null,1]
["BERARD Louis",0,"X",null,null,null,{"$f":"COUNTIF('CALENDRIER FCBR'!$M$31:$N$1170,SENIORS!A6)","v":0},"X",{"$f":"COUNTIF('CALENDRIER FCBR'!$K$31:$L$1170,SENIORS!A6)","v":0},null,null,null,null,null,null,2]
["BERGER Sylvain",1,null,null,null,null,{"$f":"COUNTIF('CALENDRIER FCBR'!$M$31:$N$1170,SENIORS!A7)","v":1},"X",{"$f":"COUNTIF('CALENDRIER FCBR'!$K$31:$L$1170,SENIORS!A7)","v":0},null,null,null,null,null,null,1]
["BERTAUD Lubin",3,null,null,null,1,{"$f":"COUNTIF('CALENDRIER FCBR'!$M$31:$N$1170,SENIORS!A8)","v":0},null,{"$f":"COUNTIF('CALENDRIER FCBR'!$K$31:$L$1170,SENIORS!A8)","v":2},"X",null,null,null,null,null,1]
["BEZIAU Clement",2,null,null,null,null,{"$f":"COUNTIF('CALENDRIER FCBR'!$M$31:$N$1170,SENIORS!A9)","v":0},null,{"$f":"COUNTIF('CALENDRIER FCBR'!$K$31:$L$1170,SENIORS!A9)","v":2},null,null,"X",null,null,null,1]
["BOSSIS Pierre",2,null,null,null,1,{"$f":"COUNTIF('CALENDRIER FCBR'!$M$31:$N$1170,SENIORS!A10)","v":0},null,{"$f":"COUNTIF('CALENDRIER FCBR'!$K$31:$L$1170,SENIORS!A10)","v":1},"X",null,null,null,null,null,1]
["BRIAND Leo",1,null,null,null,1,{"$f":"COUNTIF('CALENDRIER FCBR'!$M$31:$N$1170,SENIORS!A11)","v":0},null,{"$f":"COUNTIF('CALENDRIER FCBR'!$K$31:$L$1170,SENIORS!A11)","v":0},"X",null,null,null,null,null,1]
["BROSSARD Alexis",2,null,null,null,null,{"$f":"COUNTIF('CALENDRIER FCBR'!$M$31:$N$1170,SENIORS!A12)","v":1},"X",{"$f":"COUNTIF('CALENDRIER FCBR'!$K$31:$L$1170,SENIORS!A12)","v":1},null,null,null,null,null,null,1]
["BROSSAUD Theo",0,"X",null,null,null,{"$f":"COUNTIF('CALENDRIER FCBR'!$M$31:$N$1170,SENIORS!A13)","v":0},null,{"$f":"COUNTIF('CALENDRIER FCBR'!$K$31:$L$1170,SENIORS!A13)","v":0},null,null,null,null,null,null,1]
["BUET Mathis",8,null,null,null,1,{"$f":"COUNTIF('CALENDRIER FCBR'!$M$31:$N$1170,SENIORS!A14)","v":0},null,{"$f":"COUNTIF('CALENDRIER FCBR'!$K$31:$L$1170,SENIORS!A14)","v":7},"X",null,null,null,null,null,1]
["CAPACETE Thibaut",0,"X",null,null,null,{"$f":"COUNTIF('CALENDRIER FCBR'!$M$31:$N$1170,SENIORS!A15)","v":0},null,{"$f":"COUNTIF('CALENDRIER FCBR'!$K$31:$L$1170,SENIORS!A15)","v":0},null,null,null,null,null,null,1]
["CAVOLEAU Antoine",0,null,"X",null,null,{"$f":"COUNTIF('CALENDRIER FCBR'!$M$31:$N$1170,SENIORS!A16)","v":0},null,{"$f":"COUNTIF('CALENDRIER FCBR'!$K$31:$L$1170,SENIORS!A16)","v":0},null,null,null,null,null,null,1]
["CHAILLOU Mael",1,"X",null,null,1,{"$f":"COUNTIF('CALENDRIER FCBR'!$M$31:$N$1170,SENIORS!A17)","v":0},null,{"$f":"COUNTIF('CALENDRIER FCBR'!$K$31:$L$1170,SENIORS!A17)","v":0},null,null,null,null,null,null,1]
["CORBINEAU Julien",2,null,null,1,null,{"$f":"COUNTIF('CALENDRIER FCBR'!$M$31:$N$1170,SENIORS!A18)","v":0},"X",{"$f":"COUNTIF('CALENDRIER FCBR'!$K$31:$L$1170,SENIORS!A18)","v":1},null,null,null,null,null,null,1]
["CORMERAIS Justin",2,null,null,1,null,{"$f":"COUNTIF('CALENDRIER FCBR'!$M$31:$N$1170,SENIORS!A19)","v":0},"X",{"$f":"COUNTIF('CALENDRIER FCBR'!$K$31:$L$1170,SENIORS!A19)","v":1},null,null,null,null,null,null,1]
["CUPIF Alexandre",1,"X",null,null,null,{"$f":"COUNTIF('CALENDRIER FCBR'!$M$31:$N$1170,SENIORS!A20)","v":1},null,{"$f":"COUNTIF('CALENDRIER FCBR'!$K$31:$L$1170,SENIORS!A20)","v":0},null,null,null,null,null,null,1]
["DOUAUD Enzo",1,null,null,null,null,{"$f":"COUNTIF('CALENDRIER FCBR'!$M$31:$N$1170,SENIORS!A21)","v":1},"X",{"$f":"COUNTIF('CALENDRIER FCBR'!$K$31:$L$1170,SENIORS!A21)","v":0},null,null,null,null,null,null,1]
["DOUAUD Flavien",0,"X",null,null,null,{"$f":"COUNTIF('CALENDRIER FCBR'!$M$31:$N$1170,SENIORS!A22)","v":0},null,{"$f":"COUNTIF('CALENDRIER FCBR'!$K$31:$L$1170,SENIORS!A22)","v":0},null,null,null,null,null,null,1]
["DUGAST Sebastien",2,null,null,null,null,{"$f":"COUNTIF('CALENDRIER FCBR'!$M$31:$N$1170,SENIORS!A23)","v":0},null,{"$f":"COUNTIF('CALENDRIER FCBR'!$K$31:$L$1170,SENIORS!A23)","v":2},"X",null,null,null,null,null,1]
["EPIARD Martin",1,null,null,null,1,{"$f":"COUNTIF('CALENDRIER FCBR'!$M$31:$N$1170,SENIORS!A24)","v":0},"X",{"$f":"COUNTIF('CALENDRIER FCBR'!$K$31:$L$1170,SENIORS!A24)","v":0},null,null,null,null,null,null,1]
["FORESTIER William",1,null,null,null,null,{"$f":"COUNTIF('CALENDRIER FCBR'!$M$31:$N$1170,SENIORS!A25)","v":1},"X",{"$f":"COUNTIF('CALENDRIER FCBR'!$K$31:$L$1170,SENIORS!A25)","v":0},null,null,null,null,null,null,1]
["FROMY Thibault",1,"X",null,null,1,{"$f":"COUNTIF('CALENDRIER FCBR'!$M$31:$N$1170,SENIORS!A26)","v":0},null,{"$f":"COUNTIF('CALENDRIER FCBR'!$K$31:$L$1170,SENIORS!A26)","v":0},null,null,null,null,null,null,1]
["GABORIAU Alban",2,null,null,null,1,{"$f":"COUNTIF('CALENDRIER FCBR'!$M$31:$N$1170,SENIORS!A27)","v":0},null,{"$f":"COUNTIF('CALENDRIER FCBR'!$K$31:$L$1170,SENIORS!A27)","v":1},null,null,null,null,null,null,0]
["GABORIAU Clement",1,null,"X",null,1,{"$f":"COUNTIF('CALENDRIER FCBR'!$M$31:$N$1170,SENIORS!A28)","v":0},null,{"$f":"COUNTIF('CALENDRIER FCBR'!$K$31:$L$1170,SENIORS!A28)","v":0},null,null,null,null,null,null,1]
["GALLOT Kevin",2,null,null,null,null,{"$f":"COUNTIF('CALENDRIER FCBR'!$M$31:$N$1170,SENIORS!A29)","v":1},"X",{"$f":"COUNTIF('CALENDRIER FCBR'!$K$31:$L$1170,SENIORS!A29)","v":1},null,null,null,null,null,null,1]
["GOKUI Ley Marius",0,"X",null,null,null,{"$f":"COUNTIF('CALENDRIER FCBR'!$M$31:$N$1170,SENIORS!A30)","v":0},null,{"$f":"COUNTIF('CALENDRIER FCBR'!$K$31:$L$1170,SENIORS!A30)","v":0},null,null,null,null,null,null,1]
["GRIMAUD Leo",3,null,null,null,1,{"$f":"COUNTIF('CALENDRIER FCBR'!$M$31:$N$1170,SENIORS!A31)","v":1},"X",{"$f":"COUNTIF('CALENDRIER FCBR'!$K$31:$L$1170,SENIORS!A31)","v":1},null,null,null,null,null,null,1]
["GRIS Thomas",2,null,null,1,null,{"$f":"COUNTIF('CALENDRIER FCBR'!$M$31:$N$1170,SENIORS!A32)","v":0},"X",{"$f":"COUNTIF('CALENDRIER FCBR'!$K$31:$L$1170,SENIORS!A32)","v":1},null,null,null,null,null,null,1]
["GUERY Lyxian",5,null,null,null,1,{"$f":"COUNTIF('CALENDRIER FCBR'!$M$31:$N$1170,SENIORS!A33)","v":0},null,{"$f":"COUNTIF('CALENDRIER FCBR'!$K$31:$L$1170,SENIORS!A33)","v":4},null,null,"X",null,null,null,1]
["GUYONNET Timon",2,null,null,null,1,{"$f":"COUNTIF('CALENDRIER FCBR'!$M$31:$N$1170,SENIORS!A34)","v":1},"X",{"$f":"COUNTIF('CALENDRIER FCBR'!$K$31:$L$1170,SENIORS!A34)","v":0},null,null,null,null,null,null,1]
["HERVOUET Baptiste",0,"X",null,null,null,{"$f":"COUNTIF('CALENDRIER FCBR'!$M$31:$N$1170,SENIORS!A35)","v":0},null,{"$f":"COUNTIF('CALENDRIER FCBR'!$K$31:$L$1170,SENIORS!A35)","v":0},null,null,null,null,null,null,1]
["HIMEDA Gabriel",2,null,null,null,null,{"$f":"COUNTIF('CALENDRIER FCBR'!$M$31:$N$1170,SENIORS!A36)","v":0},null,{"$f":"COUNTIF('CALENDRIER FCBR'!$K$31:$L$1170,SENIORS!A36)","v":2},"X",null,null,null,null,null,1]
["HUCHET Germain",4,null,null,null,1,{"$f":"COUNTIF('CALENDRIER FCBR'!$M$31:$N$1170,SENIORS!A37)","v":0},null,{"$f":"COUNTIF('CALENDRIER FCBR'!$K$31:$L$1170,SENIORS!A37)","v":3},"X",null,null,null,null,null,1]
["HUCHET Jeremy",0,"X",null,null,null,{"$f":"COUNTIF('CALENDRIER FCBR'!$M$31:$N$1170,SENIORS!A38)","v":0},null,{"$f":"COUNTIF('CALENDRIER FCBR'!$K$31:$L$1170,SENIORS!A38)","v":0},null,null,null,null,null,null,1]
["ILKEM Youssouf",0,"X",null,null,null,{"$f":"COUNTIF('CALENDRIER FCBR'!$M$31:$N$1170,SENIORS!A39)","v":0},null,{"$f":"COUNTIF('CALENDRIER FCBR'!$K$31:$L$1170,SENIORS!A39)","v":0},null,null,null,"X",null,null,2]
["JEANNEAU François",1,"X",null,null,null,{"$f":"COUNTIF('CALENDRIER FCBR'!$M$31:$N$1170,SENIORS!A40)","v":0},null,{"$f":"COUNTIF('CALENDRIER FCBR'!$K$31:$L$1170,SENIORS!A40)","v":1},null,null,null,null,null,null,1]
["JOAQUIM Tony",1,null,null,null,null,{"$f":"COUNTIF('CALENDRIER FCBR'!$M$31:$N$1170,SENIORS!A41)","v":1},null,{"$f":"COUNTIF('CALENDRIER FCBR'!$K$31:$L$1170,SENIORS!A41)","v":0},null,null,null,null,null,null,0]
["LAPILUS Dylan",2,null,null,null,null,{"$f":"COUNTIF('CALENDRIER FCBR'!$M$31:$N$1170,SENIORS!A42)","v":2},"X",{"$f":"COUNTIF('CALENDRIER FCBR'!$K$31:$L$1170,SENIORS!A42)","v":0},null,null,null,null,null,null,1]
["LE CLERE Benjamin",0,null,"X",null,null,{"$f":"COUNTIF('CALENDRIER FCBR'!$M$31:$N$1170,SENIORS!A43)","v":0},null,{"$f":"COUNTIF('CALENDRIER FCBR'!$K$31:$L$1170,SENIORS!A43)","v":0},null,null,null,null,null,null,1]
["LECHOUASNE Julien",0,null,"X",null,null,{"$f":"COUNTIF('CALENDRIER FCBR'!$M$31:$N$1170,SENIORS!A44)","v":0},null,{"$f":"COUNTIF('CALENDRIER FCBR'!$K$31:$L$1170,SENIORS!A44)","v":0},null,null,null,null,null,null,1]
["LELIEVRE Geoffrey",0,"X",null,null,null,{"$f":"COUNTIF('CALENDRIER FCBR'!$M$31:$N$1170,SENIORS!A45)","v":0},null,{"$f":"COUNTIF('CALENDRIER FCBR'!$K$31:$L$1170,SENIORS!A45)","v":0},null,null,null,null,null,null,1]
["LELOUP Damien",0,"X",null,null,null,{"$f":"COUNTIF('CALENDRIER FCBR'!$M$31:$N$1170,SENIORS!A46)","v":0},null,{"$f":"COUNTIF('CALENDRIER FCBR'!$K$31:$L$1170,SENIORS!A46)","v":0},"X",null,null,null,null,null,2]
["LEMINEUR Brandon",0,"X",null,null,null,{"$f":"COUNTIF('CALENDRIER FCBR'!$M$31:$N$1170,SENIORS!A47)","v":0},null,{"$f":"COUNTIF('CALENDRIER FCBR'!$K$31:$L$1170,SENIORS!A47)","v":0},null,null,null,null,null,null,1]
["LEREGAZA Yann",1,null,null,null,null,{"$f":"COUNTIF('CALENDRIER FCBR'!$M$31:$N$1170,SENIORS!A48)","v":1},null,{"$f":"COUNTIF('CALENDRIER FCBR'!$K$31:$L$1170,SENIORS!A48)","v":0}]
["LOUSTALOT Jason",2,null,null,null,null,{"$f":"COUNTIF('CALENDRIER FCBR'!$M$31:$N$1170,SENIORS!A49)","v":0},null,{"$f":"COUNTIF('CALENDRIER FCBR'!$K$31:$L$1170,SENIORS!A49)","v":2},"X",null,null,null,null,null,1]
["MABIT Nathan",1,"X",null,null,1,{"$f":"COUNTIF('CALENDRIER FCBR'!$M$31:$N$1170,SENIORS!A50)","v":0},null,{"$f":"COUNTIF('CALENDRIER FCBR'!$K$31:$L$1170,SENIORS!A50)","v":0},null,null,null,null,null,null,1]
["MANDIN Cyril",2,null,null,null,null,{"$f":"COUNTIF('CALENDRIER FCBR'!$M$31:$N$1170,SENIORS!A51)","v":0},null,{"$f":"COUNTIF('CALENDRIER FCBR'!$K$31:$L$1170,SENIORS!A51)","v":2},null,"X",null,null,null,null,1]
["MASSE Sacha",2,null,null,null,1,{"$f":"COUNTIF('CALENDRIER FCBR'!$M$31:$N$1170,SENIORS!A52)","v":1},"X",{"$f":"COUNTIF('CALENDRIER FCBR'!$K$31:$L$1170,SENIORS!A52)","v":0},null,null,null,null,null,null,1]
["MERLET Luc",1,null,null,null,null,{"$f":"COUNTIF('CALENDRIER FCBR'!$M$31:$N$1170,SENIORS!A53)","v":1},"X",{"$f":"COUNTIF('CALENDRIER FCBR'!$K$31:$L$1170,SENIORS!A53)","v":0},null,null,null,null,null,null,1]
["PATRON Maxance",1,null,"X",null,1,{"$f":"COUNTIF('CALENDRIER FCBR'!$M$31:$N$1170,SENIORS!A54)","v":0},null,{"$f":"COUNTIF('CALENDRIER FCBR'!$K$31:$L$1170,SENIORS!A54)","v":0},null,null,null,null,null,null,1]
["PECHON Pascal",0,"X",null,null,null,{"$f":"COUNTIF('CALENDRIER FCBR'!$M$31:$N$1170,SENIORS!A55)","v":0},null,{"$f":"COUNTIF('CALENDRIER FCBR'!$K$31:$L$1170,SENIORS!A55)","v":0},null,null,null,null,null,null,1]
["PETIT Edouard",3,null,null,null,null,{"$f":"COUNTIF('CALENDRIER FCBR'!$M$31:$N$1170,SENIORS!A56)","v":0},null,{"$f":"COUNTIF('CALENDRIER FCBR'!$K$31:$L$1170,SENIORS!A56)","v":3},"X",null,null,null,null,null,1]
["PITREY Benjamin",3,null,null,null,1,{"$f":"COUNTIF('CALENDRIER FCBR'!$M$31:$N$1170,SENIORS!A57)","v":2},"X",{"$f":"COUNTIF('CALENDRIER FCBR'!$K$31:$L$1170,SENIORS!A57)","v":0},null,null,null,null,null,null,1]
["POGU Yohann",1,null,"X",null,null,{"$f":"COUNTIF('CALENDRIER FCBR'!$M$31:$N$1170,SENIORS!A58)","v":0},null,{"$f":"COUNTIF('CALENDRIER FCBR'!$K$31:$L$1170,SENIORS!A58)","v":1},"X",null,null,null,null,null,2]
["POGU Baptiste",2,null,null,null,null,{"$f":"COUNTIF('CALENDRIER FCBR'!$M$31:$N$1170,SENIORS!A59)","v":1},"X",{"$f":"COUNTIF('CALENDRIER FCBR'!$K$31:$L$1170,SENIORS!A59)","v":1},null,null,null,null,null,null,1]
["POUVREAU Maximin",1,null,"X",null,1,{"$f":"COUNTIF('CALENDRIER FCBR'!$M$31:$N$1170,SENIORS!A60)","v":0},null,{"$f":"COUNTIF('CALENDRIER FCBR'!$K$31:$L$1170,SENIORS!A60)","v":0},null,null,null,null,null,null,1]
["POUVREAU Emilien",1,"X",null,null,1,{"$f":"COUNTIF('CALENDRIER FCBR'!$M$31:$N$1170,SENIORS!A61)","v":0},null,{"$f":"COUNTIF('CALENDRIER FCBR'!$K$31:$L$1170,SENIORS!A61)","v":0},null,null,null,null,null,null,1]
["SORIN Dimitri",1,null,null,null,null,{"$f":"COUNTIF('CALENDRIER FCBR'!$M$31:$N$1170,SENIORS!A62)","v":0},null,{"$f":"COUNTIF('CALENDRIER FCBR'!$K$31:$L$1170,SENIORS!A62)","v":1},null,"X",null,null,null,null,1]
["SORIN Dorian",1,null,null,null,null,{"$f":"COUNTIF('CALENDRIER FCBR'!$M$31:$N$1170,SENIORS!A63)","v":0},null,{"$f":"COUNTIF('CALENDRIER FCBR'!$K$31:$L$1170,SENIORS!A63)","v":1},"X",null,null,null,null,null,1]
["TENAUD Romain",1,null,null,null,null,{"$f":"COUNTIF('CALENDRIER FCBR'!$M$31:$N$1170,SENIORS!A64)","v":1},"X",{"$f":"COUNTIF('CALENDRIER FCBR'!$K$31:$L$1170,SENIORS!A64)","v":0},null,null,null,null,null,null,1]
["TERRIEN David",2,null,null,null,null,{"$f":"COUNTIF('CALENDRIER FCBR'!$M$31:$N$1170,SENIORS!A65)","v":0},null,{"$f":"COUNTIF('CALENDRIER FCBR'!$K$31:$L$1170,SENIORS!A65)","v":2},"X",null,null,null,null,null,1]
["VAIDIE Steven",2,null,null,1,null,{"$f":"COUNTIF('CALENDRIER FCBR'!$M$31:$N$1170,SENIORS!A66)","v":1},"X",{"$f":"COUNTIF('CALENDRIER FCBR'!$K$31:$L$1170,SENIORS!A66)","v":0},null,null,null,null,null,null,1]
[" ",{"$f":"SUM(B4:B66)","v":87},{"$f":"COUNTIF(C4:C66,\"X\")","v":19},{"$f":"COUNTIF(D4:D66,\"X\")","v":8},{"$f":"COUNTIF(E4:E66,\"X\")","v":0},{"$f":"SUM(F4:F66)","v":20},{"$f":"SUM(G4:G66)","v":19},{"$f":"COUNTIF(H4:H66,\"X\")","v":19},{"$f":"SUM(I4:I66)","v":44},{"$f":"COUNTIF(J4:J66,\"X\")","v":13},2,2,1,0,0]

{"sheet":"ENGAGEMENTS","index":4,"n_rows":51,"n_cols":12,"rows_kept":51,"cut":false,"hidden":false,"merged":[[9,9,9,10],[9,11,9,15],[10,9,10,10],[41,9,41,10],[41,11,41,15],[34,9,34,10],[36,9,36,10],[37,9,37,10],[38,9,38,10],[40,9,40,10],[11,9,11,10],[12,9,12,10],[13,9,13,10],[14,9,14,10],[14,11,14,15],[15,9,15,10],[3,9,3,10],[4,9,4,10],[6,9,6,10],[6,11,6,15],[7,9,7,10],[0,9,0,10],[0,11,0,15],[1,9,1,10],[1,11,1,15],[2,9,2,10],[16,9,16,10],[17,9,17,10],[18,9,18,10],[18,11,18,15],[19,9,19,10],[20,9,20,10],[20,11,20,15],[21,9,21,10],[22,9,22,10],[23,9,23,10],[24,9,24,10],[25,9,25,10],[26,9,26,10],[27,9,27,10],[28,9,28,10],[28,11,28,15],[29,9,29,10],[29,11,29,15],[30,9,30,10],[30,11,30,15],[48,11,48,15],[49,9,49,10],[50,9,50,10],[31,9,31,10],[32,9,32,10],[33,9,33,10],[47,9,47,10],[48,9,48,10],[45,9,45,10],[46,9,46,10],[46,11,46,15],[42,9,42,10],[43,9,43,10],[44,9,44,10],[44,11,44,15]]}
["EQUIPES","COMPETITIONS","DATE ENGAGEMENT","VENDREDI SOIR","SAMEDI MATIN","SAMEDI AM","DIMANCHE MATIN","DIMANCHE APRES MIDI","ENGAGEMENT","LIEU DOMICILE",null,"COMMENTAIRES"]
["SENIORS A","CHAMPIONNAT R3","2023-07-02",null,null,null,null,"15H00","OK","BOUAINE",null,"13/11/2023 au 31/03/2024 - BOUAINE SAMEDI SOIR 18H30"]
[null,"COUPE DE France","2023-06-15",null,null,null,null,"15H00","OK","ROCHESERVIERE"]
[null,"COUPE PAYS DE LOIRE","2023-08-15",null,null,null,null,"15H00","OK","ROCHESERVIERE"]
[null,"COUPE DE VENDEE","2023-07-09",null,null,null,null,"15H00","OK","ROCHESERVIERE"]
[null,"CHALLENGE DE VENDEE"]
["SENIORS B","CHAMPIONNAT D3","2023-07-09",null,null,null,null,"15H00","OK","ROCHESERVIERE",null,"JUMELAGE EQUIPE C"]
[null,"COUPE DE VENDEE DES RESERVES","2023-07-09",null,null,null,null,"15H00","OK","ROCHESERVIERE"]
[null,"CRITERIUM DE VENDEE"]
["SENIORS C","DIVISION 5","2023-07-09",null,null,null,null,"13H00","OK","ROCHESERVIERE",null,"JUMELAGE EQUIPE B"]
[null,"CHALLENGE DE VENDEE DES RESERVES","2023-07-09",null,null,null,null,"13H00","OK","ROCHESERVIERE"]
["LOISIRS","CHAMPIONNAT","2023-08-25","21H00",null,null,null,null,"OK","BOUAINE"]
[null,"COUPE","2023-09-03","21H00",null,null,null,null,"OK","ROCHESERVIERE"]
[null,null,null,null,null,null,null,null,null,"LIEU DOMICILE"]
["U18 A","CHAMPIONNAT D1","2023-08-09",null,null,"15H00",null,null,"OK","ROCHESERVIERE",null,"SAMEDI 16H00 - JUMELAGE U18 B"]
[null,"GAMBARDELLA","2023-07-20",null,null,"15H00",null,null,"OK","ROCHESERVIERE"]
[null,"COUPE DES PAYS DE LOIRE","2023-09-03",null,null,"15H00",null,null,"OK","ROCHESERVIERE"]
[null,"COUPE DE VENDEE","2023-08-09",null,null,"15H00",null,null,"OK","BOUAINE"]
["U18 B","CHAMPIONNAT D2","2023-08-09",null,null,"15H00",null,null,"OK","BOUAINE",null,"SAMEDI 14H00 - JUMELAGE U18 A"]
[null,"CHALLENGE DE VENDEE","2023-08-09",null,null,"15H00",null,null,"OK","BOUAINE"]
["U17","CHAMPIONNAT D1","2023-08-09",null,null,"15H00",null,null,"OK","ROCHESERVIERE",null,"SAMEDI 16H00"]
[null,"COUPE DES PAYS DE LOIRE","2023-09-03",null,null,"15H00",null,null,"OK","ROCHESERVIERE"]
[null,"CHALLENGE DE VENDEE","2023-08-09",null,null,"15H00",null,null,"OK","ROCHESERVIERE"]
["U15 A","CHAMPIONNAT D1","2023-08-09",null,null,null,"10H00",null,"OK","BOUAINE"]
[null,"COUPE DES PAYS DE LOIRE","2024-01-04",null,null,null,null,null,null,"BOUAINE"]
[null,"COUPE DE VENDEE","2023-08-09",null,null,null,"10H00",null,"OK","BOUAINE"]
["U15 B","CHAMPIONNAT D3","2023-08-09",null,null,null,"10H00",null,"OK","ROCHESERVIERE"]
[null,"CHALLENGE DE VENDEE","2023-08-09",null,null,null,"10H00",null,"OK","ROCHESERVIERE"]
["U13 A","CHAMPIONNAT D1","2023-08-09",null,"10H15",null,null,null,"OK","ROCHESERVIERE",null,"JUMELAGE EQUIPE C"]
["U13 B","CHAMPIONNAT D2","2023-08-09",null,"10H15",null,null,null,"OK","BOUAINE",null,"ALTERNANCE EQUIPE A ET C"]
["U13 C","CHAMPIONNAT D4","2023-08-09",null,"10H15",null,null,null,"OK","ROCHESERVIERE",null,"JUMELAGE EQUIPE A"]
["U11","PLATEAU",null,null,null,"14H00",null,null,null,"BOUAINE"]
["U9","PLATEAU",null,null,"10H30",null,null,null,null,"BOUAINE"]
["U7","PLATEAU",null,null,"10H30",null,null,null,null,"ROCHESERVIERE"]
[null,null,null,null,null,null,null,null,null,"LIEU DOMICILE"]
[null,null,null,null,null,null,null,null,null,"MATCHS ALLER","MATCHS RETOUR"]
["SENIORS F","CHAMPIONNAT D1","2023-08-09",null,null,null,null,"13H00","OK","BOUAINE"]
[null,"COUPE DE France","2023-08-15",null,null,null,null,"13H00","OK","BOUAINE"]
[null,"COUPE PAYS DE LOIRE","2023-08-15",null,null,null,null,"13H00","OK","ROCHESERVIERE"]
[null,"CHALLENGE DE VENDEE","OCTOBRE",null,null,null,null,"13H00"]
["LOISIRS FEM","CHAMPIONNAT","2023-09-08",null,null,null,null,null,"OK","BOUAINE"]
["U18F","CHAMPIONNAT D1","2023-08-09",null,null,"15H00",null,null,"OK","CORCOUE",null,"JUMELAGE EQUIPE U15F"]
[null,"COUPE PAYS DE LOIRE","2024-01-04",null,null,null,null,null,null,"BOUAINE"]
[null,"COUPE U18F","OCTOBRE",null,null,"15H00",null,null,null,"ROCHESERVIERE"]
["U15F","CHAMPIONNAT D2","2023-08-09",null,null,"15H00",null,null,"OK","CORCOUE",null,"JUMELAGE EQUIPE U18F"]
[null,"CHALLENGE DE VENDEE","ENGAGE OFFICE",null,null,"15H00",null,null,"OK","BOUAINE"]
["U13F A","CHAMPIONNAT D1","2023-08-09",null,"10H15",null,null,null,"OK","BOUAINE",null,"JUMELAGE EQUIPE U13F A"]
[null,"CHALLENGE DE VENDEE","ENGAGE OFFICE",null,"10H15",null,null,null,"OK","BOUAINE"]
["U13F B","CHAMPIONNAT D2","2023-08-09",null,"10H15",null,null,null,"OK","BOUAINE",null,"JUMELAGE EQUIPE U13F B"]
[null,"CHALLENGE DE VENDEE","ENGAGE OFFICE",null,"10H15",null,null,null,"OK","BOUAINE"]
["U11F","PLATEAU","SEPTEMBRE",null,null,"14H00",null,null,null,"ROCHESERVIERE"]